{"text_format":"1","workbook":"xlsx","n_sheets":8,"sheets":["FICHA TECNICA ESTANDAR","Parámetros de diseño","Costos de Inversión","Costo Operación y Mantenimiento","Costo a Precios Sociales","Plan Implementación","INDICADORES DE BRECHA","OBJETIVOS"],"not_rendered":{"charts":0,"images":6,"macros":1,"external_links":0,"defined_names":9,"comments":0,"pivot_tables":0},"unopened":[],"bounds":{"document_bytes":16777216,"sheet_cells":100000,"rows_first":2000,"rows_last":500,"rows_between":2000,"halvings":0,"cell_chars":16384,"cell_head_chars":4096},"cells_cut":0,"cells_raw":0,"read":"whole","date_system":"1900"}

{"sheet":"FICHA TECNICA ESTANDAR","index":0,"n_rows":1033,"n_cols":19,"rows_kept":1033,"cut":false,"hidden":false,"merged":[[272,5,272,7],[258,3,258,4],[259,3,259,4],[260,3,260,4],[261,3,261,4],[262,3,262,4],[263,3,263,4],[263,1,272,2],[264,3,264,4],[265,3,265,4],[226,5,226,9],[230,1,232,12],[253,14,253,15],[254,14,254,15],[255,14,255,15],[256,14,256,15],[236,14,236,15],[202,6,202,10],[1024,1,1024,12],[1025,1,1025,12],[1026,1,1026,12],[1027,1,1027,12],[1028,1,1028,12],[1030,1,1030,12],[1031,1,1031,12],[1032,1,1032,12],[1029,1,1029,12],[258,5,258,7],[259,5,259,7],[260,5,260,7],[261,5,261,7],[262,5,262,7],[263,5,263,7],[264,5,264,7],[265,5,265,7],[266,5,266,7],[267,5,267,7],[268,5,268,7],[269,5,269,7],[270,5,270,7],[271,5,271,7],[257,3,257,4],[234,11,235,13],[190,3,190,5],[191,3,191,5],[193,6,193,10],[194,6,194,10],[195,3,195,5],[185,1,186,2],[186,3,186,5],[188,3,188,5],[186,11,186,14],[188,11,188,14],[189,11,189,14],[198,6,198,10],[201,11,201,14],[202,11,202,14],[203,11,203,14],[241,14,241,15],[882,4,882,5],[883,4,883,5],[884,4,884,5],[885,4,885,5],[886,4,886,5],[887,4,887,5],[888,4,888,5],[889,4,889,5],[890,4,890,5],[891,4,891,5],[892,4,892,5],[893,4,893,5],[894,4,894,5],[895,4,895,5],[896,4,896,5],[897,4,897,5],[898,4,898,5],[116,1,116,6],[120,1,122,12],[134,4,134,5],[252,5,252,7],[253,5,253,7],[236,1,243,2],[244,1,246,2],[247,1,253,2],[254,1,262,2],[234,1,235,2],[162,1,162,3],[162,7,162,9],[162,10,162,14],[196,3,196,5],[197,3,197,5],[189,3,189,5],[139,13,140,14],[137,1,137,12],[203,6,203,10],[209,1,212,12],[214,1,218,12],[235,8,235,9],[234,3,235,4],[236,3,236,4],[237,3,237,4],[234,5,235,7],[236,5,236,7],[237,5,237,7],[238,5,238,7],[239,5,239,7],[240,5,240,7],[241,5,241,7],[873,4,873,5],[874,4,874,5],[875,4,875,5],[876,4,876,5],[877,4,877,5],[878,4,878,5],[879,4,879,5],[880,4,880,5],[880,9,880,10],[706,1,706,8],[863,9,863,10],[864,9,864,10],[865,9,865,10],[866,9,866,10],[880,1,880,3],[845,14,845,15],[831,14,831,15],[872,9,872,10],[873,9,873,10],[838,11,838,12],[838,14,838,15],[837,14,837,15],[844,14,844,15],[889,9,889,10],[890,9,890,10],[234,8,234,10],[891,9,891,10],[892,9,892,10],[893,9,893,10],[875,9,875,10],[876,9,876,10],[877,9,877,10],[878,9,878,10],[879,9,879,10],[843,8,843,10],[816,8,816,10],[867,9,867,10],[868,9,868,10],[869,9,869,10],[767,10,767,11],[855,11,855,12],[856,11,856,12],[853,11,853,12],[854,11,854,12],[811,8,811,10],[812,8,812,10],[813,8,813,10],[814,8,814,10],[845,11,845,12],[841,11,841,12],[842,11,842,12],[871,9,871,10],[633,12,633,15],[884,9,884,10],[885,9,885,10],[887,6,887,7],[888,6,888,7],[889,6,889,7],[890,6,890,7],[891,6,891,7],[892,6,892,7],[893,6,893,7],[846,11,846,12],[846,14,846,15],[847,1,847,7],[847,8,847,10],[881,9,881,10],[882,9,882,10],[883,9,883,10],[870,6,870,7],[871,6,871,7],[872,6,872,7],[873,6,873,7],[874,6,874,7],[875,6,875,7],[876,6,876,7],[877,6,877,7],[878,6,878,7],[879,6,879,7],[880,6,880,7],[881,6,881,7],[882,6,882,7],[883,6,883,7],[870,9,870,10],[886,9,886,10],[887,9,887,10],[888,9,888,10],[884,6,884,7],[885,6,885,7],[886,6,886,7],[849,8,849,10],[849,11,849,12],[849,14,849,15],[850,1,850,7],[850,8,850,10],[850,11,850,12],[850,14,850,15],[848,11,848,12],[848,14,848,15],[839,14,839,15],[840,14,840,15],[841,14,841,15],[842,14,842,15],[864,4,864,5],[865,1,865,3],[881,4,881,5],[855,14,855,15],[856,14,856,15],[881,1,881,3],[868,6,868,7],[869,6,869,7],[865,4,865,5],[866,4,866,5],[867,4,867,5],[868,4,868,5],[869,4,869,5],[870,4,870,5],[871,4,871,5],[872,4,872,5],[806,1,806,4],[863,6,863,7],[864,6,864,7],[812,11,812,12],[813,11,813,12],[814,11,814,12],[815,11,815,12],[810,14,810,15],[811,14,811,15],[812,14,812,15],[813,14,813,15],[814,14,814,15],[815,14,815,15],[821,8,821,10],[821,11,821,12],[821,14,821,15],[818,8,818,10],[818,11,818,12],[819,8,819,10],[819,11,819,12],[817,14,817,15],[818,14,818,15],[819,14,819,15],[820,14,820,15],[824,11,824,12],[824,14,824,15],[825,1,825,7],[825,8,825,10],[825,11,825,12],[825,14,825,15],[826,1,826,7],[826,8,826,10],[856,8,856,10],[852,8,852,10],[853,8,853,10],[854,8,854,10],[855,8,855,10],[808,11,808,12],[809,11,809,12],[816,11,816,12],[823,11,823,12],[830,11,830,12],[808,14,808,15],[816,14,816,15],[823,14,823,15],[830,14,830,15],[817,8,817,10],[817,11,817,12],[828,11,828,12],[828,14,828,15],[815,8,815,10],[809,14,809,15],[811,11,811,12],[839,11,839,12],[840,11,840,12],[846,8,846,10],[829,11,829,12],[832,11,832,12],[822,11,822,12],[833,11,833,12],[829,1,829,7],[829,8,829,10],[822,14,822,15],[820,11,820,12],[810,11,810,12],[853,14,853,15],[854,14,854,15],[829,14,829,15],[831,1,831,7],[831,8,831,10],[831,11,831,12],[832,14,832,15],[826,11,826,12],[826,14,826,15],[827,11,827,12],[827,14,827,15],[828,1,828,7],[828,8,828,10],[843,11,843,12],[843,14,843,15],[845,1,845,7],[845,8,845,10],[848,1,848,7],[832,1,832,7],[846,1,846,7],[817,1,817,7],[769,1,769,11],[771,1,771,4],[764,1,764,2],[765,1,765,2],[766,1,766,2],[852,14,852,15],[833,14,833,15],[834,1,834,7],[834,8,834,10],[834,11,834,12],[834,14,834,15],[835,1,835,7],[835,8,835,10],[835,11,835,12],[835,14,835,15],[836,1,836,7],[836,8,836,10],[836,11,836,12],[836,14,836,15],[838,1,838,7],[838,8,838,10],[823,8,823,10],[830,8,830,10],[837,8,837,10],[844,8,844,10],[837,11,837,12],[844,11,844,12],[852,11,852,12],[847,11,847,12],[847,14,847,15],[848,8,848,10],[832,8,832,10],[808,1,808,7],[809,1,809,7],[816,1,816,7],[823,1,823,7],[830,1,830,7],[837,1,837,7],[844,1,844,7],[821,1,821,7],[827,1,827,7],[833,1,833,7],[839,1,839,7],[840,1,840,7],[841,1,841,7],[842,1,842,7],[843,1,843,7],[824,1,824,7],[824,8,824,10],[818,1,818,7],[819,1,819,7],[820,1,820,7],[820,8,820,10],[822,1,822,7],[822,8,822,10],[808,8,808,10],[809,8,809,10],[287,13,287,15],[1009,1,1009,3],[1010,1,1010,3],[1011,1,1011,3],[1012,1,1012,3],[1013,1,1013,3],[1001,1,1001,3],[1002,1,1002,3],[995,1,995,3],[996,1,996,3],[997,1,997,3],[998,1,998,3],[999,1,999,3],[1000,1,1000,3],[1006,1,1006,3],[1007,1,1007,3],[1008,1,1008,3],[1006,8,1006,11],[1007,8,1007,11],[1008,8,1008,11],[1009,8,1009,11],[1003,8,1003,11],[1004,8,1004,11],[1005,8,1005,11],[1012,8,1012,11],[1013,8,1013,11],[1010,4,1010,7],[1011,4,1011,7],[1012,4,1012,7],[1013,4,1013,7],[995,8,995,11],[996,8,996,11],[287,10,287,12],[288,10,288,12],[289,10,289,12],[290,10,290,12],[291,10,291,12],[292,10,292,12],[293,10,293,12],[294,10,294,12],[295,10,295,12],[296,10,296,12],[297,10,297,12],[298,10,298,12],[299,10,299,12],[300,10,300,12],[300,8,300,9],[287,5,287,7],[288,5,288,7],[289,5,289,7],[290,5,290,7],[291,5,291,7],[292,5,292,7],[293,5,293,7],[294,5,294,7],[295,5,295,7],[287,8,287,9],[288,8,288,9],[289,8,289,9],[290,8,290,9],[291,8,291,9],[299,8,299,9],[300,5,300,7],[288,13,288,15],[289,13,289,15],[290,13,290,15],[291,13,291,15],[292,13,292,15],[293,13,293,15],[294,13,294,15],[295,13,295,15],[296,13,296,15],[297,13,297,15],[298,13,298,15],[299,13,299,15],[293,1,293,4],[294,1,294,4],[295,1,295,4],[296,1,296,4],[297,1,297,4],[298,1,298,4],[299,1,299,4],[299,5,299,7],[988,1,988,5],[989,1,989,8],[782,1,783,1],[784,1,785,1],[786,1,788,1],[777,1,777,4],[778,1,778,4],[782,2,782,3],[783,2,783,3],[784,2,784,3],[785,2,785,3],[786,2,786,3],[787,2,787,3],[788,2,788,3],[780,4,780,13],[780,1,781,3],[764,10,764,11],[765,10,765,11],[766,10,766,11],[874,9,874,10],[864,1,864,3],[849,1,849,7],[865,6,865,7],[866,6,866,7],[867,6,867,7],[886,1,886,3],[887,1,887,3],[888,1,888,3],[896,1,896,3],[897,1,897,3],[903,1,903,13],[904,1,904,2],[300,13,300,15],[810,1,810,7],[811,1,811,7],[812,1,812,7],[813,1,813,7],[814,1,814,7],[815,1,815,7],[810,8,810,10],[476,4,476,5],[477,4,477,5],[487,1,487,4],[767,1,767,2],[762,3,762,4],[763,3,763,4],[764,3,764,4],[765,3,765,4],[766,3,766,4],[767,3,767,4],[760,1,761,2],[760,3,761,4],[673,14,673,15],[667,6,667,7],[673,8,673,9],[672,4,672,5],[673,4,673,5],[750,10,750,11],[751,10,751,11],[752,10,752,11],[753,10,753,11],[754,10,754,11],[755,10,755,11],[699,4,699,5],[702,4,702,5],[672,14,672,15],[740,1,740,4],[741,1,741,4],[742,1,742,4],[743,1,743,4],[744,1,744,4],[745,1,745,4],[735,10,736,11],[735,5,735,9],[735,1,736,4],[762,1,762,2],[763,1,763,2],[759,5,759,9],[762,10,762,11],[763,10,763,11],[755,1,755,9],[737,10,737,11],[738,10,738,11],[739,10,739,11],[740,10,740,11],[741,10,741,11],[742,10,742,11],[743,10,743,11],[744,10,744,11],[745,10,745,11],[746,10,746,11],[747,10,747,11],[748,10,748,11],[749,10,749,11],[746,1,746,4],[759,10,761,11],[727,1,727,2],[729,1,729,4],[737,1,737,4],[756,1,756,8],[710,1,710,3],[718,1,718,3],[712,1,712,2],[713,1,713,2],[714,1,714,2],[715,1,715,2],[716,1,716,2],[712,3,712,4],[713,3,713,4],[714,3,714,4],[715,3,715,4],[716,3,716,4],[720,3,720,4],[721,3,721,4],[722,3,722,4],[723,3,723,4],[724,3,724,4],[747,1,747,4],[748,1,748,4],[749,1,749,4],[750,1,750,4],[751,1,751,4],[752,1,752,4],[753,1,753,4],[754,1,754,4],[738,1,738,4],[739,1,739,4],[634,12,634,15],[635,12,635,15],[636,12,636,15],[637,12,637,15],[734,9,734,10],[725,3,725,4],[726,3,726,4],[727,3,727,4],[720,1,720,2],[721,1,721,2],[722,1,722,2],[723,1,723,2],[638,1,638,13],[600,1,600,8],[602,1,602,9],[604,7,604,9],[622,1,624,3],[622,4,622,7],[623,4,623,7],[624,4,624,7],[625,1,627,3],[625,4,625,7],[626,4,626,7],[627,4,627,7],[628,1,628,3],[628,4,628,7],[629,1,629,3],[629,4,629,7],[724,1,724,2],[725,1,725,2],[633,7,633,9],[726,1,726,2],[634,7,634,9],[635,7,635,9],[636,7,636,9],[637,7,637,9],[636,1,636,3],[636,4,636,6],[637,1,637,3],[637,4,637,6],[634,1,634,3],[634,4,634,6],[635,1,635,3],[635,4,635,6],[633,10,633,11],[634,10,634,11],[635,10,635,11],[584,1,584,4],[584,7,584,8],[585,1,585,4],[585,7,585,8],[586,1,586,4],[586,7,586,8],[587,1,587,4],[587,7,587,8],[633,1,633,3],[633,4,633,6],[636,10,636,11],[637,10,637,11],[581,1,581,4],[581,7,581,8],[572,1,572,4],[572,7,572,8],[570,1,570,4],[570,7,570,8],[571,1,571,4],[571,7,571,8],[569,1,569,4],[569,7,569,8],[582,1,582,4],[582,7,582,8],[583,1,583,4],[583,7,583,8],[574,1,574,4],[574,7,574,8],[575,1,575,4],[575,7,575,8],[576,1,576,4],[576,7,576,8],[577,1,577,4],[577,7,577,8],[578,1,578,4],[578,7,578,8],[474,1,474,3],[573,1,573,4],[573,7,573,8],[564,1,564,4],[564,7,564,8],[565,1,565,4],[565,7,565,8],[566,1,566,4],[566,7,566,8],[567,1,567,4],[567,7,567,8],[568,1,568,4],[568,7,568,8],[579,1,579,4],[579,7,579,8],[580,1,580,4],[580,7,580,8],[558,5,558,6],[558,7,559,8],[488,5,488,8],[489,1,489,4],[489,5,489,8],[484,1,484,4],[484,5,484,8],[492,1,492,4],[492,5,492,8],[493,1,493,4],[493,5,493,8],[494,1,494,4],[504,1,504,4],[563,1,563,4],[563,7,563,8],[515,10,515,11],[516,10,516,11],[517,10,517,11],[518,10,518,11],[519,10,519,11],[520,10,520,11],[521,10,521,11],[522,10,522,11],[523,10,523,11],[515,6,515,9],[516,6,516,9],[517,6,517,9],[518,6,518,9],[519,6,519,9],[520,6,520,9],[521,6,521,9],[522,6,522,9],[523,6,523,9],[532,1,533,15],[558,1,559,4],[306,4,306,14],[191,11,191,14],[192,11,192,14],[193,11,193,14],[194,11,194,14],[195,11,195,14],[196,11,196,14],[197,11,197,14],[198,11,198,14],[199,11,199,14],[186,6,186,10],[187,6,187,10],[188,6,188,10],[189,6,189,10],[190,6,190,10],[195,6,195,10],[196,6,196,10],[197,6,197,10],[198,3,198,5],[199,3,199,5],[200,3,200,5],[194,3,194,5],[192,6,192,10],[190,11,190,14],[199,6,199,10],[200,6,200,10],[239,3,239,4],[240,3,240,4],[241,3,241,4],[242,3,242,4],[243,3,243,4],[244,3,244,4],[336,9,336,11],[458,1,458,4],[480,1,480,4],[488,1,488,4],[890,1,890,3],[867,1,867,3],[868,1,868,3],[869,1,869,3],[870,1,870,3],[889,1,889,3],[854,1,854,7],[855,1,855,7],[856,1,856,7],[827,8,827,10],[833,8,833,10],[839,8,839,10],[840,8,840,10],[841,8,841,10],[842,8,842,10],[866,1,866,3],[873,1,873,3],[874,1,874,3],[875,1,875,3],[876,1,876,3],[877,1,877,3],[878,1,878,3],[863,4,863,5],[871,1,871,3],[872,1,872,3],[879,1,879,3],[852,1,852,7],[853,1,853,7],[159,10,159,14],[160,1,160,3],[160,7,160,9],[160,10,160,14],[124,2,124,3],[124,4,124,5],[315,1,315,4],[314,10,314,11],[317,5,317,7],[317,8,317,9],[317,10,317,11],[316,1,316,4],[317,1,317,4],[325,2,325,6],[317,12,317,15],[315,10,315,11],[315,12,315,15],[316,5,316,7],[316,8,316,9],[316,10,316,11],[316,12,316,15],[325,9,325,11],[325,7,325,8],[314,12,314,15],[315,5,315,7],[185,3,185,10],[185,11,185,14],[201,3,201,5],[202,3,202,5],[203,3,203,5],[201,6,201,10],[323,1,323,3],[112,0,112,16],[66,1,66,4],[78,9,78,13],[80,1,80,7],[80,9,80,13],[39,10,39,11],[41,7,41,8],[1,3,1,13],[0,0,0,2],[1,0,1,2],[13,1,24,14],[117,1,119,12],[128,1,128,12],[129,1,131,12],[102,1,102,7],[87,1,87,7],[135,1,135,8],[126,1,126,7],[124,6,124,7],[124,8,124,9],[124,10,124,11],[125,2,125,3],[125,4,125,5],[125,6,125,7],[125,8,125,9],[125,10,125,11],[134,2,134,3],[49,5,49,9],[50,5,50,9],[52,1,52,15],[0,5,0,11],[2,6,2,10],[58,1,58,4],[58,6,58,10],[48,1,48,3],[50,1,50,3],[60,1,60,4],[62,1,62,4],[66,6,66,12],[41,1,41,5],[9,0,9,16],[32,1,32,3],[32,5,32,7],[32,9,32,11],[32,13,32,15],[37,1,37,5],[39,1,39,5],[37,7,37,8],[39,7,39,8],[37,10,37,11],[42,1,43,15],[96,1,96,7],[64,1,64,4],[60,6,60,10],[62,6,62,10],[64,6,64,10],[78,1,78,7],[96,9,96,13],[102,9,102,13],[87,9,87,13],[89,1,89,7],[89,9,89,13],[91,1,91,7],[91,9,91,13],[98,9,98,13],[100,9,100,13],[100,1,100,7],[98,1,98,7],[85,1,85,7],[85,9,85,13],[74,1,74,7],[74,9,74,13],[76,1,76,7],[76,9,76,13],[159,7,159,9],[105,5,105,6],[107,1,107,7],[107,9,107,13],[48,11,48,15],[49,11,49,15],[50,11,50,15],[48,5,48,9],[353,2,362,6],[363,7,363,8],[368,7,369,12],[368,2,368,6],[369,2,369,6],[377,1,379,15],[342,9,342,11],[343,9,343,11],[440,1,440,4],[337,1,343,1],[337,2,343,6],[337,7,343,8],[344,7,352,8],[344,2,352,6],[344,1,352,1],[353,9,353,11],[354,9,354,11],[355,9,355,11],[353,1,362,1],[346,9,346,11],[347,9,347,11],[348,9,348,11],[349,9,349,11],[402,1,402,4],[133,2,133,3],[133,4,133,5],[133,6,133,7],[133,8,133,9],[133,10,133,11],[315,8,315,9],[308,5,308,7],[309,5,309,7],[310,5,310,7],[311,5,311,7],[309,8,309,9],[310,8,310,9],[311,8,311,9],[308,8,308,9],[153,1,153,6],[155,1,156,12],[158,1,158,14],[159,1,159,3],[306,1,306,3],[308,10,308,11],[310,1,310,4],[311,1,311,4],[191,6,191,10],[192,3,192,5],[193,3,193,5],[134,6,134,7],[134,8,134,9],[134,10,134,11],[308,1,308,4],[309,1,309,4],[159,4,159,6],[200,11,200,14],[892,1,892,3],[404,1,406,12],[495,1,495,4],[495,5,495,8],[521,1,521,5],[522,1,522,5],[523,1,523,5],[515,1,515,5],[516,1,516,5],[517,1,517,5],[519,1,519,5],[520,1,520,5],[419,1,419,4],[420,1,420,4],[434,1,435,15],[436,1,436,4],[437,1,437,4],[518,1,518,5],[475,1,475,3],[476,1,476,3],[651,8,651,9],[650,8,650,10],[650,11,650,12],[490,1,490,4],[490,5,490,8],[491,1,491,4],[491,5,491,8],[558,9,558,13],[561,1,561,4],[561,7,561,8],[562,1,562,4],[562,7,562,8],[926,1,926,3],[934,1,934,12],[938,1,938,3],[920,8,920,10],[921,8,921,10],[922,8,922,10],[923,8,923,10],[895,1,895,3],[894,6,894,7],[895,6,895,7],[896,6,896,7],[897,6,897,7],[894,9,894,10],[891,1,891,3],[494,5,494,8],[677,14,677,15],[678,14,678,15],[679,14,679,15],[653,14,653,15]],"merged_total":1504,"flags":["merged_cut"]}
["FECHA DE REGISTRO:",null,null,null,null,"FICHA TÉCNICA ESTÁNDAR DE PROYECTOS DE INVERSIÓN PARA"]
[{"$f":"NOW()","v":"2020-02-24T10:37:06.640"},null,null,"PARQUES CULTURALES BICENTENARIO: CREACIÓN, MEJORAMIENTO O RECUPERACIÓN DE ESPACIOS PÚBLICOS CON SERVICIOS DE USO CULTURAL"]
[null,null,null,null,null,null,"MONTOS ≤ 5 000 UIT"]
[]
[]
[]
[]
[]
[]
["1. DATOS GENERALES"]
[]
[]
[]
[null,"Esta ficha técnica estándar se aplica sobre proyectos de inversión del Sector Cultura, y tiene como finalidad facilitar la formulación y evaluación de proyectos de inversión relacionados a espacios públicos con servicios de uso cultural. Dichos proyectos de inversión deben tener las siguientes características:\n- Área total del Parque : 1 – 4 hectáreas\n- Compuesto por cinco componentes: Área Ecológica, Explanada Cultural, Centro de Recursos de la Ciudadanía (CREC), Centro Cultural y Biblioteca Comunitaria. \n\n¿Qué es un Parque Cultural Bicentenario?\n• Un Parque Cultural Bicentenario es un espacio público ubicado en lugares estratégicos de la ciudad con servicios que fomentan los derechos culturales, la memoria y la creatividad en las personas para construir una sociedad ética para el bien común. \n• Cuenta con áreas naturales abiertas, así como con infraestructura especializada para el desarrollo de exposiciones y actividades culturales que permitan la Integración social. \n• Sus espacios son convocantes y de carácter público que promueven la integración y participación de la población, teniendo como lugar medular el Centro de Recursos de la Ciudadanía. \n• Posee un modelo de gestión y oferta de actividades centradas en la identidad y los valores que dinamizan espacios de encuentro para una ciudadanía responsable preparada en resolver retos locales en equidad y bienestar.\n"]
[]
[]
[]
[]
[]
[]
[]
[]
[]
[]
[]
[]
[]
[]
[]
[]
[null,"1.1.1 SERVICIOS PÚBLICOS CON BRECHA IDENTIFICADA Y PRIORIZADA"]
[]
[null,"Tipo de Servicio",null,null,null,"Servicios culturales para la participación de la población en las industrias culturales y las artes",null,null,null,"Tipo de Brecha",null,null,null,"Cobertura"]
[]
[]
[null,"1.1.2 INDICADOR DE PRODUCTO ASOCIADO A LA BRECHA DE SERVICIOS"]
[]
[null,"Nombre del Indicador de brecha de acceso a servicios",null,null,null,null,null,"Unidad de medida",null,null,"Espacio geográfico",null,null,"Año",null,"Valor"]
[]
[null,"Porcentaje de distritos con más de 20,000 habitantes que no cuentan con infraestructura cultural pública para la participación de la población en las industrias culturales y las artes (% Distritos sin IPASC).",null,null,null,null,null,"Distritos"]
[]
[null,"Contribución del Cierre de Brecha (Valor)"]
[null,"Nota: Se refiere a la capacidad de producción que aporta el proyecto (incremental). En aquellos casos en los que la unidad de medida del indicador de brecha del PMI no coincida con la unidad de medida de la brecha oferta – demanda del proyecto, se recomienda que la UF considere como contribución al cierre de brecha un valor expresado en la unidad de medida de la brecha del PMI, basado en los resultados del proyecto obtenidos en los documentos técnicos, como por ejemplo, metas físicas, o en el número de unidades productoras intervenidas, u otro de ser el caso."]
[]
[]
[]
[]
[]
[null,"Naturaleza de intervención",null,null,null,"Objeto de intervención",null,null,null,null,null,"Localización"]
[]
[null,"Creación",null,null,null,"de servicios culturales para la participación de la población en las industrias culturales y las artes en el Parque Cultural Bicentenario",null,null,null,null,null,"del distrito de Chachapoyas, provincia de Chachapoyas, departamento de Amazonas"]
[]
[null,{"$f":"CONCATENATE(B51,\" \",F51,\" \",L51)","v":"Creación de servicios culturales para la participación de la población en las industrias culturales y las artes en el Parque Cultural Bicentenario del distrito de Chachapoyas, provincia de Chachapoyas, departamento de Amazonas"}]
[]
[]
[]
[]
[]
[null,"Función",null,null,null,null,"Cultura y Deporte"]
[]
[null,"División funcional",null,null,null,null,"Cultura"]
[]
[null,"Grupo funcional",null,null,null,null,"Promoción y desarrollo cultural"]
[]
[null,"Sector responsable",null,null,null,null,"Cultura"]
[]
[null,"Tipología de proyecto",null,null,null,null,"Infraestructura Cultural Pública para la participación de la población en las industrias culturales y las artes"]
[]
[]
[]
[]
[]
[null,"OFICINA DE PROGRAMACIÓN MULTIANUAL DE INVERSIONES  (OPMI)"]
[]
[null,"Nivel de gobierno :"]
[]
[null,"Entidad :"]
[]
[null,"Nombre de la OPMI:  (Nombre de la Unidad Orgánica a la que pertenece la OPMI)"]
[]
[null,"Responsable de la OPMI:"]
[]
[]
[null,"UNIDAD FORMULADORA  (UF)"]
[]
[null,"Nivel de gobierno :"]
[]
[null,"Entidad :"]
[]
[null,"Nombre de la UF:  (Nombre de la Unidad Orgánica a la que pertenece la UF)"]
[]
[null,"Responsable de la UF"]
[]
[]
[null,"UNIDAD EJECUTORA DE INVERSIONES  (UEI)"]
[]
[null,"Nivel de gobierno :"]
[]
[null,"Entidad :"]
[]
[null,"Nombre de la UEI:  (Nombre de la Unidad Orgánica a la que pertenece la UEI)"]
[]
[null,"Responsable de la UEI"]
[]
[]
[null,"UNIDAD EJECUTORA PRESUPUESTAL (UEP)"]
[]
[null,"Nombre de la UEP"]
[]
[]
[]
[]
["2. IDENTIFICACIÓN"]
[]
[]
[null,null,null,null,null,null,null,null,"ddd"]
[null,"Paso 1. Identificar el área de estudio"]
[null,"Área de estudio: Es el espacio geográfico que sirve de referencia para contextualizar la situación negativa. Comprende: i) el área donde se localiza la población afectada, ii) el área donde se ubica la UP a intervenir (cuando ésta existe) o donde podría construirse una nueva UP, iii) el área donde se ubican otras UP a las cuales puede acceder la población afectada."]
[]
[]
[]
[]
[]
[]
[null,"N° ","Departamento",null,"Provincia",null,"Distrito",null,"Localidad/Centro poblado",null,"Ubigeo"]
[null,1]
[null,"Nota: Si el área de estudio del proyecto abarca más de una localización, se podrán añadir más localizaciones."]
[]
[null,"Área de Influencia: Es el espacio geográfico donde se ubica la población afectada."]
[]
[]
[]
[]
[null,"N° ","Departamento",null,"Provincia",null,"Distrito",null,"Localidad/Centro poblado",null,"Ubigeo"]
[null,1]
[null,"Nota: Si el área de estudio del proyecto abarca más de una localización, se podrán añadir más localizaciones."]
[]
[null,"Presentar el croquis con la ubicación de los beneficiarios o los demandantes actuales y futuros y la localización de los elementos de la UP (en caso exista) o la UP a crear"]
[]
[null,null,null,null,null,null,null,null,null,null,null,null,null,"Leyenda"]
[]
[]
[]
[]
[]
[]
[]
[]
[]
[]
[]
[null,"Fuente de información:"]
[]
[null,"Paso 2. Trabajo de campo"]
[]
[null,"Visitar el área de estudio para recoger información de fuente primaria principalmente sobre las características geográficas, disponibilidad de recursos y condiciones de acceso, que te permitan luego diseñar el proyecto, así como identificar inversiones adicionales que permitan el funcionamiento de la UP."]
[]
[]
[null,"Principales características del uso del suelo de la zona de interés (localización potencial de la UP)"]
[null,"Tipo de uso de suelo",null,null,"Área",null,null,"Descripción",null,null,"Fuente de información"]
[null,"Zona de Recreación Pública"]
[]
[]
[]
[]
[]
[null,"Altitud",null,null,"Temperatura",null,null,null,"Humedad",null,null,"Precipitación"]
[]
[]
[null,"Describir características de accesibilidad y dinámica económica"]
[]
[]
[null,"Acceso a servicios públicos"]
[]
[]
[null,"Servicio público","¿Existe acceso?\nSI/NO"]
[null,"Agua"]
[null,"Electricidad"]
[null,"Internet"]
[]
[null,"Paso 3. Análisis de peligros"]
[]
[null,"Identifica y evalúa los peligros más relevantes en el territorio y que podrían afectar a la UP o al proyecto. Es necesario conocer las características de los peligros en cuanto a sus áreas de impacto, intensidad, período de retorno, probabilidad de ocurrencia, entre otros."]
[]
[]
[null,"Peligros",null,"¿Existen antecedentes de ocurrencia en el área de estudio?",null,null,null,null,null,null,null,"¿Existe información que indique futuros cambios en las características del peligro o los nuevos peligros?"]
[null,null,null,"Sí / No",null,null,"Características (Intensidad, frecuencia, área de impacto, otros)",null,null,null,null,"Sí/No"]
[]
[null,"Inundaciones"]
[null,"Movimientos en masa"]
[null,"Lluvias intensas"]
[null,"Helada"]
[null,"Nevadas"]
[null,"Friaje"]
[null,"Sismos"]
[null,"Sequías"]
[null,"Vulcanismo"]
[null,"Tsunamis"]
[null,"Incendios forestales"]
[null,"Erosión"]
[null,"Vientos fuertes"]
[null,"Incendios urbanos"]
[null,"Radiación solar"]
[null,"Otros"]
[]
[]
[]
[]
[]
[null,"Describir a la población afectada por la situación negativa de no recibir los servicios culturales a través de un espacio público que se busca resolver con el proyecto y su participación en las industrias culturales y artes. De este grupo de población se analizará los aspectos demográficos, económicos, sociales, culturales, además de los problemas y efectos que perciben. En caso no existiese el servicio, deben describirse las formas alternativas que utiliza la población afectada para obtenerlo; por ejemplo, a través de la visita a otras instituciones culturales vinculadas a la población. "]
[]
[]
[]
[]
[]
[]
[]
[]
[]
[]
[]
[]
[]
[]
[null,"Datos de la Unidad Productora"]
[]
[null,"Nombre de la Unidad Productora",null,null,null,"Parque Cultural Bicentenario"]
[]
[null,"Código de la UP"]
[]
[null,"Para proyectos de inversión de naturaleza mejoramiento o recuperación se deberá realizar un levantamiento de información primaria respecto al estado actual de los activos existentes. Deberá enfocarse en entender las condiciones actuales bajo las que se viene prestando el bien o servicio, las causas que han determinado la situación actual, así como la forma en que se afecta la población usuaria."]
[]
[]
[]
[null,"Activo Agregado",null,"Tipo de Factor productivo",null,"Activos estratégicos",null,null,"Cumple con los estándares de calidad del Sector",null,null,"Estado Situacional",null,null,"Acciones correctivas"]
[null,null,null,null,null,null,null,null,"Norma técnica**",null,"Sí "]
[null,"Área ecológica",null,"Infraestructura",null,"Área verde",null,null,null,null,null,null,null,null,null,null,null,null,{"$f":"MID(F237,12,50)","v":""}]
[null,null,null,"Infraestructura",null,"Sendero"]
[null,null,null,"Infraestructura",null,"Baldosas podo táctiles"]
[null,null,null,"Infraestructura",null,"Sardineles"]
[null,null,null,"Infraestructura",null,"Sistema de riego"]
[null,null,null,"Mobiliario",null,"Bancas"]
[null,null,null,"Mobiliario",null,"Juegos infantiles e inclusivos"]
[null,null,null,"Mobiliario",null,"Luminarias / faroles"]
[null,"Explanada Cultural",null,"Infraestructura",null,"Anfiteatro"]
[null,null,null,"Infraestructura",null,"Plataforma"]
[null,null,null,"Infraestructura",null,"Servicios higiénicos"]
[null,"Centro Cultural",null,"Infraestructura",null,"Auditorio "]
[null,null,null,"Infraestructura",null,"Sala de Usos Múltiples "]
[null,null,null,"Infraestructura",null,"Recepción "]
[null,null,null,"Infraestructura",null,"Sala de Talleres "]
[null,null,null,"Infraestructura",null,"Servicios higiénicos"]
[null,null,null,"Equipo",null,"Equipo del centro cultural"]
[null,null,null,"Mobiliario",null,"Mobiliario del centro cultural "]
[null,"Biblioteca Comunitaria",null,"Infraestructura",null,"Sala de Lectura"]
[null,null,null,"Infraestructura",null,"Ludoteca "]
[null,null,null,"Infraestructura",null,"Sala Audiovisual"]
[null,null,null,"Infraestructura",null,"Oficina de bibliotecólogo "]
[null,null,null,"Infraestructura",null,"Depósito "]
[null,null,null,"Infraestructura",null,"Recepción"]
[null,null,null,"Infraestructura",null,"Servicios higiénicos "]
[null,null,null,"Equipo",null,"Equipo para biblioteca"]
[null,null,null,"Mobiliario",null,"Mobiliario para biblioteca"]
[null,"Centro de recursos para la ciudadanía (CREC)",null,"Infraestructura",null,"Sala de exposición permanente"]
[null,null,null,"Infraestructura",null,"Sala de exposición temporal"]
[null,null,null,"Infraestructura",null,"Laboratorio creativo"]
[null,null,null,"Infraestructura",null,"Huerto comunitario"]
[null,null,null,"Infraestructura",null,"Ambiente de preparación y expendio de alimentos"]
[null,null,null,"Infraestructura",null,"Depósito"]
[null,null,null,"Infraestructura",null,"Ambiente administrativo"]
[null,null,null,"Infraestructura",null,"Servicios higiénicos "]
[null,null,null,"Equipo",null,"Equipo para CREC"]
[null,null,null,"Mobiliario",null,"Mobiliario para CREC"]
[]
[]
[]
[]
[]
[null,"El diagnóstico de involucrados es un eje muy importante para el planteamiento del proyecto y su éxito. Identificar a otros involucrados clave, analizar cómo perciben el problema, cuáles son sus expectativas e intereses, la disposición o posibilidades de participar en cualquiera de las fases del ciclo del proyecto, posibilitará definir apropiadamente el problema, que el diseño del proyecto sea acorde con los intereses, entre otros aspectos. El análisis de otros involucrados se fundamentará en el empleo de mecanismos y/o instrumentos de recojo de información, tales como entrevistas, reuniones, talleres, entro otros (anexar las fuentes de verificación). "]
[]
[]
[]
[]
[]
[]
[]
[]
[null,"Involucrado",null,null,null,"Situación negativa percibida",null,null,"Intereses o expectativas de involucrados",null,"Estrategias del proyecto de inversión",null,null,"Acuerdos y compromisos"]
[null,"Ministerio de Cultura / Direcciones Desconcentradas de Cultura / Puntos de Cultura / Biblioteca Nacional del Perú"]
[null,"Presidencia del Consejo de Ministros / Proyecto Especial Bicentenario de la Independencia del Perú"]
[null,"Gobierno Regional"]
[null,"Gobierno Local"]
[null,"Ministerio de Comercio Exterior y Turismo"]
[null,"Ministerio del Ambiente / SERNANP"]
[null,"Ministerio de Vivienda Construcción y Saneamiento"]
[null,"Ministerio del Interior"]
[null,"Agrupaciones o asociaciones vinculadas a la cultura"]
[null,"Empresas privadas que operen en la zona de influencia"]
[null,"Población local vinculada a la actividad cultural y turística (artesanos, vendedores, guías, entre otros)"]
[null,"Visitantes (turistas / excursionistas)"]
[null,"Organizaciones Vecinales, Organizaciones sociales de base, Movimiento de cultura viva comunitaria, Colegio de Arquitectos, Red de gestores culturales, Patronatos, Voceros, personajes reconocidos del sector cultural"]
[]
[]
[]
[]
[]
[null,"PROBLEMA CENTRAL",null,null,"Población del departamento/provincia/distrito XXXX sin acceso a espacios públicos con servicios culturales para la promoción de la identidad y valores para la ciudadanía."]
[]
[null,"Causas Directas",null,null,null,"Indicador*",null,null,"Unidad de Medida",null,"Valor",null,"Fuente de Información"]
[null,"Insuficiente dotación de espacios públicos culturales."]
[null,"Insuficiente dotación de infraestructura y equipamiento de servicios culturales."]
[null,"Ineficiente gestión de servicios culturales para la promoción de identidad y valores."]
[null,"* En el caso de no existir un indicador, se deberá mostrar evidencias."]
[]
[null,"Causas Indirectas",null,null,null,"Indicador*",null,null,"Unidad de Medida",null,"Valor",null,"Fuente de Información"]
[null,"Insuficiente oferta de espacios públicos culturales con equipamiento para el intercambio y encuentro de la ciudadanía."]
[null,"Insuficiente oferta de infraestructura para el desarrollo de actividades culturales."]
[null,"Insuficiente oferta de infraestructura y equipamiento para el fomento de la lectura."]
[null,"* En el caso de no existir un indicador, se deberá mostrar evidencias."]
[]
[]
[]
[]
[null,"OBJETIVO CENTRAL",null,null,"Población del departamento/provincia/distrito XXXX con acceso a espacios públicos con servicios culturales para la promoción de la identidad y valores para la ciudadanía."]
[]
[null,"N°","MEDIOS FUNDAMENTALES",null,null,null,null,"ACTIVOS AGREGADOS",null,"ACCIONES"]
[null,1,"Adecuada oferta de espacios públicos culturales con equipamiento para el intercambio y encuentro de la ciudadanía.",null,null,null,null,"Área ecológica",null,"Construcción de Área verde"]
[null,null,null,null,null,null,null,null,null,"Construcción de Sendero"]
[null,null,null,null,null,null,null,null,null,"Adquisición de Baldosas podo táctiles"]
[null,null,null,null,null,null,null,null,null,"Construcción de Sardineles"]
[null,null,null,null,null,null,null,null,null,"Construcción de Sistema de riego"]
[null,null,null,null,null,null,null,null,null,"Adquisición de Bancas"]
[null,null,null,null,null,null,null,null,null,"Adquisición de Juegos infantiles e inclusivos"]
[null,null,null,null,null,null,null,null,null,"Adquisición de Luminarias / faroles"]
[null,null,null,null,null,null,null,"Explanada Cultural",null,"Construcción de Anfiteatro"]
[null,null,null,null,null,null,null,null,null,"Construcción de Plataforma"]
[null,null,null,null,null,null,null,null,null,"Construcción de Servicios higiénicos"]
[null,2,"Adecuada oferta de infraestructura para el desarrollo de actividades culturales.",null,null,null,null,"Centro Cultural",null,"Construcción de Auditorio"]
[null,null,null,null,null,null,null,null,null,"Construcción de Sala de Usos Múltiples"]
[null,null,null,null,null,null,null,null,null,"Construcción de Recepción "]
[null,null,null,null,null,null,null,null,null,"Construcción de Sala de Talleres"]
[null,null,null,null,null,null,null,null,null,"Construcción de Servicios higiénicos"]
[null,null,null,null,null,null,null,null,null,"Adquisición de equipo para centro cultural"]
[null,null,null,null,null,null,null,null,null,"Adquisición de mobiliario para centro cultural"]
[null,3,"Adecuada oferta infraestructura y equipamiento para el fomento de lectura.",null,null,null,null,"Biblioteca Comunitaria",null,"Construcción de Sala de Lectura"]
[null,null,null,null,null,null,null,null,null,"Construcción de Ludoteca "]
[null,null,null,null,null,null,null,null,null,"Construcción de Sala Audiovisual"]
[null,null,null,null,null,null,null,null,null,"Construcción de Oficina de bibliotecólogo "]
[null,null,null,null,null,null,null,null,null,"Construcción de Depósito "]
[null,null,null,null,null,null,null,null,null,"Construcción de Recepción "]
[null,null,null,null,null,null,null,null,null,"Construcción de Servicios higiénicos"]
[null,null,null,null,null,null,null,null,null,"Adquisición de equipo para Biblioteca "]
[null,null,null,null,null,null,null,null,null,"Adquisición de mobiliario para Biblioteca "]
[null,4,"Adecuadas salas de exhibición para promocionar la identidad y valores",null,null,null,null,"Centro de Recursos de la Ciudadania",null,"Construcción de Sala de exposición permanente "]
[null,null,null,null,null,null,null,null,null,"Construcción de Sala de exposición temporal "]
[null,null,null,null,null,null,null,null,null,"Construcción de Laboratorio creativo "]
[null,null,null,null,null,null,null,null,null,"Construcción de Huerto comunitario"]
[null,null,null,null,null,null,null,null,null,"Construcción de Ambiente de preparación y expendio de alimentos"]
[null,null,null,null,null,null,null,null,null,"Construcción de Depósito"]
[null,null,null,null,null,null,null,null,null,"Construcción de Área Administrativa"]
[null,null,null,null,null,null,null,null,null,"Construcción de Servicios higiénicos"]
[null,null,null,null,null,null,null,null,null,"Adquisición de equipo para CREC"]
[null,null,null,null,null,null,null,null,null,"Adquisición de mobiliario para CREC"]
[null,5,"Adecuada capacidad de gestión de servicios culturales",null,null,null,null,"Modelo de Gestión",null,"Implementación de capacidad organizacional"]
[null,6,"Adecuadas acciones de sensibilización para la promoción de identidad y valores con participación de la población.",null,null,null,null,"Programa de sensibilización a la ciudadanía",null,"Implementación de capacidad humana"]
[]
[]
[null,"N°","FINES DIRECTOS",null,null,null,null,"FIN ULTIMO"]
[null,1,"Incremento de la participación de la ciudadanía en actividades de interacción social y cultural",null,null,null,null,"Mejora de la identidad cultural y valores en la población"]
[null,null,"Incremento de hábito de lectura y del valor cultural de la ciudadanía"]
[]
[]
[]
[]
[]
[]
[]
[null,"La alternativa consiste en la construcción de infraestructura de Área Ecológica, Explanada Cultural, Centro de Recursos para la Ciudadanía (CREC), Centro Cultural y Biblioteca Comunitaria, además de la implementación de un modelo de gestión y programa de sensibilización a la ciudadanía. "]
[]
[]
[]
[]
[]
["3. FORMULACIÓN Y EVALUACIÓN"]
[]
[]
[]
[]
[null,false]
[]
[null,"El horizonte de evaluación se ha estandarizado de acuerdo al modelo de prestación de servicios de los Parques Culturales Bicentenario. Comprende la Fase de Ejecución más un periodo de diez (10) años de generación de beneficios o Fase de Funcionamiento"]
[]
[]
[]
[null,null,null,null,null,"Años"]
[null,"Horizonte de Ejecución",null,null,null,null,"(máximo 1.5 años)"]
[null,"Horizonte de Funcionamiento",null,null,null,null,"(máximo 10 años)"]
[]
[]
[]
[]
[]
[null,"3.2.1 Definición del servicio público"]
[]
[null,"El servicio público está referido a los servicios culturales para la participación de la población en las industrias culturales y las artes."]
[]
[]
[]
[null,"3.2.2 Estimación de la Demanda"]
[]
[null,"Estimación de la demanda (escenario sin proyecto)\nSe partirá de los datos de la población departamental/provincial/distrital, para luego estimar la población total, referencia, potencial y efectiva. Los cálculos se efectúan sobre la base de la información obtenida en el Censo Nacional de Población y Vivienda 2017, así como las proyecciones para la tasa de crecimiento."]
[]
[]
[]
[]
[]
[]
[null,"Se debe precisar los parámetros, supuestos considerados y fuentes de información, de corresponder."]
[]
[null,"Descripción  \n(escenario sin proyecto)",null,null,null,"Unidad de Medida","Año 1","Año 2","Año 3","Año 4","Año 5","Año 6","Año 7","Año 8","Año 9","Año 10"]
[null,"Servicio cultural para la participación de la población en las industrias culturales y las artes",null,null,null,"usuarios / año"]
[]
[null,"Estimación de la demanda (escenario con proyecto)\nLa estimación de la demanda en un escenario con proyecto se realizará a partir de la población total (datos de la población departamental/provincial/distrital), para luego estimar la población de referencia, potencial, efectiva y objetivo. Dichos cálculos se efectúan sobre la base del Censo Nacional de Población y Vivienda 2017, así como la tasa de crecimiento para las proyecciones respectivas."]
[]
[]
[]
[]
[]
[]
[null,"Se debe precisar los parámetros, supuestos considerados y fuentes de información, de corresponder."]
[]
[null,"Descripción \n(escenario con proyecto)",null,null,null,"Unidad de Medida","Año 1","Año 2","Año 3","Año 4","Año 5","Año 6","Año 7","Año 8","Año 9","Año 10"]
[null,"Servicio cultural para la participación de la población en las industrias culturales y las artes",null,null,null,"usuarios / año",1000,1000,1000,1000,1000,1000,1000,1000,1000,1000]
[]
[null,"La diferencia entre la demanda efectiva con y sin proyecto permitirá identificar el número de pobladores beneficiarios del Parque Cultural Bicentenario como producto de la intervención."]
[]
[null,"Descripción",null,null,null,"Unidad de Medida","Año 1","Año 2","Año 3","Año 4","Año 5","Año 6","Año 7","Año 8","Año 9","Año 10"]
[null,"Servicio cultural para la participación de la población en las industrias culturales y las artes",null,null,null,"usuarios / año",{"$f":"+G433-G421","v":1000},{"$f":"+H433-H421","v":1000},1000,1000,1000,1000,1000,1000,1000,1000]
[]
[]
[null,"3.2.3 Análisis de la Oferta"]
[]
[null,"Describir el análisis de oferta. La capacidad de oferta está de acuerdo a la capacidad de prestación de servicios culturales de cada uno de los componentes que integran un Parque Cultural Bicentenario. Cabe precisar que en los proyectos de inversión de naturaleza creación, la oferta sin proyecto es cero."]
[]
[]
[]
[]
[]
[null,"Descripción",null,null,null,"Unidad de Medida","Año 1","Año 2","Año 3","Año 4","Año 5","Año 6","Año 7","Año 8","Año 9","Año 10"]
[null,"Servicio cultural para la participación de la población en las industrias culturales y las artes",null,null,null,"usuarios / año",0,0,0,0,0,0,0,0,0,0]
[]
[]
[null,"3.2.4 Balance Oferta - Demanda"]
[]
[]
[]
[]
[]
[null,"Descripción",null,null,null,"Unidad de Medida","Año 1","Año 2","Año 3","Año 4","Año 5","Año 6","Año 7","Año 8","Año 9","Año 10"]
[null,"servicio cultural para la participación de la población en las industrias culturales y las artes",null,null,null,"usuarios / año",{"$f":"G433-G450","v":1000},1000,1000,1000,1000,1000,1000,1000,1000,1000]
[]
[]
[]
[]
[null,"3.3.1 Análisis de Tamaño"]
[]
[null,"Factores que determinan el tamaño del diseño"]
[]
[null,"Población departamental/provincial/distrital",null,null,{"$f":"P460","v":1000}]
[null,"(Último año del horizonte de funcionamiento)"]
[]
[null,"Tamaño disponible del terreno",null,null,null,"m2"]
[]
[]
[null,"Población",null,null,"Tamaño del Parque Cultural Bicentenario (*)"]
[null,"De 20,000 a 49,999 habitantes",null,null,"Escala mínima"]
[null,"De 50,000 a 99,999 habitantes",null,null,"Escala mediana"]
[null,"Mayor a 100,000 habitantes",null,null,"Escala máxima"]
[null,"(*) Ver Anexo N° 2 del Instructivo."]
[]
[null,"3.3.2 Análisis de Localización"]
[]
[null,"Factores críticos para la localización del proyecto de inversión (ver Anexo N° 4 del instructivo)"]
[]
[null,"Factores de localización",null,null,null,"Marcar los factores considerados para la localización"]
[null,"Disponibilidad de terrenos"]
[null,"Disponibilidad de servicios públicos"]
[null,"Condiciones legales e institucionales de las municipalidades"]
[null,"Área del predio"]
[null,"Titularidad del predio"]
[null,"Saneamiento físico legal"]
[null,"Ocupación del predio"]
[null,"Concesiones"]
[null,"Marco de inversión"]
[null,"Patrimonio material inmueble y disponibilidad"]
[null,"Peligros"]
[]
[null,"Análisis de las alternativas de localización (considerar el análisis para descartar opciones)"]
[]
[]
[]
[]
[]
[]
[null,"3.3.3 Análisis de Tecnología"]
[]
[null,"En función a las características climáticas y físicas del área de estudio o de influencia"]
[]
[]
[]
[]
[]
[]
[]
[]
[null,"IMPACTOS NEGATIVOS",null,null,null,null,"MEDIDAS DE MITIGACIÓN",null,null,null,"COSTO (S/)"]
[null,"Durante la Ejecución"]
[null,"Impacto 1:"]
[null,"Impacto 2:"]
[null,"…"]
[null,"Durante el Funcionamiento"]
[null,"Impacto 1:"]
[null,"Impacto 2:"]
[null,"…"]
[]
[null,"Los costos deben estar reflejados en la estructura de costos"]
[]
[]
[]
[]
[null,"3.5.1 Organización"]
[]
[null,"La ejecución de proyectos de inversión en Parques Culturales Bicentenario estará dirigida por la Unidad Ejecutora de Inversiones con la capacidad técnica, administrativa y financiera para una eficiente ejecución del proyecto. Presentar organigrama de la UEI."]
[]
[]
[]
[]
[]
[]
[]
[]
[]
[]
[]
[]
[]
[]
[]
[]
[]
[]
[]
[]
[]
[null,null,null,null,null,"Años","Meses"]
[null,"3.5.2 Plan de implementación"]
[]
[]
[null,"Actividades del Plan de Implementación",null,null,null,"Fecha ",null,"Órgano\nResponsable",null,"Periodo"]
[null,null,null,null,null,"Inicio","Fin",null,null,1,2,3,"…","n"]
[]
[null,"Expediente Técnico (ET) o Estudio Definitivo (ED)"]
[null,"Proceso de selección"]
[null,"Convocatoria"]
[null,"Integración de Bases"]
[null,"Buena Pro"]
[null,"Suscripción del Contrato"]
[null,"Elaboración del ET o ED"]
[null,"Supervisión"]
[null,"Proceso de selección"]
[null,"Convocatoria"]
[null,"Integración de Bases"]
[null,"Buena Pro"]
[null,"Suscripción del Contrato"]
[null,"Supervisión del PI"]
[null,"Ejecución "]
[null,"Proceso de selección "]
[null,"Convocatoria"]
[null,"Integración de Bases"]
[null,"Buena Pro"]
[null,"Suscripción del Contrato"]
[null,"Ejecución Contractual"]
[null,"Acción 1"]
[null,"…"]
[null,"Acción \"n\""]
[null,"Recepción"]
[null,"Liquidación física y financiera"]
[null,"Transferencia"]
[]
[null,"3.5.3 Modalidad de ejecución de proyecto"]
[]
[null,"Tipo de ejecución",null,null,null,null,"Marcar"]
[]
[null,"Administración directa"]
[null,"Administración indirecta – por contrata"]
[null,"Administración indirecta – Asociación Público Privado (APP)"]
[null,"Administración indirecta – Núcleo Ejecutor"]
[null,"Administración indirecta – Ley 29230 (Obras por Impuestos)"]
[]
[null,"3.5.4 Requerimientos institucionales y normativos en la fase de Ejecución y fase de Funcionamiento"]
[null,"(Referido a los aspectos técnicos y regulatorios que el proyecto deberá cumplir durante la fase de Ejecución)."]
[]
[null,"Condiciones previas relevantes"]
[]
[null,"Ejecución",null,null,null,null,"Marcar","Estado situacional"]
[null,"Saneamiento técnico legal"]
[null,"Factibilidad de servicios de agua, desagüe y electricidad"]
[null,"Certificado de parámetros urbanísticos"]
[null,"Cumplimiento de permisos y autorizaciones"]
[null,"Otros"]
[null,"Ejecución"]
[null,"Saneamiento técnico legal"]
[null,"Factibilidad de servicios de agua, desagüe y electricidad"]
[null,"Certificado de parámetros urbanísticos"]
[null,"Cumplimiento de permisos y autorizaciones"]
[null,"Otros"]
[]
[]
[null,"3.5.5 Modelo de gestión"]
[]
[null,"Las Unidades Formuladoras pueden enriquecer y personalizar el modelo de gestión de acuerdo al diagnóstico realizado en el área de influencia del proyecto."]
[]
[null,"Etapa1: \nDifusión y Convocatoria",null,null,"Convocar a reuniones."]
[null,null,null,null,"Conformar un Grupo Impulsor o Comité, definiendo la fórmula de organización más apropiada."]
[null,null,null,null,"Elaborar lineamientos para un plan de acción del “Parque Cultural Bicentenario”."]
[null,"Etapa 2:\nInvolucramiento y Participación",null,null,"Realizar un Mapeo / cartografía cultural"]
[null,null,null,null,"Construir e implementar las herramientas políticas para la sostenibilidad del proyecto "]
[null,null,null,null,"Diseñar un Plan de Sostenibilidad Económica que garantice la viabilidad del proyecto."]
[null,"Etapa 3:\nFortalecimiento de Capacidades",null,null,"Fortalecer los conocimientos en temas de gestión cultural "]
[null,"Etapa 4:\nActivación y Promoción de actividades Culturales",null,null,"Diseño de la agenda o programa de actividades del parque, considerando los lineamientos conceptuales que guían el diseño del parque, las actividades programadas en la Agenda Bicentenario, y los vínculos con entidades públicas y privadas."]
[]
[null,"3.5.6.  Gestión integral de los riesgos"]
[]
[null,"Tipo de riesgo (operacional, contexto de cambio climático, mercado, financiero, legal, …)",null,null,"Descripción del riesgo",null,null,"Probabilidad de ocurrencia*\n (baja, media, alta)",null,null,"Impacto\n (bajo, moderado, mayor)",null,"Medidas de mitigación"]
[]
[]
[]
[]
[null,"* Dicha probabilidad resultará de un juicio técnico sobre que tan posible es la ocurrencia del riesgo afecte el desempeño del proyecto."]
[]
[]
[]
[]
[]
[null,"3.6.1 Costos de Inversión"]
[]
[null,"NOTA: Los costos del proyecto varía de acuerdo a 3 escalas, las cuales se detallan en la pestaña Costos de Inversión."]
[]
[null,"* Como mínimo la estandarización debería abarcar productos y resultados específico y final."]
[]
[null,"Acción sobre los activos",null,null,null,null,"Tipo de Factor Productivo",null,"Unidad Física",null,null,"Dimensión Física",null,"Costo unitario","Costo total*"]
[null,"Activo agregado",null,"Naturaleza de la acción","Activos",null,null,null,"Unidad de \nmedida",null,"Cantidad","Unidad de \nmedida","Cantidad"]
[null,"Componente 1: Adecuada oferta de espacios públicos culturales con equipamiento para el intercambio y encuentro de la ciudadanía."]
[null,"1.1. Área ecológica",null,"Construcción","Área verde",null,"Infraestructura",null,"Número de estructuras físicas",null,1,"m2",30000,100,{"$f":"+M654*N654","v":3000000}]
[null,null,null,"Construcción","Sendero",null,"Infraestructura",null,"Número de estructuras físicas",null,1,"m2",6000,90,540000]
[null,null,null,"Construcción","Baldosas podo táctiles",null,"Infraestructura",null,"Número de estructuras físicas",null,1,"m2",600,120,72000]
[null,null,null,"Construcción","Sardineles",null,"Infraestructura",null,"Número de estructuras físicas",null,1,"m",8000,25,200000]
[null,null,null,"Construcción","Sistema de riego",null,"Infraestructura",null,"Número de estructuras físicas",null,1,"m2",30000,8,240000]
[null,null,null,"Adquisición","Bancas",null,"Mobiliario",null,"Número de mobiliario",null,1,null,80,750,60000]
[null,null,null,"Adquisición","Juegos infantiles e inclusivos",null,"Mobiliario",null,"Número de mobiliario",null,1,null,8,3500,28000]
[null,null,null,"Adquisición","Luminarias / faroles",null,"Mobiliario",null,"Número de mobiliario",null,1,null,80,500,40000]
[null,null,null,null,"Otros activos no estratégicos"]
[null,"1.2. Explanada Cultural",null,"Construcción","Anfiteatro",null,"Infraestructura",null,"Número de estructuras físicas",null,1,"m2",350,2000,700000]
[null,null,null,"Construcción","Plataforma",null,"Infraestructura",null,"Número de estructuras físicas",null,1,"m2",1000,350,350000]
[null,null,null,"Construcción","Servicios higiénicos",null,"Infraestructura",null,"Número de estructuras físicas",null,1,"m2",70,2845,199150]
[null,null,null,null,"Otros activos no estratégicos"]
[null,"Componente 2: Adecuada oferta de infraestructura para el desarrollo de actividades culturales."]
[null,"2.1. Centro Cultural",null,"Construcción","Auditorio",null,"Infraestructura",null,"Número de estructuras físicas",null,1,"m2",260,2845,{"$f":"+M668*N668","v":739700}]
[null,null,null,"Construcción","Sala de Usos Múltiples",null,"Infraestructura",null,"Número de estructuras físicas",null,1,"m2",120,2845,341400]
[null,null,null,"Construcción","Recepción ",null,"Infraestructura",null,"Número de estructuras físicas",null,1,"m2",100,2845,284500]
[null,null,null,"Construcción","Sala de Talleres",null,"Infraestructura",null,"Número de estructuras físicas",null,1,"m2",80,2845,227600]
[null,null,null,"Construcción","Servicios higiénicos",null,"Infraestructura",null,"Número de estructuras físicas",null,1,"m2",70,2845,199150]
[null,null,null,"Adquisición","Equipo del centro cultural",null,"Equipo",null,"Número de equipo (**)",null,null,null,null,null,0]
[null,null,null,"Adquisición","Mobiliario del centro cultural",null,"Mobiliario",null,"Número de mobiliario (**)",null,null,null,null,null,0]
[null,null,null,null,"Otros activos no estratégicos"]
[null,"Componente 3: Adecuada oferta infraestructura y equipamiento para el fomento de lectura."]
[null,"3.1. Biblioteca Comunitaria",null,"Construcción","Sala  de Lectura",null,"Infraestructura",null,"Número de estructuras físicas",null,1,"m2",160,2845,{"$f":"+M677*N677","v":455200}]
[null,null,null,"Construcción","Ludoteca ",null,"Infraestructura",null,"Número de estructuras físicas",null,1,"m2",100,2845,{"$f":"+M678*N678","v":284500}]
[null,null,null,"Construcción","Sala Audiovisual",null,"Infraestructura",null,"Número de estructuras físicas",null,1,"m2",40,2845,113800]
[null,null,null,"Construcción","Oficina de bibliotecólogo ",null,"Infraestructura",null,"Número de estructuras físicas",null,1,"m2",20,2845,56900]
[null,null,null,"Construcción","Depósito ",null,"Infraestructura",null,"Número de estructuras físicas",null,1,"m2",15,2845,42675]
[null,null,null,"Construcción","Recepción ",null,"Infraestructura",null,"Número de estructuras físicas",null,1,"m2",20,2845,56900]
[null,null,null,"Construcción","Servicios higiénicos",null,"Infraestructura",null,"Número de estructuras físicas",null,1,"m2",25,2845,71125]
[null,null,null,"Adquisición","Equipo para Biblioteca ",null,"Equipo",null,"Número de equipo (**)",null,null,null,null,null,0]
[null,null,null,"Adquisición","Mobiliario para Biblioteca ",null,"Mobiliario",null,"Número de mobiliario (**)",null,null,null,null,null,0]
[null,null,null,null,"Otros activos no estratégicos"]
[null,"Componente 4: Adecuadas salas de exhibición para promocionar la identidad y valores"]
[null,"4.1. Centro de recursos para la ciudadanía",null,"Construcción","Sala de exposición permanente ",null,"Infraestructura",null,"Número de estructuras físicas",null,1,"m2",90,2845,{"$f":"+M688*N688","v":256050}]
[null,null,null,"Construcción","Sala de exposición temporal ",null,"Infraestructura",null,"Número de estructuras físicas",null,1,"m2",90,2845,256050]
[null,null,null,"Construcción","Laboratorio creativo ",null,"Infraestructura",null,"Número de estructuras físicas",null,1,"m2",50,2845,142250]
[null,null,null,"Construcción","Huerto comunitario",null,"Infraestructura",null,"Número de estructuras físicas",null,1,"m2",50,500,25000]
[null,null,null,"Construcción","Ambiente de preparación y expendio de alimentos",null,"Infraestructura",null,"Número de estructuras físicas",null,1,"m2",130,5690,{"$f":"+M692*N692","v":739700}]
[null,null,null,"Construcción","Depósito",null,"Infraestructura",null,"Número de estructuras físicas",null,1,"m2",20,2845,56900]
[null,null,null,"Construcción","Área Administrativa",null,"Infraestructura",null,"Número de estructuras físicas",null,1,"m2",30,2845,85350]
[null,null,null,"Construcción","Servicios higiénicos",null,"Infraestructura",null,"Número de estructuras físicas",null,1,"m2",30,2845,85350]
[null,null,null,"Adquisición","Equipo para CREC",null,"Equipo",null,"Número de equipo (**)",null,null,null,null,null,0]
[null,null,null,"Adquisición","Mobiliario para CREC",null,"Mobiliario",null,"Número de mobiliario (**)",null,null,null,null,null,0]
[null,null,null,null,"Otros activos no estratégicos"]
[null,"Componente 5: Adecuada capacidad de gestión de servicios culturales"]
[null,"5.1. Modelo de gestión",null,"Implementación","Capacidad Organizacional",null,"Intangible",null,"Número de Capacidad Organizacional",null,1,"Taller",2,70000,{"$f":"+N700*M700","v":140000}]
[null,null,null,null,"Otros activos no estratégicos"]
[null,"Componente 6: Adecuadas acciones de sensibilización para la promoción de identidad y valores con participación de la población."]
[null,"6.1. Programa de sensibilización a la ciudadanía",null,"Implementación","Capacidad Humana",null,"Intangible",null,"Número de Capacidad Humana",null,1,"Conferencia",3,15000,{"$f":"+M703*N703","v":45000}]
[null,null,null,null,"Otros activos no estratégicos"]
[null,"Sub Total de costos de inversión(*)",null,null,null,null,null,null,null,null,null,null,null,null,{"$f":"SUM(O654:P666)+SUM(O668:P674)+SUM(O677:P686)+SUM(O688:P698)+SUM(O700:P701)+SUM(O703:P704)","v":10134250}]
[null,"* Puede variar de acuerdo al Numero de Hectáreas y Zona de localización."]
[null,"(*) Incluye gastos generales, utilidades y IGV"]
[null,"(**) Los costos del equipo y mobiliario se determinarán de acuerdo al requerimiento de la escala de infraestructura"]
[]
[]
[null,"COSTOS INDIRECTOS\n(forma parte del Sub total de costos de innversión)"]
[]
[null,"Costos indirectos e impuestos",null,"Costos a precios de mercado"]
[null,"Gastos generales (10%)",null,{"$f":"0.1*O705","v":1013425}]
[null,"Utilidad (5%)",null,{"$f":"0.05*O705","v":506712.5}]
[null,"IGV (18%)",null,{"$f":"0.18*O705","v":1824165}]
[null,"Subtotal",null,{"$f":"SUM(D714:E716)","v":3344302.5}]
[]
[null,"OTROS COSTOS DE INVERSIÓN"]
[]
[null,"Otros costos",null,"Costos a precios de mercado"]
[null,"Gestión del proyecto"]
[null,"Expedientes técnicos o documentos equivalentes"]
[null,"Supervisión"]
[null,"Liquidación"]
[null,"Subtotal"]
[]
[null,"MONTO TOTAL DE INVERSIÓN",null,{"$f":"+O705+D726+D717","v":13478552.5}]
[]
[null,"CRONOGRAMA DE EJECUCIÓN FINANCIERA"]
[]
[null,"Fecha prevista de inicio de ejecución:",null,null,null,"2020-05-01","(mes y año)"]
[null,"Tipo de periodo",null,null,null,"MENSUAL"]
[null,"Número de periodos (meses)",null,null,null,null,"(valor)"]
[]
[null,"Tipo de Factor de Producción (costos directos)",null,null,null,"Cronograma de ejecución",null,null,null,null,"Costo estimado de inversión a precios de mercado (Soles)"]
[null,null,null,null,null,"Mes 1","Mes 2","Mes 3","Mes 4","Mes 5"]
[null,"Infraestructura"]
[null,"Equipo"]
[null,"Mobiliario"]
[null,"Vehiculos"]
[null,"Terrenos"]
[null,"Intangibles"]
[null,"Sub total :"]
[null,"Costos indirectos e impuestos"]
[null,"Gastos generales"]
[null,"Utilidad"]
[null,"IGV"]
[null,"Sub total :"]
[null,"Otros costos"]
[null,"Gestión del proyecto"]
[null,"Expediente técnico o documentos equivalentes"]
[null,"Supervisión"]
[null,"Liquidación"]
[null,"Sub total :"]
[null,"Costo total del Proyecto :",null,null,null,null,null,null,null,null,{"$f":"K744+K749+K755","v":0}]
[]
[null,"CRONOGRAMA DE EJECUCIÓN DE METAS FÍSICAS"]
[]
[null,null,null,null,null,"Periodo",null,null,null,null,"Total meta física"]
[null,"Tipo de Factor de Producción",null,"Unidad de medida representativa",null,"MES 1","MES 2","MES 3","MES 4","MES 5"]
[null,null,null,null,null,"Meta física","Meta física","Meta física","Meta física","Meta física"]
[null,"Infraestructura"]
[null,"Equipo"]
[null,"Mobiliario"]
[null,"Vehiculos"]
[null,"Terrenos"]
[null,"Intangibles"]
[]
[null,"Nota: La unidad de medida representativa proviene de las unidades físicas, a excepción del Item de Infraestructura que proviene de las unidades de dimensión física"]
[]
[null,"3.6.2 Costos de Operación y Mantenimiento"]
[]
[null,"Ver pestaña Costos de Operación y Mantenimiento"]
[]
[null,"Costos de operación y mantenimiento (Por cada UP)"]
[]
[null,"Fecha prevista de inicio de operaciones:  (mes / año): "]
[null,"Horizonte de funcionamiento (años)",null,null,null,10]
[]
[null,"Situación",null,null,"Costo (Soles)"]
[null,null,null,null,"Año 1","Año 2","Año 3","Año 4","Año 5","Año 6","Año 7","Año 8","Año 9","Año 10"]
[null,"Sin Proyecto","Operación"]
[null,null,"Mantenimiento"]
[null,"Con Proyecto","Operación"]
[null,null,"Mantenimiento"]
[null,"Incremental","Operación"]
[null,null,"Mantenimiento"]
[null,null,"TOTAL"]
[]
[]
[]
[]
[]
[null,"Describir los beneficios intangibles del proyecto de inversión:"]
[]
[]
[]
[]
[]
[null,"3.7.1 COSTOS SOCIALES"]
[]
[null,"Transformación de precios de mercado a precios sociales"]
[]
[null," - Costos de inversión a precios sociales"]
[]
[null,"Ver pestaña Costos a Precios Sociales"]
[]
[null,"Componentes / Rubros",null,null,null,null,null,null,"Costo total a precios de mercado",null,null,"Composición Porcentual",null,"Factor de corrección* ","Costo a precios sociales "]
[null,"Adecuada oferta de espacios públicos culturales con equipamiento para el intercambio y encuentro de la ciudadanía.",null,null,null,null,null,null,{"$f":"+'Costo a Precios Sociales'!C8","v":5429150},null,null,null,null,null,{"$f":"SUM(O811:P816)","v":4121343.8099999991}]
[null,"Bienes Transables**",null,null,null,null,null,null,{"$f":"+'Costo a Precios Sociales'!C10+'Costo a Precios Sociales'!C17+'Costo a Precios Sociales'!C24+'Costo a Precios Sociales'!C31+'Costo a Precios Sociales'!C38+'Costo a Precios Sociales'!C45+'Costo a Precios Sociales'!C52+'Costo a Precios Sociales'!C59+'Costo a Precios Sociales'!C66+'Costo a Precios Sociales'!C73+'Costo a Precios Sociales'!C80","v":106023},null,null,{"$f":"I811/$I$810","v":1.9528471307663262E-2},null,1.08,{"$f":"+'Costo a Precios Sociales'!F10+'Costo a Precios Sociales'!F17+'Costo a Precios Sociales'!F24+'Costo a Precios Sociales'!F31+'Costo a Precios Sociales'!F38+'Costo a Precios Sociales'!F45+'Costo a Precios Sociales'!F52+'Costo a Precios Sociales'!F59+'Costo a Precios Sociales'!F66+'Costo a Precios Sociales'!F73+'Costo a Precios Sociales'!F80","v":114504.84}]
[null,"Bienes no transables",null,null,null,null,null,null,{"$f":"+'Costo a Precios Sociales'!C11+'Costo a Precios Sociales'!C18+'Costo a Precios Sociales'!C25+'Costo a Precios Sociales'!C32+'Costo a Precios Sociales'!C39+'Costo a Precios Sociales'!C46+'Costo a Precios Sociales'!C53+'Costo a Precios Sociales'!C60+'Costo a Precios Sociales'!C67+'Costo a Precios Sociales'!C74+'Costo a Precios Sociales'!C81","v":3283090},null,null,{"$f":"I812/$I$810","v":0.6047152869233674},null,0.84699999999999998,{"$f":"+'Costo a Precios Sociales'!F11+'Costo a Precios Sociales'!F18+'Costo a Precios Sociales'!F25+'Costo a Precios Sociales'!F32+'Costo a Precios Sociales'!F39+'Costo a Precios Sociales'!F46+'Costo a Precios Sociales'!F53+'Costo a Precios Sociales'!F60+'Costo a Precios Sociales'!F67+'Costo a Precios Sociales'!F74+'Costo a Precios Sociales'!F81","v":2780777.2299999995}]
[null,"Mano de obra calificada",null,null,null,null,null,null,{"$f":"+'Costo a Precios Sociales'!C12+'Costo a Precios Sociales'!C19+'Costo a Precios Sociales'!C26+'Costo a Precios Sociales'!C33+'Costo a Precios Sociales'!C40+'Costo a Precios Sociales'!C47+'Costo a Precios Sociales'!C54+'Costo a Precios Sociales'!C61+'Costo a Precios Sociales'!C68+'Costo a Precios Sociales'!C75+'Costo a Precios Sociales'!C82","v":549315},null,null,{"$f":"I813/$I$810","v":0.10117882173084185},null,0.8,{"$f":"+'Costo a Precios Sociales'!F12+'Costo a Precios Sociales'!F19+'Costo a Precios Sociales'!F26+'Costo a Precios Sociales'!F33+'Costo a Precios Sociales'!F40+'Costo a Precios Sociales'!F47+'Costo a Precios Sociales'!F54+'Costo a Precios Sociales'!F61+'Costo a Precios Sociales'!F68+'Costo a Precios Sociales'!F75+'Costo a Precios Sociales'!F82","v":439452}]
[null,"Mano de obra no calificada***",null,null,null,null,null,null,{"$f":"+'Costo a Precios Sociales'!C13+'Costo a Precios Sociales'!C20+'Costo a Precios Sociales'!C27+'Costo a Precios Sociales'!C34+'Costo a Precios Sociales'!C41+'Costo a Precios Sociales'!C48+'Costo a Precios Sociales'!C55+'Costo a Precios Sociales'!C62+'Costo a Precios Sociales'!C69+'Costo a Precios Sociales'!C76+'Costo a Precios Sociales'!C83","v":954207},null,null,0.17575624176896937,null,0.62,{"$f":"+'Costo a Precios Sociales'!F13+'Costo a Precios Sociales'!F20+'Costo a Precios Sociales'!F27+'Costo a Precios Sociales'!F34+'Costo a Precios Sociales'!F41+'Costo a Precios Sociales'!F48+'Costo a Precios Sociales'!F55+'Costo a Precios Sociales'!F62+'Costo a Precios Sociales'!F69+'Costo a Precios Sociales'!F76+'Costo a Precios Sociales'!F83","v":591608.34}]
[null,"Mano de obra semicalificada",null,null,null,null,null,null,{"$f":"+'Costo a Precios Sociales'!C14+'Costo a Precios Sociales'!C21+'Costo a Precios Sociales'!C28+'Costo a Precios Sociales'!C35+'Costo a Precios Sociales'!C42+'Costo a Precios Sociales'!C49+'Costo a Precios Sociales'!C56+'Costo a Precios Sociales'!C63+'Costo a Precios Sociales'!C70+'Costo a Precios Sociales'!C77+'Costo a Precios Sociales'!C84","v":271457.5},null,null,0.05,null,0.65,{"$f":"+'Costo a Precios Sociales'!F14+'Costo a Precios Sociales'!F21+'Costo a Precios Sociales'!F28+'Costo a Precios Sociales'!F35+'Costo a Precios Sociales'!F42+'Costo a Precios Sociales'!F49+'Costo a Precios Sociales'!F56+'Costo a Precios Sociales'!F63+'Costo a Precios Sociales'!F70+'Costo a Precios Sociales'!F77+'Costo a Precios Sociales'!F84","v":176447.375}]
[null,"Combustibles (Diesel)",null,null,null,null,null,null,{"$f":"+'Costo a Precios Sociales'!C15+'Costo a Precios Sociales'!C22+'Costo a Precios Sociales'!C29+'Costo a Precios Sociales'!C36+'Costo a Precios Sociales'!C43+'Costo a Precios Sociales'!C50+'Costo a Precios Sociales'!C57+'Costo a Precios Sociales'!C64+'Costo a Precios Sociales'!C71+'Costo a Precios Sociales'!C78+'Costo a Precios Sociales'!C85","v":265057.5},null,null,4.8821178269158154E-2,null,7.0000000000000007E-2,{"$f":"+'Costo a Precios Sociales'!F15+'Costo a Precios Sociales'!F22+'Costo a Precios Sociales'!F29+'Costo a Precios Sociales'!F36+'Costo a Precios Sociales'!F43+'Costo a Precios Sociales'!F50+'Costo a Precios Sociales'!F57+'Costo a Precios Sociales'!F64+'Costo a Precios Sociales'!F71+'Costo a Precios Sociales'!F78+'Costo a Precios Sociales'!F85","v":18554.025000000005}]
[null,"Adecuada oferta de infraestructura para el desarrollo de actividades culturales.",null,null,null,null,null,null,{"$f":"+'Costo a Precios Sociales'!C86","v":1792350},null,null,null,null,null,{"$f":"+'Costo a Precios Sociales'!F86","v":1357525.89}]
[null,"Bienes Transables**",null,null,null,null,null,null,{"$f":"+'Costo a Precios Sociales'!C88+'Costo a Precios Sociales'!C95+'Costo a Precios Sociales'!C102+'Costo a Precios Sociales'!C109+'Costo a Precios Sociales'!C116+'Costo a Precios Sociales'!C123+'Costo a Precios Sociales'!C130","v":35847},null,null,{"$f":"I818/$I$817","v":0.02},null,1.08,{"$f":"+'Costo a Precios Sociales'!F88+'Costo a Precios Sociales'!F95+'Costo a Precios Sociales'!F102+'Costo a Precios Sociales'!F109+'Costo a Precios Sociales'!F116+'Costo a Precios Sociales'!F123+'Costo a Precios Sociales'!F130","v":38714.76}]
[null,"Bienes no transables",null,null,null,null,null,null,{"$f":"+'Costo a Precios Sociales'!C89+'Costo a Precios Sociales'!C96+'Costo a Precios Sociales'!C103+'Costo a Precios Sociales'!C110+'Costo a Precios Sociales'!C117+'Costo a Precios Sociales'!C124+'Costo a Precios Sociales'!C131","v":1075410},null,null,{"$f":"I819/$I$817","v":0.6},null,0.84699999999999998,{"$f":"+'Costo a Precios Sociales'!F89+'Costo a Precios Sociales'!F96+'Costo a Precios Sociales'!F103+'Costo a Precios Sociales'!F110+'Costo a Precios Sociales'!F117+'Costo a Precios Sociales'!F124+'Costo a Precios Sociales'!F131","v":910872.27}]
[null,"Mano de obra calificada",null,null,null,null,null,null,{"$f":"+'Costo a Precios Sociales'!C90+'Costo a Precios Sociales'!C97+'Costo a Precios Sociales'!C104+'Costo a Precios Sociales'!C111+'Costo a Precios Sociales'!C118+'Costo a Precios Sociales'!C125+'Costo a Precios Sociales'!C132","v":179235},null,null,0.1,null,0.8,{"$f":"+'Costo a Precios Sociales'!F90+'Costo a Precios Sociales'!F97+'Costo a Precios Sociales'!F104+'Costo a Precios Sociales'!F111+'Costo a Precios Sociales'!F118+'Costo a Precios Sociales'!F125+'Costo a Precios Sociales'!F132","v":143388}]
[null,"Mano de obra no calificada***",null,null,null,null,null,null,{"$f":"+'Costo a Precios Sociales'!C91+'Costo a Precios Sociales'!C98+'Costo a Precios Sociales'!C105+'Costo a Precios Sociales'!C112+'Costo a Precios Sociales'!C119+'Costo a Precios Sociales'!C126+'Costo a Precios Sociales'!C133","v":322623},null,null,0.18,null,0.62,{"$f":"+'Costo a Precios Sociales'!F91+'Costo a Precios Sociales'!F98+'Costo a Precios Sociales'!F105+'Costo a Precios Sociales'!F112+'Costo a Precios Sociales'!F119+'Costo a Precios Sociales'!F126+'Costo a Precios Sociales'!F133","v":200026.26}]
[null,"Mano de obra semicalificada",null,null,null,null,null,null,{"$f":"+'Costo a Precios Sociales'!C92+'Costo a Precios Sociales'!C99+'Costo a Precios Sociales'!C106+'Costo a Precios Sociales'!C113+'Costo a Precios Sociales'!C120+'Costo a Precios Sociales'!C127+'Costo a Precios Sociales'!C134","v":89617.5},null,null,0.05,null,0.65,{"$f":"+'Costo a Precios Sociales'!F92+'Costo a Precios Sociales'!F99+'Costo a Precios Sociales'!F106+'Costo a Precios Sociales'!F113+'Costo a Precios Sociales'!F120+'Costo a Precios Sociales'!F127+'Costo a Precios Sociales'!F134","v":58251.375}]
[null,"Combustibles (Diesel)",null,null,null,null,null,null,{"$f":"+'Costo a Precios Sociales'!C93+'Costo a Precios Sociales'!C100+'Costo a Precios Sociales'!C107+'Costo a Precios Sociales'!C114+'Costo a Precios Sociales'!C121+'Costo a Precios Sociales'!C128+'Costo a Precios Sociales'!C135","v":89617.5},null,null,0.05,null,7.0000000000000007E-2,{"$f":"+'Costo a Precios Sociales'!F93+'Costo a Precios Sociales'!F100+'Costo a Precios Sociales'!F107+'Costo a Precios Sociales'!F114+'Costo a Precios Sociales'!F121+'Costo a Precios Sociales'!F128+'Costo a Precios Sociales'!F135","v":6273.2250000000004}]
[null,"Adecuada oferta infraestructura y equipamiento para el fomento de lectura.",null,null,null,null,null,null,{"$f":"+'Costo a Precios Sociales'!C136","v":1081100},null,null,null,null,null,{"$f":"+'Costo a Precios Sociales'!F136","v":818825.1399999999}]
[null,"Bienes Transables**",null,null,null,null,null,null,{"$f":"+'Costo a Precios Sociales'!C138+'Costo a Precios Sociales'!C145+'Costo a Precios Sociales'!C152+'Costo a Precios Sociales'!C159+'Costo a Precios Sociales'!C166+'Costo a Precios Sociales'!C173+'Costo a Precios Sociales'!C180+'Costo a Precios Sociales'!C187+'Costo a Precios Sociales'!C194","v":21622},null,null,{"$f":"I825/$I$824","v":0.02},null,1.08,{"$f":"+'Costo a Precios Sociales'!F138+'Costo a Precios Sociales'!F145+'Costo a Precios Sociales'!F152+'Costo a Precios Sociales'!F159+'Costo a Precios Sociales'!F166+'Costo a Precios Sociales'!F173+'Costo a Precios Sociales'!F180+'Costo a Precios Sociales'!F187+'Costo a Precios Sociales'!F194","v":23351.760000000002}]
[null,"Bienes no transables",null,null,null,null,null,null,{"$f":"+'Costo a Precios Sociales'!C139+'Costo a Precios Sociales'!C146+'Costo a Precios Sociales'!C153+'Costo a Precios Sociales'!C160+'Costo a Precios Sociales'!C167+'Costo a Precios Sociales'!C174+'Costo a Precios Sociales'!C181+'Costo a Precios Sociales'!C188+'Costo a Precios Sociales'!C195","v":648660},null,null,{"$f":"I826/$I$824","v":0.6},null,0.84699999999999998,{"$f":"+'Costo a Precios Sociales'!F139+'Costo a Precios Sociales'!F146+'Costo a Precios Sociales'!F153+'Costo a Precios Sociales'!F160+'Costo a Precios Sociales'!F167+'Costo a Precios Sociales'!F174+'Costo a Precios Sociales'!F181+'Costo a Precios Sociales'!F188+'Costo a Precios Sociales'!F195","v":549415.02}]
[null,"Mano de obra calificada",null,null,null,null,null,null,{"$f":"+'Costo a Precios Sociales'!C140+'Costo a Precios Sociales'!C147+'Costo a Precios Sociales'!C154+'Costo a Precios Sociales'!C161+'Costo a Precios Sociales'!C168+'Costo a Precios Sociales'!C175+'Costo a Precios Sociales'!C182+'Costo a Precios Sociales'!C189+'Costo a Precios Sociales'!C196","v":108110},null,null,0.1,null,0.8,{"$f":"+'Costo a Precios Sociales'!F140+'Costo a Precios Sociales'!F147+'Costo a Precios Sociales'!F154+'Costo a Precios Sociales'!F161+'Costo a Precios Sociales'!F168+'Costo a Precios Sociales'!F175+'Costo a Precios Sociales'!F182+'Costo a Precios Sociales'!F189+'Costo a Precios Sociales'!F196","v":86488}]
[null,"Mano de obra no calificada***",null,null,null,null,null,null,{"$f":"+'Costo a Precios Sociales'!C141+'Costo a Precios Sociales'!C148+'Costo a Precios Sociales'!C155+'Costo a Precios Sociales'!C162+'Costo a Precios Sociales'!C169+'Costo a Precios Sociales'!C176+'Costo a Precios Sociales'!C183+'Costo a Precios Sociales'!C190+'Costo a Precios Sociales'!C197","v":194598},null,null,0.18,null,0.62,{"$f":"+'Costo a Precios Sociales'!F141+'Costo a Precios Sociales'!F148+'Costo a Precios Sociales'!F155+'Costo a Precios Sociales'!F162+'Costo a Precios Sociales'!F169+'Costo a Precios Sociales'!F176+'Costo a Precios Sociales'!F183+'Costo a Precios Sociales'!F190+'Costo a Precios Sociales'!F197","v":120650.76}]
[null,"Mano de obra semicalificada",null,null,null,null,null,null,{"$f":"+'Costo a Precios Sociales'!C142+'Costo a Precios Sociales'!C149+'Costo a Precios Sociales'!C156+'Costo a Precios Sociales'!C163+'Costo a Precios Sociales'!C170+'Costo a Precios Sociales'!C177+'Costo a Precios Sociales'!C184+'Costo a Precios Sociales'!C191+'Costo a Precios Sociales'!C198","v":54055},null,null,0.05,null,0.65,{"$f":"+'Costo a Precios Sociales'!F142+'Costo a Precios Sociales'!F149+'Costo a Precios Sociales'!F156+'Costo a Precios Sociales'!F163+'Costo a Precios Sociales'!F170+'Costo a Precios Sociales'!F177+'Costo a Precios Sociales'!F184+'Costo a Precios Sociales'!F191+'Costo a Precios Sociales'!F198","v":35135.75}]
[null,"Combustibles (Diesel)",null,null,null,null,null,null,{"$f":"+'Costo a Precios Sociales'!C143+'Costo a Precios Sociales'!C150+'Costo a Precios Sociales'!C157+'Costo a Precios Sociales'!C164+'Costo a Precios Sociales'!C171+'Costo a Precios Sociales'!C178+'Costo a Precios Sociales'!C185+'Costo a Precios Sociales'!C192+'Costo a Precios Sociales'!C199","v":54055},null,null,0.05,null,7.0000000000000007E-2,{"$f":"+'Costo a Precios Sociales'!F143+'Costo a Precios Sociales'!F150+'Costo a Precios Sociales'!F157+'Costo a Precios Sociales'!F164+'Costo a Precios Sociales'!F171+'Costo a Precios Sociales'!F178+'Costo a Precios Sociales'!F185+'Costo a Precios Sociales'!F192+'Costo a Precios Sociales'!F199","v":3783.8500000000008}]
[null,"Adecuadas salas de exhibición para promocionar la identidad y valores",null,null,null,null,null,null,{"$f":"+'Costo a Precios Sociales'!C200","v":1646650},null,null,null,null,null,{"$f":"+'Costo a Precios Sociales'!F200","v":1247172.7100000002}]
[null,"Bienes Transables**",null,null,null,null,null,null,{"$f":"+'Costo a Precios Sociales'!C202+'Costo a Precios Sociales'!C209+'Costo a Precios Sociales'!C216+'Costo a Precios Sociales'!C223+'Costo a Precios Sociales'!C230+'Costo a Precios Sociales'!C237+'Costo a Precios Sociales'!C244+'Costo a Precios Sociales'!C251+'Costo a Precios Sociales'!C258+'Costo a Precios Sociales'!C265","v":32933},null,null,{"$f":"I832/$I$831","v":0.02},null,1.08,{"$f":"+'Costo a Precios Sociales'!F202+'Costo a Precios Sociales'!F209+'Costo a Precios Sociales'!F216+'Costo a Precios Sociales'!F223+'Costo a Precios Sociales'!F230+'Costo a Precios Sociales'!F237+'Costo a Precios Sociales'!F244+'Costo a Precios Sociales'!F251+'Costo a Precios Sociales'!F258+'Costo a Precios Sociales'!F265","v":35567.64}]
[null,"Bienes no transables",null,null,null,null,null,null,{"$f":"+'Costo a Precios Sociales'!C203+'Costo a Precios Sociales'!C210+'Costo a Precios Sociales'!C217+'Costo a Precios Sociales'!C224+'Costo a Precios Sociales'!C231+'Costo a Precios Sociales'!C238+'Costo a Precios Sociales'!C245+'Costo a Precios Sociales'!C252+'Costo a Precios Sociales'!C259+'Costo a Precios Sociales'!C266","v":987990},null,null,{"$f":"I833/$I$831","v":0.6},null,0.84699999999999998,{"$f":"+'Costo a Precios Sociales'!F203+'Costo a Precios Sociales'!F210+'Costo a Precios Sociales'!F217+'Costo a Precios Sociales'!F224+'Costo a Precios Sociales'!F231+'Costo a Precios Sociales'!F238+'Costo a Precios Sociales'!F245+'Costo a Precios Sociales'!F252+'Costo a Precios Sociales'!F259+'Costo a Precios Sociales'!F266","v":836827.52999999991}]
[null,"Mano de obra calificada",null,null,null,null,null,null,{"$f":"+'Costo a Precios Sociales'!C204+'Costo a Precios Sociales'!C211+'Costo a Precios Sociales'!C218+'Costo a Precios Sociales'!C225+'Costo a Precios Sociales'!C232+'Costo a Precios Sociales'!C239+'Costo a Precios Sociales'!C246+'Costo a Precios Sociales'!C253+'Costo a Precios Sociales'!C260+'Costo a Precios Sociales'!C267","v":164665},null,null,0.1,null,0.8,{"$f":"+'Costo a Precios Sociales'!F204+'Costo a Precios Sociales'!F211+'Costo a Precios Sociales'!F218+'Costo a Precios Sociales'!F225+'Costo a Precios Sociales'!F232+'Costo a Precios Sociales'!F239+'Costo a Precios Sociales'!F246+'Costo a Precios Sociales'!F253+'Costo a Precios Sociales'!F260+'Costo a Precios Sociales'!F267","v":131732}]
[null,"Mano de obra no calificada***",null,null,null,null,null,null,{"$f":"+'Costo a Precios Sociales'!C205+'Costo a Precios Sociales'!C212+'Costo a Precios Sociales'!C219+'Costo a Precios Sociales'!C226+'Costo a Precios Sociales'!C233+'Costo a Precios Sociales'!C240+'Costo a Precios Sociales'!C247+'Costo a Precios Sociales'!C254+'Costo a Precios Sociales'!C261+'Costo a Precios Sociales'!C268","v":296397},null,null,0.18,null,0.62,{"$f":"+'Costo a Precios Sociales'!F205+'Costo a Precios Sociales'!F212+'Costo a Precios Sociales'!F219+'Costo a Precios Sociales'!F226+'Costo a Precios Sociales'!F233+'Costo a Precios Sociales'!F240+'Costo a Precios Sociales'!F247+'Costo a Precios Sociales'!F254+'Costo a Precios Sociales'!F261+'Costo a Precios Sociales'!F268","v":183766.14}]
[null,"Mano de obra semicalificada",null,null,null,null,null,null,{"$f":"+'Costo a Precios Sociales'!C206+'Costo a Precios Sociales'!C213+'Costo a Precios Sociales'!C220+'Costo a Precios Sociales'!C227+'Costo a Precios Sociales'!C234+'Costo a Precios Sociales'!C241+'Costo a Precios Sociales'!C248+'Costo a Precios Sociales'!C255+'Costo a Precios Sociales'!C262+'Costo a Precios Sociales'!C269","v":82332.5},null,null,0.05,null,0.65,{"$f":"+'Costo a Precios Sociales'!F206+'Costo a Precios Sociales'!F213+'Costo a Precios Sociales'!F220+'Costo a Precios Sociales'!F227+'Costo a Precios Sociales'!F234+'Costo a Precios Sociales'!F241+'Costo a Precios Sociales'!F248+'Costo a Precios Sociales'!F255+'Costo a Precios Sociales'!F262+'Costo a Precios Sociales'!F269","v":53516.125}]
[null,"Combustibles (Diesel)",null,null,null,null,null,null,{"$f":"+'Costo a Precios Sociales'!C207+'Costo a Precios Sociales'!C214+'Costo a Precios Sociales'!C221+'Costo a Precios Sociales'!C228+'Costo a Precios Sociales'!C235+'Costo a Precios Sociales'!C242+'Costo a Precios Sociales'!C249+'Costo a Precios Sociales'!C256+'Costo a Precios Sociales'!C263+'Costo a Precios Sociales'!C270","v":82332.5},null,null,0.05,null,7.0000000000000007E-2,{"$f":"+'Costo a Precios Sociales'!F207+'Costo a Precios Sociales'!F214+'Costo a Precios Sociales'!F221+'Costo a Precios Sociales'!F228+'Costo a Precios Sociales'!F235+'Costo a Precios Sociales'!F242+'Costo a Precios Sociales'!F249+'Costo a Precios Sociales'!F256+'Costo a Precios Sociales'!F263+'Costo a Precios Sociales'!F270","v":5763.2750000000015}]
[null,"Adecuada capacidad de gestión de servicios culturales",null,null,null,null,null,null,{"$f":"+'Costo a Precios Sociales'!C271","v":140000},null,null,null,null,null,{"$f":"+'Costo a Precios Sociales'!F271","v":112000}]
[null,"Bienes Transables**",null,null,null,null,null,null,{"$f":"+'Costo a Precios Sociales'!C273","v":0},null,null,{"$f":"I839/$I$838","v":0},null,1.08,{"$f":"+'Costo a Precios Sociales'!F273","v":0}]
[null,"Bienes no transables",null,null,null,null,null,null,{"$f":"+'Costo a Precios Sociales'!C274","v":0},null,null,{"$f":"I840/$I$838","v":0},null,0.84699999999999998,{"$f":"+'Costo a Precios Sociales'!F274","v":0}]
[null,"Mano de obra calificada",null,null,null,null,null,null,{"$f":"+'Costo a Precios Sociales'!C275","v":140000},null,null,1,null,0.8,{"$f":"+'Costo a Precios Sociales'!F275","v":112000}]
[null,"Mano de obra no calificada***",null,null,null,null,null,null,{"$f":"+'Costo a Precios Sociales'!C276","v":0},null,null,0,null,0.62,{"$f":"+'Costo a Precios Sociales'!F276","v":0}]
[null,"Mano de obra semicalificada",null,null,null,null,null,null,{"$f":"+'Costo a Precios Sociales'!C277","v":0},null,null,0,null,0.65,{"$f":"+'Costo a Precios Sociales'!F277","v":0}]
[null,"Combustibles (Diesel)",null,null,null,null,null,null,{"$f":"+'Costo a Precios Sociales'!C278","v":0},null,null,0,null,7.0000000000000007E-2,{"$f":"+'Costo a Precios Sociales'!F278","v":0}]
[null,"Adecuadas acciones de sensibilización para la promoción de identidad y valores con participación de la población.",null,null,null,null,null,null,{"$f":"+'Costo a Precios Sociales'!C279","v":45000},null,null,null,null,null,{"$f":"+'Costo a Precios Sociales'!F279","v":36000}]
[null,"Bienes Transables**",null,null,null,null,null,null,{"$f":"+'Costo a Precios Sociales'!C281","v":0},null,null,{"$f":"I846/$I$845","v":0},null,1.08,{"$f":"+'Costo a Precios Sociales'!F281","v":0}]
[null,"Bienes no transables",null,null,null,null,null,null,{"$f":"+'Costo a Precios Sociales'!C282","v":0},null,null,{"$f":"I847/$I$845","v":0},null,0.84699999999999998,{"$f":"+'Costo a Precios Sociales'!F282","v":0}]
[null,"Mano de obra calificada",null,null,null,null,null,null,{"$f":"+'Costo a Precios Sociales'!C283","v":45000},null,null,1,null,0.8,{"$f":"+'Costo a Precios Sociales'!F283","v":36000}]
[null,"Mano de obra no calificada***",null,null,null,null,null,null,{"$f":"+'Costo a Precios Sociales'!C284","v":0},null,null,0,null,0.62,{"$f":"+'Costo a Precios Sociales'!F284","v":0}]
[null,"Mano de obra semicalificada",null,null,null,null,null,null,{"$f":"+'Costo a Precios Sociales'!C285","v":0},null,null,0,null,0.65,{"$f":"+'Costo a Precios Sociales'!F285","v":0}]
[null,"Combustibles (Diesel)",null,null,null,null,null,null,{"$f":"+'Costo a Precios Sociales'!C286","v":0},null,null,0,null,7.0000000000000007E-2,{"$f":"+'Costo a Precios Sociales'!F286","v":0}]
[]
[null,"Gestión del proyecto (5%)",null,null,null,null,null,null,null,null,null,null,null,{"$f":"1/1.18","v":0.84745762711864414}]
[null,"Expediente técnico (3%)",null,null,null,null,null,null,null,null,null,null,null,{"$f":"1/1.18","v":0.84745762711864414}]
[null,"Supervisión (6%)",null,null,null,null,null,null,null,null,null,null,null,{"$f":"1/1.18","v":0.84745762711864414}]
[null,"Liquidación (1%)",null,null,null,null,null,null,null,null,null,null,null,{"$f":"1/1.18","v":0.84745762711864414}]
[null,"Total",null,null,null,null,null,null,{"$f":"+I810+I817+I824+I831+I838+I845+I853+I854+I855+I856","v":10134250},null,null,null,null,null,{"$f":"+O810+O817+O824+O831+O838+O845+O853+O854+O855+O856","v":7692867.5499999989}]
[null,"* Según corresponda "]
[null,"** El valor asignado dependerá si el bien es exportado o importado."]
[null,"*** Este valor dependerá de la región geográfica y la zona que corresponda (urbano/rural)"]
[]
[null,"- Costos de operación y mantenimiento a precios sociales"]
[]
[null,null,null,null,"Costo total a precios de mercado",null,"Composición Porcentual",null,"Factor de corrección ","Costo a precios sociales "]
[null,"Costos de operación incremental",null,null,{"$f":"+E866+E870+E877+E884","v":351600},null,null,null,null,{"$f":"+J866+J870+J877+J884","v":283159.32203389832}]
[null,"Personal",null,null,{"$f":"SUM(E867:F869)","v":312000},null,null,null,null,{"$f":"SUM(J867:K869)","v":249600}]
[null,"Mano de obra calificada",null,null,{"$f":"SUM('Costo Operación y Mantenimiento'!E27:E38)","v":312000},null,1,null,0.8,{"$f":"+($E$866*G867)*I867","v":249600}]
[null,"Mano de obra semicalificada"]
[null,"Mano de obra no calificada"]
[null,"Bienes",null,null,{"$f":"SUM(E871:F876)","v":26400},null,null,null,null,{"$f":"SUM(J871:K876)","v":22372.881355932204}]
[null,"Insumo no transable",null,null,{"$f":"SUM('Costo Operación y Mantenimiento'!E39:E40)","v":26400},null,1,null,{"$f":"1/1.18","v":0.84745762711864414},{"$f":"+($E$870*G871)*I871","v":22372.881355932204}]
[null,"Insumo transable "]
[null,"Mano de obra calificada",null,null,null,null,null,null,1]
[null,"Mano de obra semicalificada"]
[null,"Mano de obra no calificada"]
[null,"Combustibles"]
[null,"Servicios",null,null,{"$f":"SUM(E878:F883)","v":13200},null,null,null,null,{"$f":"SUM(J878:K883)","v":11186.440677966102}]
[null,"Insumo no transable",null,null,{"$f":"SUM('Costo Operación y Mantenimiento'!E41:E43)","v":13200},null,1,null,{"$f":"1/1.18","v":0.84745762711864414},{"$f":"+($E$877*G878)*I878","v":11186.440677966102}]
[null,"Insumo transable "]
[null,"Mano de obra calificada",null,null,null,null,null,null,1]
[null,"Mano de obra semicalificada"]
[null,"Mano de obra no calificada"]
[null,"Combustibles"]
[null,"Otros",null,null,{"$f":"SUM(E885:F890)","v":0},null,null,null,null,{"$f":"SUM(J885:K890)","v":0}]
[null,"Insumo no transable",null,null,null,null,null,null,{"$f":"1/1.18","v":0.84745762711864414},{"$f":"+($E$884*G885)*I885","v":0}]
[null,"Insumo transable "]
[null,"Mano de obra calificada",null,null,null,null,null,null,1]
[null,"Mano de obra semicalificada"]
[null,"Mano de obra no calificada"]
[null,"Combustibles"]
[null,"Costos de mantenimiento incremental",null,null,{"$f":"+E892","v":13800},null,null,null,null,{"$f":"+J892","v":11498.440677966102}]
[null,"Actividades de mantenimiento en general",null,null,{"$f":"SUM(E893:F898)","v":13800},null,null,null,null,{"$f":"SUM(J893:K898)","v":11498.440677966102}]
[null,"Insumo no transable",null,null,{"$f":"+'Costo Operación y Mantenimiento'!D58*0.7","v":9660},null,{"$f":"+E893/$E$892","v":0.7},null,{"$f":"1/1.18","v":0.84745762711864414},{"$f":"+($E$892*G893)*I893","v":8186.4406779661022}]
[null,"Insumo transable "]
[null,"Mano de obra calificada",null,null,{"$f":"+'Costo Operación y Mantenimiento'!E58*0.3","v":4140},null,{"$f":"+E895/$E$892","v":0.3},null,0.8,{"$f":"+($E$892*G895)*I895","v":3312}]
[null,"Mano de obra semicalificada"]
[null,"Mano de obra no calificada"]
[null,"Combustibles"]
[null,"COSTO TOTAL",null,null,{"$f":"+E865+E891","v":365400},null,null,null,null,{"$f":"+J865+J891","v":294657.76271186443}]
[]
[null,"3.7.2 FLUJO DE BENEFICIOS Y COSTOS A PRECIOS SOCIALES (EVALUACIÓN SOCIAL) ALTERNATIVA TÉCNICA N°__"]
[]
[null,"Años",null,0,1,2,3,4,5,6,7,8,9,10]
[null,"I. Costos de inversión, operación y mantenimiento (-) a precios sociales"]
[null,"1. Costos de inversión",null,{"$f":"+O857","v":7692867.5499999989}]
[null,"2. Costos de reinversión"]
[null,"3. Costos de operación incremental",null,null,{"$f":"+J865","v":283159.32203389832},{"$f":"+E907","v":283159.32203389832},{"$f":"+F907","v":283159.32203389832},283159.32203389832,283159.32203389832,283159.32203389832,283159.32203389832,283159.32203389832,283159.32203389832,283159.32203389832]
[null,"4. Costos de mantenimiento incremental",null,null,{"$f":"+J891","v":11498.440677966102},{"$f":"+E908","v":11498.440677966102},{"$f":"+F908","v":11498.440677966102},11498.440677966102,11498.440677966102,11498.440677966102,11498.440677966102,11498.440677966102,11498.440677966102,11498.440677966102]
[null,"Flujo Total de Costos",null,{"$f":"SUM(D905:D908)","v":7692867.5499999989},{"$f":"SUM(E905:E908)","v":294657.76271186443},294657.76271186443,294657.76271186443,294657.76271186443,294657.76271186443,294657.76271186443,294657.76271186443,294657.76271186443,294657.76271186443,294657.76271186443]
[]
[]
[]
[]
[null,"INDICADORES DE RENTABILIDAD SOCIAL"]
[]
[null,"Indicador de efectividad y/o eficacia",null,null,null,{"$f":"SUM(G460:P460)","v":10000},"valor (*)"]
[null,"Tasa de Descuento",null,null,null,0.08]
[]
[null,"(*)Población que visitarán en el horizonte de evaluacion del proyecto al Parque Cultural Bicentenario "]
[]
[null,"Tipo","Criterio de elección",null,null,"Alternativa Única"]
[]
[null,"Costo / Eficiencia*","Valor Actual de los Costos Sociales (VACS)",null,null,{"$f":"+NPV(F917,E909:N909)+D909","v":9670045.1226265803}]
[null,null,"Costo Anual Equivalente (CAE)",null,null,{"$f":"+F923*(((1-(1+F917)^-10)/F917)^-1)","v":1441121.8803026867}]
[null,null,"Costo por capacidad de producción",null,null,{"$f":"+F923/F916","v":967.00451226265807}]
[null,null,"Costo por beneficiario directo",null,null,{"$f":"+D905/F916","v":769.28675499999986}]
[null,"* A precios sociales"]
[]
[]
[]
[]
[]
[null,"3.9.1 Sostenibilidad Financiera",null,null,null,null,null,null,null,"Sí","No"]
[]
[null,"Durante el funcionamiento del Parque Cultural Bicentenario podrán aplicarse tarifas por el alquiler de ambientes como el auditórium, salas de uso múltiple, talleres, cafetería, entre otros, que permitirán cubrir los costos de operación y mantenimiento. Seguidamente, algunas tarifas referenciales:"]
[]
[null,"Tarifa por servicios (cuando corresponda)"]
[]
[null,"Servicios",null,null,"Tarifa que se cobra por hora (*)"]
[]
[null,"Alquiler de Taller",null,null,50]
[null,"Alquiler de Espacio Cultural",null,null,50]
[null,"Alquiler de Cafeteria*",null,null,1500]
[null,"Alquiler de Auditórium",null,null,500]
[null,"Alquilerde Sala De Usos Múltiples",null,null,250]
[null,"* el costo es mensual"]
[null,"(*) la tarifa puede variar de acuerdo al TUPA de cada entidad."]
[]
[null,"Índice de cobertura de los ingresos"]
[]
[null,"Ítems",null,null,0,1,2,3,4,5,"…","…","…","…","n"]
[null,"Ingresos (a) tarifa x cantidad"]
[null,"Costos de operación y mantenimiento con proyecto (b)"]
[null,"Saldo a cubrir por otras fuentes (a)-(b). P.ej. Transferencias."]
[null,"Índice de cobertura de los ingresos (a)/(b)"]
[]
[null,"Análisis del flujo de caja para determinar el grado de autosostenibilidad",null,null,null,null,null,"Incluir flujo de caja de la unidad operativa que gestionará el proyecto."]
[]
[]
[]
[null,"3.9.2 Evaluación privada (a precios de mercado)"]
[]
[null,"Ítems",null,null,0,1,2,3,4,5,"…","…","…","…","n"]
[]
[null,"Ingresos (con tarifa)"]
[null,"Inversión"]
[null,"Costos de O&M con proyecto"]
[null,"Flujos netos"]
[]
[null,"Tasa de descuento"]
[null,"VAN"]
[]
[null,"3.9.3 Descripción de la capacidad institucional en la sostenibilidad del proyecto"]
[]
[null,"Ítem",null,null,null,null,"Descripción",null,null,null,"Fuente de información"]
[null,"Órgano técnico responsable de la operación y mantenimiento del proyecto"]
[null,"Análisis de la disponibilidad oportuna de recursos para la operación y mantenimiento"]
[null,"Descripción de los arreglos institucionales para la fase de Funcionamiento"]
[]
[]
[]
[]
[null,"Fuente de Financiamiento","Marcar",null,null,null,"Marcar"]
[]
[null,"Recursos ordinarios"]
[null,"Recursos directamente recaudados"]
[null,"Recursos por operaciones oficiales de crédito"]
[null,"Donaciones y transferencias"]
[null,"Recursos determinados"]
[null,"En caso se seleccione como fuente de financiamiento ROOC, se deberá sustentar la estructuración financiera del monto de inversión del Proyecto."]
[]
[]
[]
[null,"RESUMEN DEL PROYECTO: MATRIZ DEL MARCO LÓGICO"]
[]
[null,"Nivel de objetivo",null,null,"Indicadores",null,null,null,"Medios de verificación",null,null,null,"Supuestos"]
[]
[null,"Fin: Mejora de la identidad cultural y valores en la población",null,null,"XXX% de la población conoce y valora los recursos culturales del departamento/provincia/distrito de XX a los 3 años luego de ejecutado el PI",null,null,null,"Encuestas aplicadas a los habitantes del departamento/provincia/distrito de XXX."]
[null,"Propósito: Población con acceso a espacios públicos con servicios culturales para la promoción de la identidad y valores para la ciudadanía.",null,null,"XX% de la población que ha participado al menos una vez al año en una actividad cultural desarrollada en el Parque Cultural Bicentenario al 2do año de su operación",null,null,null,"Encuestas aplicadas a los habitantes del departamento/provincia/distrito de XXX.",null,null,null,"Ciclos políticos no afectan el funcionamiento del Parque Cultural Bicentenario del departamento/provincia/distrito de XXX"]
[null,"Componentes"]
[null,"Adecuada oferta de espacios públicos culturales con equipamiento para el intercambio y encuentro de la ciudadanía.",null,null,"Al año 1 de ejecución del PI, se cuenta con la infraestructrura y equipamiento para el intercambio y encuentro de la ciudadanía",null,null,null,"Informe de gestión del Parque Cultural Bicentenario (al primer año de funcionamiento)",null,null,null,"Se mantiene el interés por parte de los actores involucrados, en los servicios culturales del Parque Cultural Bicentenerario "]
[null,"Adecuada oferta de infraestructura para el desarrollo de actividades culturales.",null,null,"Al año 1 de ejecución del PI, se cuenta con la infraestructrura y equipamiento para el desarrollo de actividades culturales",null,null,null,"Informe de gestión del Parque Cultural Bicentenario (al primer año de funcionamiento)",null,null,null,"Se mantiene el interés por parte de los actores involucrados, en los servicios culturales del Parque Cultural Bicentenerario "]
[null,"Adecuada oferta infraestructura y equipamiento para el fomento de lectura.",null,null,"Al año 1 de ejecución del PI, se cuenta con la infraestructrura y equipamiento para el fomento de lectura",null,null,null,"Informe de gestión del Parque Cultural Bicentenario (al primer año de funcionamiento)",null,null,null,"Se mantiene el interés por parte de los actores involucrados, en los servicios culturales del Parque Cultural Bicentenerario "]
[null,"Adecuadas salas de exhibición para promocionar la identidad y valores",null,null,"Al año 1 de ejecución del PI, se cuenta con salas de exhibición para promocionar a identidad y valores",null,null,null,"Informe de gestión del Parque Cultural Bicentenario (al primer año de funcionamiento)",null,null,null,"Se mantiene el interés por parte de los actores involucrados, en los servicios culturales del Parque Cultural Bicentenerario "]
[null,"Adecuada capacidad de gestión de servicios culturales",null,null,"Al año 1 de ejecución del PI, se cuenta con un equipo humano con capacidades fortalecidas para la gestión del Parque Cultural Bicentenario",null,null,null,"Informe de gestión del Parque Cultural Bicentenario (al primer año de funcionamiento)",null,null,null,"Se mantiene el interés por parte de los actores involucrados, en los servicios culturales del Parque Cultural Bicentenerario "]
[null,"Adecuadas acciones de sensibilización para la promoción de identidad y valores con participación de la población.",null,null,"Al año 1 de ejecución del PI, el departamento/provincia/distrito de XXXX cuenta con ciudadanos informados y sensibilizados sobre los servicios del Parque Cultural Bicentenario ",null,null,null,"Informe de gestión del Parque Cultural Bicentenario (al primer año de funcionamiento)",null,null,null,"Se mantiene el interés por parte de los actores involucrados, en los servicios culturales del Parque Cultural Bicentenerario "]
[null,"Acciones (agregadas)"]
[null,"Construcción del área ecológica",null,null,"Al año 1 de ejecución, el departamento/provincia/distrito de XXX cuenta con un área ecológica",null,null,null,"Informe de ejecución/liquidación de obra",null,null,null,"No se producen eventos naturales o provocados que afecten la ejecución física o financiera del PI"]
[null,"Construcción de explanada cultural",null,null,"Al año 1 de ejecución, el departamento/provincia/distrito de XXX cuenta con una explanada cultural",null,null,null,"Informe de ejecución/liquidación de obra",null,null,null,"No se producen eventos naturales o provocados que afecten la ejecución física o financiera del PI"]
[null,"Construcción de centro cultural",null,null,"Al año 1 de ejecución, el departamento/provincia/distrito de XXX cuenta con un centro cultural",null,null,null,"Informe de ejecución/liquidación de obra",null,null,null,"No se producen eventos naturales o provocados que afecten la ejecución física o financiera del PI"]
[null,"Construcción de biblioteca comunitaria",null,null,"Al año 1 de ejecución, el departamento/provincia/distrito de XXX cuenta con una biblioteca comunitaria",null,null,null,"Informe de ejecución/liquidación de obra",null,null,null,"No se producen eventos naturales o provocados que afecten la ejecución física o financiera del PI"]
[null,"Construcción de centro de recursos para la ciudadanía",null,null,"Al año 1 de ejecución, el departamento/provincia/distrito de XXX cuenta con un centro de recursos para la ciudadanía",null,null,null,"Informe de ejecución/liquidación de obra",null,null,null,"No se producen eventos naturales o provocados que afecten la ejecución física o financiera del PI"]
[null,"Implementación de modelo de gestión",null,null,"Al año 1 de ejecución, el departamento/provincia/distrito de XXX cuenta con modelo de gestión implementado",null,null,null,"Informe técnico sobre la implementación del modelo de gestión",null,null,null,"No se producen eventos naturales o provocados que afecten la ejecución física o financiera del PI"]
[null,"Implementación de programa de sensibilización",null,null,"Al año 1 de ejecución, el departamento/provincia/distrito de XXX cuenta con un programa de sensibilización implementado",null,null,null,"Informe técnico sobre la implementación del programa de sensibilización",null,null,null,"No se producen eventos naturales o provocados que afecten la ejecución física o financiera del PI"]
[]
[]
[]
["IV. CONCLUSIONES Y RECOMENDACIONES"]
[]
[]
[null,"Se debe indicar el resultado del proceso de formulación y evaluación del proyecto (viable o no viable) y detallar los principales argumentos que sustentan dicho resultado, en términos de lo siguiente:\n\na. Cumplimiento de los tres atributos que definen la condición de viabilidad de un proyecto, en caso el proyecto resulte viable. Si el resultado es no viable, indicar qué atributo o atributos no se logró cumplir. \nb. Emitir un juicio técnico sobre la calidad y la pertinencia del grado de profundización de la información empleada para la elaboración de la ficha técnica, así como la consistencia y coherencia de los supuestos establecidos, las fuentes de información, las normas técnicas, los parámetros y metodologías empleadas, entre otros elementos claves relacionados con el fundamento técnico y económico de la decisión de inversión."]
[]
["V. ANEXOS"]
[]
[null,"Adjuntar a la Ficha Técnica Estandarizada la siguiente información de sustento:"]
[null,"Acuerdo de Consejo disponiendo el terreno para la ejecución del proyecto de inversión."]
[null,"Saneamiento físico legal del terreno."]
[null,"Acuerdo de Consejo que apruebe el compromiso para financiar los costos de operación y mantenimiento del proyecto de inversión."]
[null,"Compromiso de disponibilidad presupuestaria de la Oficina de Planeamiento y Presupuesto o la que haga sus veces, para garantizar los costos de operación y mantenimiento."]
[null,"Presupuesto del proyecto de inversión."]
[null,"Programa arquitectónico de los servicios culturales."]
[null,"Pre diseño arquitectónico del Parque Cultural Bicentenario."]
[null,"Levantamiento topográfico."]

{"sheet":"Parámetros de diseño","index":1,"n_rows":45,"n_cols":12,"rows_kept":45,"cut":false,"hidden":false,"merged":[[44,2,44,11],[9,1,11,1],[12,1,15,1],[16,1,25,1],[26,1,31,1],[32,1,41,1],[43,2,43,11],[6,11,7,11],[2,2,2,11],[3,3,3,11],[4,2,5,2],[4,3,4,5],[4,6,4,8],[4,9,4,11],[5,3,5,5],[5,6,5,8],[5,9,5,11],[6,4,7,4],[6,5,7,5],[6,7,7,7],[6,8,7,8],[6,10,7,10]]}
[]
[]
[null,null,"Cuadro: Propuesta de áreas - Tres escalas de proyecto"]
[null,null,"Proyecto","Parque Cultural Bicentenario"]
[null,null,"ESCALA","S",null,null,"M",null,null,"L"]
[null,null,null,"MÍNIMO",null,null,"MEDIA",null,null,"MÁXIMO"]
[null,null,"Área total AREAS EXTERIORES (m2)",{"$f":"D12+D16","v":12420},"Índice(*)\nm2 / persona","Aforo\n# personas",{"$f":"G12+G16","v":24420},"Índice(*)\nm2 / persona","Aforo\n# personas",{"$f":"J12+J16","v":36420},"Índice(*)\nm2 / persona","Aforo\n# personas"]
[null,null,"Área total EDIFICIO CULTURAL (m2)",{"$f":"D26+D32+D42","v":1195},null,null,{"$f":"G26+G32+G42","v":1355},null,null,{"$f":"J26+J32+J42","v":1505}]
[]
[null,"AREA ECOLOGICA","Areas Verdes (área no techada)",10000,"---","---",20000,"---","---",30000,"---","---"]
[null,null,"Senderos (área no techada)",2000,"---","---",4000,"---","---",6000,"---","---"]
[null,null,"Area Ecológica subtotal (m2)",{"$f":"D10+D11","v":12000},null,{"$f":"SUM(F3:F10)","v":0},{"$f":"G10+G11","v":24000},null,{"$f":"SUM(I3:I10)","v":0},{"$f":"J10+J11","v":36000},null,{"$f":"SUM(L3:L10)","v":0}]
[null,"EXPLANADA CULTURAL","Explanada (área no techada)",1000,1.5,{"$f":"D13/E13","v":666.66666666666663},1000,1.5,{"$f":"G13/H13","v":666.66666666666663},1000,1.5,{"$f":"J13/K13","v":666.66666666666663}]
[null,null,"Anfiteatro",350,1.5,{"$f":"D14/E14","v":233.33333333333334},350,1.5,{"$f":"G14/H14","v":233.33333333333334},350,1.5,{"$f":"J14/K14","v":233.33333333333334}]
[null,null,"Servicios Higiénicos ",70,"---","---",70,"---","---",70,"---","---"]
[null,null,"Explanada Cultural subtotal (m2)",{"$f":"D14+D15","v":420},null,{"$f":"SUM(F7:F14)","v":900},{"$f":"G14+G15","v":420},null,{"$f":"SUM(I7:I14)","v":900},{"$f":"J14+J15","v":420},null,{"$f":"SUM(L7:L14)","v":900}]
[null,"BIBLIOTECA COMUNITARIA"," Recepción",10,9.3000000000000007,{"$f":"D17/E17","v":1.075268817204301},10,9.3000000000000007,{"$f":"G17/H17","v":1.075268817204301},10,9.3000000000000007,{"$f":"J17/K17","v":1.075268817204301}]
[null,null,"Sala de Lectura ",120,4.5999999999999996,{"$f":"D18/E18","v":26.086956521739133},140,4.5999999999999996,{"$f":"G18/H18","v":30.434782608695656},160,4.5999999999999996,{"$f":"J18/K18","v":34.782608695652179}]
[null,null,"Estantería de Libros",20,"---","---",20,"---","---",20,"---","---"]
[null,null,"Depósito",15,"---","---",15,"---","---",15,"---","---"]
[null,null,"Oficina del Bibliotecólogo ",20,"---",1,20,"---","---",20,"---",1]
[null,null,"Ludoteca (**)",60,2.5,{"$f":"D22/E22","v":24},80,2.5,{"$f":"G22/H22","v":32},100,2.5,{"$f":"J22/K22","v":40}]
[null,null,"Sala Audiovisual",20,3,{"$f":"D23/E23","v":6.666666666666667},30,3,{"$f":"G23/H23","v":10},40,3,{"$f":"J23/K23","v":13.333333333333334}]
[null,null,"Servicios Higiénicos ",25,"---","---",25,"---","---",25,"---","---"]
[null,null,"Servicios Higiénicos para niños ",5,"---","---",5,"---","---",5,"---","---"]
[null,null,"Biblioteca subtotal ",{"$f":"SUM(D17:D25)","v":295},null,{"$f":"SUM(F17:F25)","v":58.828892005610093},{"$f":"SUM(G17:G25)","v":345},null,{"$f":"SUM(I17:I23)","v":73.51005142589996},{"$f":"SUM(J17:J25)","v":395},null,{"$f":"SUM(L17:L23)","v":90.191210846189804}]
[null,"CENTRO CULTURAL","Sala de Usos Multiples",120,1,{"$f":"D27/E27","v":120},120,1,{"$f":"G27/H27","v":120},120,1,{"$f":"J27/K27","v":120}]
[null,null,"Auditorio\n(backstage, camerinos, controles)",210,2,{"$f":"D28/E28","v":105},240,2,{"$f":"G28/H28","v":120},260,2,{"$f":"J28/K28","v":130}]
[null,null,"Talleres",40,1.5,null,60,1.5,{"$f":"G29/H29","v":40},80,1.5,{"$f":"J29/K29","v":53.333333333333336}]
[null,null,"Recepción",60,1.4,{"$f":"D30/E30","v":42.857142857142861},80,1.4,{"$f":"G30/H30","v":57.142857142857146},100,1.4,{"$f":"J30/K30","v":71.428571428571431}]
[null,null,"Servicios Higiénicos ",70,"---","---",70,"---","---",70,"---","---"]
[null,null,"Centro Cultural subtotal (m2)",{"$f":"SUM(D27:D31)","v":500},null,{"$f":"SUM(F27:F30)","v":267.85714285714289},{"$f":"SUM(G27:G31)","v":570},null,{"$f":"SUM(I27:I30)","v":337.14285714285717},{"$f":"SUM(J27:J31)","v":630},null,{"$f":"SUM(L27:L30)","v":374.76190476190476}]
[null,"CENTRO DE RECURSOS PARA LA CIUDADANÍA (CREC)","Sala de Exposición Permanente ",90,3,{"$f":"D33/E33","v":30},90,3,{"$f":"G33/H33","v":30},90,3,{"$f":"J33/K33","v":30}]
[null,null,"Sala de Exposición Temporal - Recepción General",50,3,{"$f":"D34/E34","v":16.666666666666668},70,3,{"$f":"G34/H34","v":23.333333333333332},90,3,{"$f":"J34/K34","v":30}]
[null,null,"Laboratorio Creativo",50,5,{"$f":"D35/E35","v":10},50,5,{"$f":"G35/H35","v":10},50,5,{"$f":"D35/K35","v":10}]
[null,null,"Huerto Comunitario (área no techada) ",50,"---","---",50,"---","---",50,"---","---"]
[null,null,"Área Administrativa",30,9.3000000000000007,{"$f":"D37/E37","v":3.225806451612903},30,9.3000000000000007,{"$f":"G37/H37","v":3.225806451612903},30,9.3000000000000007,{"$f":"D37/K37","v":3.225806451612903}]
[null,null,"Servicios Higiénicos ",30,"---","---",30,"---","---",30,"---","---"]
[null,null,"Depósito",20,"---","---",20,"---","---",20,"---","---"]
[null,null,"Cafetería (comedor)",50,1.5,{"$f":"D40/E40","v":33.333333333333336},70,1.5,{"$f":"G40/H40","v":46.666666666666664},90,1.5,{"$f":"J40/K40","v":60}]
[null,null,"Cocina",30,9.3000000000000007,{"$f":"D41/E41","v":3.225806451612903},30,9.3000000000000007,{"$f":"G41/H41","v":3.225806451612903},30,9.3000000000000007,{"$f":"D41/K41","v":3.225806451612903}]
[null,null,"CREC subtotal (m2)",{"$f":"SUM(D33:D41)","v":400},null,{"$f":"SUM(F33:F41)","v":96.451612903225808},{"$f":"SUM(G33:G41)","v":440},null,{"$f":"SUM(I33:I41)","v":116.45161290322579},{"$f":"SUM(J33:J41)","v":480},null,{"$f":"SUM(L33:L41)","v":136.45161290322579}]
[null,null,"EDIFICIO CULTURAL subtotal (m2)",{"$f":"D26+D32+D42","v":1195},null,{"$f":"F26+F32+F42","v":423.13764776597878},{"$f":"G26+G32+G42","v":1355},null,{"$f":"I26+I32+I42","v":527.10452147198293},{"$f":"J26+J32+J42","v":1505},null,{"$f":"L26+L32+L42","v":601.4047285113204}]
[null,null,"(*) Aforo calculado en base a la Norma A.130 Requisitos de Seguridad. Capítulo I Cálculo de carga de ocupantes. Reglamento Nacional de Edificaciones. Ver anexo."]
[null,null,"(**) El aforo de la ludoteca se ha calculado en base al índice del decreto 94/2009, por el que se regulan las ludotecas en Cataluña, España."]

{"sheet":"Costos de Inversión","index":2,"n_rows":67,"n_cols":15,"rows_kept":67,"cut":false,"hidden":false,"merged":[[30,1,39,1],[41,1,51,1],[53,1,54,1],[61,1,61,14],[3,13,5,13],[3,14,5,14],[4,1,5,1],[4,2,5,2],[4,3,5,3],[4,5,5,5],[4,6,5,6],[4,7,5,7],[4,8,5,8],[4,9,5,9],[3,12,5,12],[3,1,3,3],[1,1,1,14],[56,1,57,1],[6,1,6,2],[7,1,15,1],[20,1,20,2],[3,4,5,4],[3,5,3,6],[3,7,3,11],[4,10,5,10],[4,11,5,11],[16,1,19,1],[40,1,40,2],[52,1,52,2],[55,1,55,2],[29,1,29,2],[21,1,28,1]]}
[]
[null,"COSTOS DE INVERSIÓN POR ESCALA DE INTERVENCIÓN"]
[]
[null,"Acción sobre los activos",null,null,"Tipo de factor productivo","Unidad Física",null,"Dimensión Física",null,null,null,null,"Costo total* \nEscala S","Costo total* \nEscala M","Costo total* \nEscala L"]
[null,"Activo agregado","Naturaleza de la acción","Activos ",null,"Unidad de \nmedida","Cantidad","Unidad de \nmedida","Costo unitario","Cantidad Escala S ","Cantidad Escala M ","Cantidad Escala L "]
[]
[null,"Componente 1: Adecuada oferta de espacios públicos culturales con equipamiento para el intercambio y encuentro de la ciudadanía.",null,null,null,null,null,null,null,null,null,null,null,null,{"$f":"SUM(O8:O20)","v":5429150}]
[null,"1.1. Área ecológica","Construcción","Área verde","Infraestructura","Número de estructuras físicas",1,"m2",100,10000,20000,30000,{"$f":"I8*J8","v":1000000},{"$f":"I8*K8","v":2000000},{"$f":"I8*L8","v":3000000}]
[null,null,"Construcción","Sendero","Infraestructura","Número de estructuras físicas",1,"m2",90,2000,4000,6000,180000,360000,540000]
[null,null,"Construcción","Baldosas podo táctiles","Infraestructura","Número de estructuras físicas",1,"m2",120,200,400,600,24000,48000,72000]
[null,null,"Construcción","Sardineles","Infraestructura","Número de estructuras físicas",1,"m",25,2600,5300,8000,65000,132500,200000]
[null,null,"Construcción","Sistema de riego","Infraestructura","Número de estructuras físicas",1,"m2",8,10000,20000,30000,80000,160000,240000]
[null,null,"Adquisición","Bancas","Mobiliario","Número de mobiliario",1,null,750,30,50,80,22500,37500,60000]
[null,null,"Adquisición","Juegos infantiles e inclusivos","Mobiliario","Número de mobiliario",1,null,3500,4,6,8,14000,21000,28000]
[null,null,"Adquisición","Luminarias / faroles","Mobiliario","Número de mobiliario",1,null,500,30,50,80,{"$f":"I15*J15","v":15000},{"$f":"I15*K15","v":25000},{"$f":"I15*L15","v":40000}]
[null,null,null,"Otros activos no estratégicos (*)"]
[null,"1.2. Explanada Cultural","Construcción","Anfiteatro ","Infraestructura","Número de estructuras físicas",1,"Unidad",2000,350,350,350,700000,700000,700000]
[null,null,"Construcción","Plataforma","Infraestructura","Número de estructuras físicas",1,"m2",350,1000,1000,1000,350000,350000,350000]
[null,null,"Construcción","Servicios higiénicos","Infraestructura","Número de estructuras físicas",1,"m2",2845,70,70,70,199150,199150,199150]
[null,null,null,"Otros activos no estratégicos (*)"]
[null,"Componente 2: Adecuada oferta de infraestructura para el desarrollo de actividades culturales.",null,null,null,null,null,null,null,null,null,null,null,null,{"$f":"SUM(O22:O29)","v":1792350}]
[null,"2.1. Centro Cultural","Construcción","Auditorio","Infraestructura","Número de estructuras físicas",1,"m2",2845,210,240,260,{"$f":"I22*J22","v":597450},{"$f":"I22*K22","v":682800},{"$f":"I22*L22","v":739700}]
[null,null,"Construcción","Sala de Usos Múltiples","Infraestructura","Número de estructuras físicas",1,"m2",2845,120,120,120,{"$f":"I23*J23","v":341400},{"$f":"I23*K23","v":341400},{"$f":"I23*L23","v":341400}]
[null,null,"Construcción","Recepción ","Infraestructura","Número de estructuras físicas",1,"m2",2845,60,80,100,{"$f":"I24*J24","v":170700},{"$f":"I24*K24","v":227600},{"$f":"I24*L24","v":284500}]
[null,null,"Construcción","Sala de Talleres","Infraestructura","Número de estructuras físicas",1,"m2",2845,40,60,80,{"$f":"I25*J25","v":113800},{"$f":"I25*K25","v":170700},{"$f":"I25*L25","v":227600}]
[null,null,"Construcción","Servicios higiénicos","Infraestructura","Número de estructuras físicas",1,"m2",2845,70,70,70,{"$f":"I26*J26","v":199150},{"$f":"I26*K26","v":199150},{"$f":"I26*L26","v":199150}]
[null,null,"Adquisición","Equipo para centro cultural","Equipo (**)","Número de equipo"]
[null,null,"Adquisición","Mobiliario para centro cultural","Mobiliario (**)","Número de mobiliario"]
[null,null,null,"Otros activos no estratégicos (*)"]
[null,"Componente 3: Adecuada oferta infraestructura y equipamiento para el fomento de lectura.",null,null,null,null,null,null,null,null,null,null,null,null,{"$f":"SUM(O31:O40)","v":1081100}]
[null,"3.1. Biblioteca","Construcción","Sala de Lectura","Infraestructura","Número de estructuras físicas",1,"m2",2845,120,140,160,{"$f":"I31*J31","v":341400},{"$f":"I31*K31","v":398300},{"$f":"I31*L31","v":455200}]
[null,null,"Construcción","Ludoteca ","Infraestructura","Número de estructuras físicas",1,"m2",2845,60,80,100,170700,227600,284500]
[null,null,"Construcción","Sala Audiovisual","Infraestructura","Número de estructuras físicas",1,"m2",2845,20,30,40,56900,85350,113800]
[null,null,"Construcción","Oficina de bibliotecólogo ","Infraestructura","Número de estructuras físicas",1,"m2",2845,20,20,20,56900,56900,56900]
[null,null,"Construcción","Depósito ","Infraestructura","Número de estructuras físicas",1,"m2",2845,15,15,15,42675,42675,42675]
[null,null,"Construcción","Recepción ","Infraestructura","Número de estructuras físicas",1,"m2",2845,20,20,20,56900,56900,56900]
[null,null,"Construcción","Servicios higiénicos ","Infraestructura","Número de estructuras físicas",1,"m2",2845,25,25,25,71125,71125,71125]
[null,null,"Adquisición","Equipo para la Biblioteca ","Equipo (**)","Número de equipo"]
[null,null,"Adquisición","Mobiliario para la Biblioteca ","Mobiliario (**)","Número de mobiliario"]
[null,null,null,"Otros activos no estratégicos (*)"]
[null,"Componente 4: Adecuadas salas de exhibición para promocionar la identidad y valores",null,null,null,null,null,null,null,null,null,null,null,null,{"$f":"SUM(O42:O52)","v":1646650}]
[null,"4.1. Centro de recursos de la ciudadanía (CREC)","Construcción","Sala de exposición permanente ","Infraestructura","Número de estructuras físicas",1,"m2",2845,50,70,90,{"$f":"I42*J42","v":142250},{"$f":"I42*K42","v":199150},{"$f":"I42*L42","v":256050}]
[null,null,"Construcción","Sala de exposición temporal ","Infraestructura","Número de estructuras físicas",1,"m2",2845,90,90,90,256050,256050,256050]
[null,null,"Construcción","Laboratorio creativo ","Infraestructura","Número de estructuras físicas",1,"m2",2845,50,50,50,142250,142250,142250]
[null,null,"Construcción","Huerto comunitario","Infraestructura","Número de estructuras físicas",1,"m2",500,50,50,50,25000,25000,25000]
[null,null,"Construcción","Ambiente de preparación y expendio de alimentos","Infraestructura","Número de estructuras físicas",1,"m2",5690,90,110,130,512100,625900,739700]
[null,null,"Construcción","Depósito","Infraestructura","Número de estructuras físicas",1,"m2",2845,20,20,20,56900,56900,56900]
[null,null,"Construcción","Área Administrativa","Infraestructura","Número de estructuras físicas",1,"m2",2845,30,30,30,85350,85350,85350]
[null,null,"Construcción","Servicios higiénicos","Infraestructura","Número de estructuras físicas",1,"m2",2845,30,30,30,85350,85350,85350]
[null,null,"Adquisición","Equipo para CREC","Equipo (**)","Número de equipo"]
[null,null,"Adquisición","Mobiliario para CREC","Mobiliario (**)","Número de mobiliario"]
[null,null,null,"Otros activos no estratégicos (*)"]
[null,"Componente 5: Adecuada capacidad de gestión de servicios culturales",null,null,null,null,null,null,null,null,null,null,null,null,{"$f":"SUM(O54:O55)","v":140000}]
[null,"5.1.  Modelo de gestión","Implementación","Capacidad Organizacional","Intangible","Número de Capacidad Organizacional",1,"Taller",70000,2,2,2,{"$f":"I54*J54","v":140000},{"$f":"I54*K54","v":140000},{"$f":"I54*L54","v":140000}]
[null,null,null,"Otros activos no estratégicos (*)"]
[null,"Componente 6: Adecuadas acciones de sensibilización para la promoción de identidad y valores con participación de la población.",null,null,null,null,null,null,null,null,null,null,null,null,{"$f":"SUM(O57:O58)","v":45000}]
[null,"6.1. Programa de sensibilización a la ciudadanía","Implementación","Capacidad Humana","Intangible","Número de Capacidad Humana",1,"Conferencia",15000,3,3,3,{"$f":"I57*J57","v":45000},{"$f":"I57*K57","v":45000},{"$f":"I57*L57","v":45000}]
[null,null,null,"Otros activos no estratégicos (*)"]
[null,"Sub Total de costos de inversión (***)",null,null,null,null,null,null,null,null,null,null,{"$f":"SUM(M7:M57)","v":6359000},{"$f":"SUM(N7:N57)","v":8254600},{"$f":"+O7+O21+O30+O41+O53+O56","v":10134250}]
[]
[]
[null,"(*) La estructura de costos deberá incluir “OTRAS ACCIONES DE INFRAESTRUCTURA, MOBILIARIO, EQUIPO, ETC” sobre “ACTIVOS NO ESTRATÉGICOS” de manera que la estimación del presupuesto incluya todos los costos necesarios para la finalización del proyecto de inversión. Entre los activos no estratégicos se encuentran, por ejemplo, tachos de basura, bebederos inclusivos, señalización vertical, archivo para material bibliográfico o audiovisual, estudio de impacto vial, guion museográfico, entre otros. El equipo formulador deberá desarrollar este costeo."]
[null,"(**) Los costos del equipo y mobiliario se determinarán de acuerdo al requerimiento de la escala de infraestructura."]
[null,"(***) Puede variar de acuerdo al Número de Hectáreas y Zona de localización."]
[null,"*Según corresponda "]
[null,"Nota:"]
[null,"Los costos presentados en este anexo son referenciales. Asimismo, el costo de inversión deberá ser sustentado a nivel de ingeniería conceptual y en función a la ubicación geográfica de los Parques Culturales Bicentenario. "]

{"sheet":"Costo Operación y Mantenimiento","index":3,"n_rows":58,"n_cols":15,"rows_kept":58,"cut":false,"hidden":false,"merged":[[24,5,24,14],[2,0,3,14],[5,0,5,14],[7,0,8,0],[7,1,8,1],[7,2,8,2],[7,3,7,12],[24,0,25,0],[24,1,25,1],[24,2,25,2],[24,3,25,3],[24,4,25,4],[57,0,57,2],[43,0,43,3],[44,0,44,14],[47,0,47,14],[48,0,49,0],[48,1,49,1],[48,2,49,2],[48,3,49,3],[48,4,49,4],[48,5,48,14]]}
[]
[]
["COSTO DE OPERACIÓN Y MANTENIMIENTO"]
[]
[]
["A) COSTOS DE OPERACIÓN CON PROYECTO"]
[]
["Requerimiento de insumos","Unidad de medida","Cantidad","Cantidad por Año"]
[null,null,null,"Año 1","Año 2","Año 3","Año 4","Año 5","Año 6","Año 7","Año 8","Año 9","Año 10"]
["Director General","Director",1,1,1,1,1,1,1,1,1,1,1]
["Coordinador Administrativo","Coordinador",1,1,1,1,1,1,1,1,1,1,1]
["Recepcionista","Recepcionista",1,1,1,1,1,1,1,1,1,1,1]
["Coordinador de Biblioteca","Coordinador",1,1,1,1,1,1,1,1,1,1,1]
["Especialista  (Bibliotecólogo)","Especialista",1,1,1,1,1,1,1,1,1,1,1]
["Especialista Animación de Lectura","Especialista",1,1,1,1,1,1,1,1,1,1,1]
["Coordinador de Programación Cultural","Coordinador",1,1,1,1,1,1,1,1,1,1,1]
["Gestor Comunitario ","Gestor",1,1,1,1,1,1,1,1,1,1,1]
["Pedagogos","Pedagogo",1,1,1,1,1,1,1,1,1,1,1]
["Personal de Apoyo","Apoyo",1,1,1,1,1,1,1,1,1,1,1]
["Coordinador de proyectos educativos","Coordinador",1,1,1,1,1,1,1,1,1,1,1]
["Jardinero","Jardinero",1,1,1,1,1,1,1,1,1,1,1]
[]
[]
[]
["Requerimiento de insumos","Unidad de medida","Cantidad","Costo unitario ","Costo total(*)","Tiempo"]
[null,null,null,null,null,"Año 1","Año 2","Año 3","Año 4","Año 5","Año 6","Año 7","Año 8","Año 9","Año 10"]
["Director General","Director",1,3500,{"$f":"+D27*C27*12","v":42000},42000,{"$f":"+F27","v":42000},{"$f":"+G27","v":42000},42000,42000,42000,42000,42000,42000,42000]
["Coordinador Administrativo","Coordinador",1,2500,{"$f":"+D28*C28*12","v":30000},30000,{"$f":"+F28","v":30000},30000,30000,30000,30000,30000,30000,30000,30000]
["Recepcionista","Recepcionista",1,1500,18000,18000,18000,18000,18000,18000,18000,18000,18000,18000,18000]
["Coordinador de Biblioteca","Coordinador",1,2500,30000,30000,30000,30000,30000,30000,30000,30000,30000,30000,30000]
["Especialista  (Bibliotecólogo)","Especialista",1,2000,24000,24000,24000,24000,24000,24000,24000,24000,24000,24000,24000]
["Especialista Animación de Lectura","Especialista",1,2000,24000,24000,24000,24000,24000,24000,24000,24000,24000,24000,24000]
["Coordinador de Programación Cultural","Coordinador",1,2500,30000,30000,30000,30000,30000,30000,30000,30000,30000,30000,30000]
["Gestor Cultural ","Gestor",1,2000,24000,24000,24000,24000,24000,24000,24000,24000,24000,24000,24000]
["Pedagogos","Pedagogo",1,2000,24000,24000,24000,24000,24000,24000,24000,24000,24000,24000,24000]
["Personal de Apoyo","Apoyo",1,1500,18000,18000,18000,18000,18000,18000,18000,18000,18000,18000,18000]
["Coordinador de proyectos educativos","Coordinador",1,2500,30000,30000,30000,30000,30000,30000,30000,30000,30000,30000,30000]
["Jardinero","Jardinero",1,1500,18000,18000,18000,18000,18000,18000,18000,18000,18000,18000,18000]
["Material y útiles de escritorio","Materiales",12,1000,{"$f":"+C39*D39","v":12000},12000,12000,12000,12000,12000,12000,12000,12000,12000,12000]
["Material de limpieza","Materiales",12,1200,{"$f":"+C40*D40","v":14400},14400,14400,14400,14400,14400,14400,14400,14400,14400,14400]
["Servicio de agua","meses",12,250,{"$f":"+C41*D41","v":3000},3000,3000,3000,3000,3000,3000,3000,3000,3000,3000]
["Servicio de energía","meses",12,600,{"$f":"+C42*D42","v":7200},7200,7200,7200,7200,7200,7200,7200,7200,7200,7200]
["Servicio de internet","meses",12,250,{"$f":"+C43*D43","v":3000},3000,3000,3000,3000,3000,3000,3000,3000,3000,3000]
["TOTAL  COSTOS DE OPERACIÓN ANUAL DEL PI",null,null,null,{"$f":"SUM(E27:E43)","v":351600},{"$f":"SUM(F27:F43)","v":351600},351600,351600,351600,351600,351600,351600,351600,351600,351600]
["(*) Costo RRHH Año1 = (Cantidad x Costo unitario x 12) / Costo Insumos Año1 =(Cantidad x Costo Unitario)"]
[]
[]
["B) COSTOS DE MANTENIMIENTO CON PROYECTO"]
["Requerimiento de insumos","Unidad de medida","Cantidad","Costo unitario ","Costo total","Tiempo"]
[null,null,null,null,null,"Año 1","Año 2","Año 3","Año 4","Año 5","Año 6","Año 7","Año 8","Año 9","Año 10"]
["Pintado de infraestructura existente y áreas interior y exteriores","Anual",1,2000,{"$f":"+D51*C51","v":2000},{"$f":"+E51","v":2000},{"$f":"+F51","v":2000},2000,2000,2000,2000,2000,2000,2000,2000]
["Reparación de puertas, pisos, muros  y ventanas","Anual",1,1200,{"$f":"+D52*C52","v":1200},{"$f":"+E52","v":1200},1200,1200,1200,1200,1200,1200,1200,1200,1200]
["Reparación de Cobertura","Anual",1,2000,2000,2000,2000,2000,2000,2000,2000,2000,2000,2000,2000]
["Reparación de instalaciones sanitarias","Anual",1,1000,1000,1000,1000,1000,1000,1000,1000,1000,1000,1000,1000]
["Reparación de sistema eléctrico","Anual",1,600,600,600,600,600,600,600,600,600,600,600,600]
["Mantenimiento de equipos y mobiliario","Anual",1,1000,1000,1000,1000,1000,1000,1000,1000,1000,1000,1000,1000]
["Mantenimiento de áreas ecológicas","Anual",1,6000,6000,6000,6000,6000,6000,6000,6000,6000,6000,6000,6000]
["TOTAL COSTOS DE  MANTENIMIENTO ANUAL DEL PIP ",null,null,{"$f":"SUM(D51:D57)","v":13800},{"$f":"SUM(E51:E57)","v":13800},{"$f":"SUM(F51:F57)","v":13800},13800,13800,13800,13800,13800,13800,13800,13800,13800]

{"sheet":"Costo a Precios Sociales","index":4,"n_rows":286,"n_cols":6,"rows_kept":286,"cut":false,"hidden":false,"merged":[[0,1,0,5],[2,1,2,5],[4,4,6,4],[4,5,6,5],[4,2,6,2],[4,3,6,3],[4,1,6,1]]}
[null,"EJEMPLO EN EL CASO DE LA DIMENSIÓN FÍSICA L (4 hectáreas)"]
[]
[null,"COSTOS DE INVERSIÓN A PRECIOS SOCIALES"]
[]
[null,"Acciones  / Rubros","Costo total a precios de mercado (soles con IGV)","Incidencia","Factor de corrección","Costo a precios sociales (soles)"]
[]
[]
[null,"Componente 1: Adecuada oferta de espacios públicos culturales con equipamiento para el intercambio y encuentro de la ciudadanía.",{"$f":"+C9+C16+C23+C30+C37+C44+C51+C58+C65+C72+C79","v":5429150},null,null,{"$f":"+F9+F16+F23+F30+F37+F44+F51+F58+F65+F72+F79","v":4121343.8099999996}]
[null,"Construcción de Área verde",{"$f":"+'Costos de Inversión'!O8","v":3000000},null,null,{"$f":"SUM(F10:F15)","v":2272200}]
[null,"Bienes Transables",{"$f":"+$C$9*D10","v":60000},0.02,1.08,{"$f":"+($C$9*D10)*E10","v":64800.000000000007}]
[null,"Bienes no transables",{"$f":"+$C$9*D11","v":1800000},0.6,0.84699999999999998,{"$f":"+($C$9*D11)*E11","v":1524600}]
[null,"Mano de obra calificada",300000,0.1,0.8,{"$f":"+($C$9*D12)*E12","v":240000}]
[null,"Mano de obra no calificada",540000,0.18,0.62,{"$f":"+($C$9*D13)*E13","v":334800}]
[null,"Mano de obra semicalificada",150000,0.05,0.65,{"$f":"+($C$9*D14)*E14","v":97500}]
[null,"Combustibles (Diesel)",150000,0.05,7.0000000000000007E-2,{"$f":"+($C$9*D15)*E15","v":10500.000000000002}]
[null,"Construcción de Sendero",{"$f":"+'Costos de Inversión'!O9","v":540000},null,null,{"$f":"SUM(F17:F22)","v":408996}]
[null,"Bienes Transables",{"$f":"+$C$16*D17","v":10800},0.02,1.08,{"$f":"+($C$16*D17)*E17","v":11664}]
[null,"Bienes no transables",{"$f":"+$C$16*D18","v":324000},0.6,0.84699999999999998,{"$f":"+($C$16*D18)*E18","v":274428}]
[null,"Mano de obra calificada",54000,0.1,0.8,43200]
[null,"Mano de obra no calificada",97200,0.18,0.62,60264]
[null,"Mano de obra semicalificada",27000,0.05,0.65,17550]
[null,"Combustibles (Diesel)",27000,0.05,7.0000000000000007E-2,1890.0000000000002]
[null,"Construcción de Baldosas podo táctiles",{"$f":"+'Costos de Inversión'!O10","v":72000},null,null,{"$f":"SUM(F24:F29)","v":54532.799999999996}]
[null,"Bienes Transables",{"$f":"+$C$23*D24","v":1440},0.02,1.08,{"$f":"+($C$23*D24)*E24","v":1555.2}]
[null,"Bienes no transables",{"$f":"+$C$23*D25","v":43200},0.6,0.84699999999999998,{"$f":"+($C$23*D25)*E25","v":36590.400000000001}]
[null,"Mano de obra calificada",7200,0.1,0.8,5760]
[null,"Mano de obra no calificada",12960,0.18,0.62,8035.2]
[null,"Mano de obra semicalificada",3600,0.05,0.65,2340]
[null,"Combustibles (Diesel)",3600,0.05,7.0000000000000007E-2,252.00000000000003]
[null,"Construcción de Sardineles",{"$f":"+'Costos de Inversión'!O11","v":200000},null,null,{"$f":"SUM(F31:F36)","v":151480}]
[null,"Bienes Transables",{"$f":"+$C$30*D31","v":4000},0.02,1.08,{"$f":"+($C$30*D31)*E31","v":4320}]
[null,"Bienes no transables",{"$f":"+$C$30*D32","v":120000},0.6,0.84699999999999998,{"$f":"+($C$30*D32)*E32","v":101640}]
[null,"Mano de obra calificada",20000,0.1,0.8,16000]
[null,"Mano de obra no calificada",36000,0.18,0.62,22320]
[null,"Mano de obra semicalificada",10000,0.05,0.65,6500]
[null,"Combustibles (Diesel)",10000,0.05,7.0000000000000007E-2,700.00000000000011]
[null,"Construcción de Sistema de riego",{"$f":"+'Costos de Inversión'!O12","v":240000},null,null,{"$f":"SUM(F38:F43)","v":181776}]
[null,"Bienes Transables",{"$f":"+$C$37*D38","v":4800},0.02,1.08,{"$f":"+($C$37*D38)*E38","v":5184}]
[null,"Bienes no transables",{"$f":"+$C$37*D39","v":144000},0.6,0.84699999999999998,{"$f":"+($C$37*D39)*E39","v":121968}]
[null,"Mano de obra calificada",24000,0.1,0.8,19200]
[null,"Mano de obra no calificada",43200,0.18,0.62,26784]
[null,"Mano de obra semicalificada",12000,0.05,0.65,7800]
[null,"Combustibles (Diesel)",12000,0.05,7.0000000000000007E-2,840.00000000000011]
[null,"Adquisición de Bancas",{"$f":"+'Costos de Inversión'!O13","v":60000},null,null,{"$f":"SUM(F45:F50)","v":49806}]
[null,"Bienes Transables",{"$f":"+$C$44*D45","v":0},0,1.08,{"$f":"+($C$44*D45)*E45","v":0}]
[null,"Bienes no transables",{"$f":"+$C$44*D46","v":48000},0.8,0.84699999999999998,{"$f":"+($C$44*D46)*E46","v":40656}]
[null,"Mano de obra calificada",9000,0.15,0.8,7200]
[null,"Mano de obra no calificada",0,0,0.62,0]
[null,"Mano de obra semicalificada",3000,0.05,0.65,1950]
[null,"Combustibles (Diesel)",0,0,7.0000000000000007E-2,0]
[null,"Adquisición de Juegos infantiles e inclusivos",{"$f":"+'Costos de Inversión'!O14","v":28000},null,null,{"$f":"SUM(F52:F57)","v":23242.799999999999}]
[null,"Bienes Transables",{"$f":"+$C$51*D52","v":0},0,1.08,{"$f":"+($C$51*D52)*E52","v":0}]
[null,"Bienes no transables",{"$f":"+$C$51*D53","v":22400},0.8,0.84699999999999998,{"$f":"+($C$51*D53)*E53","v":18972.8}]
[null,"Mano de obra calificada",4200,0.15,0.8,3360]
[null,"Mano de obra no calificada",0,0,0.62,0]
[null,"Mano de obra semicalificada",1400,0.05,0.65,910]
[null,"Combustibles (Diesel)",0,0,7.0000000000000007E-2,0]
[null,"Adquisición de Luminarias / faroles",{"$f":"+'Costos de Inversión'!O15","v":40000},null,null,{"$f":"SUM(F59:F64)","v":33204}]
[null,"Bienes Transables",{"$f":"+$C$58*D59","v":0},0,1.08,{"$f":"+($C$58*D59)*E59","v":0}]
[null,"Bienes no transables",{"$f":"+$C$58*D60","v":32000},0.8,0.84699999999999998,{"$f":"+($C$58*D60)*E60","v":27104}]
[null,"Mano de obra calificada",6000,0.15,0.8,4800]
[null,"Mano de obra no calificada",0,0,0.62,0]
[null,"Mano de obra semicalificada",2000,0.05,0.65,1300]
[null,"Combustibles (Diesel)",0,0,7.0000000000000007E-2,0]
[null,"Construcción de Anfiteatro ",{"$f":"+'Costos de Inversión'!O17","v":700000},null,null,{"$f":"SUM(F66:F71)","v":530180}]
[null,"Bienes Transables",{"$f":"+$C$65*D66","v":14000},0.02,1.08,{"$f":"+($C$65*D66)*E66","v":15120.000000000002}]
[null,"Bienes no transables",{"$f":"+$C$65*D67","v":420000},0.6,0.84699999999999998,{"$f":"+($C$65*D67)*E67","v":355740}]
[null,"Mano de obra calificada",70000,0.1,0.8,56000]
[null,"Mano de obra no calificada",126000,0.18,0.62,78120]
[null,"Mano de obra semicalificada",35000,0.05,0.65,22750]
[null,"Combustibles (Diesel)",35000,0.05,7.0000000000000007E-2,2450.0000000000005]
[null,"Construcción de Plataforma",{"$f":"+'Costos de Inversión'!O18","v":350000},null,null,{"$f":"SUM(F73:F78)","v":265090}]
[null,"Bienes Transables",{"$f":"+$C$72*D73","v":7000},0.02,1.08,{"$f":"+($C$72*D73)*E73","v":7560.0000000000009}]
[null,"Bienes no transables",{"$f":"+$C$72*D74","v":210000},0.6,0.84699999999999998,{"$f":"+($C$72*D74)*E74","v":177870}]
[null,"Mano de obra calificada",35000,0.1,0.8,28000]
[null,"Mano de obra no calificada",63000,0.18,0.62,39060]
[null,"Mano de obra semicalificada",17500,0.05,0.65,11375]
[null,"Combustibles (Diesel)",17500,0.05,7.0000000000000007E-2,1225.0000000000002]
[null,"Construcción de Servicios higiénicos",{"$f":"+'Costos de Inversión'!O19","v":199150},null,null,{"$f":"SUM(F80:F85)","v":150836.21}]
[null,"Bienes Transables",{"$f":"+$C$79*D80","v":3983},0.02,1.08,{"$f":"+($C$79*D80)*E80","v":4301.6400000000003}]
[null,"Bienes no transables",{"$f":"+$C$79*D81","v":119490},0.6,0.84699999999999998,{"$f":"+($C$79*D81)*E81","v":101208.03}]
[null,"Mano de obra calificada",19915,0.1,0.8,15932]
[null,"Mano de obra no calificada",35847,0.18,0.62,22225.14]
[null,"Mano de obra semicalificada",9957.5,0.05,0.65,6472.375]
[null,"Combustibles (Diesel)",9957.5,0.05,7.0000000000000007E-2,697.02500000000009]
[null,"Componente 2: Adecuada oferta de infraestructura para el desarrollo de actividades culturales.",{"$f":"+C87+C94+C101+C108+C115+C122+C129","v":1792350},null,null,{"$f":"+F87+F94+F101+F108+F115+F122+F129","v":1357525.89}]
[null,"Construcción de Auditorio",{"$f":"+'Costos de Inversión'!O22","v":739700},null,null,{"$f":"SUM(F88:F93)","v":560248.77999999991}]
[null,"Bienes Transables",{"$f":"+$C$87*D88","v":14794},0.02,1.08,{"$f":"+($C$87*D88)*E88","v":15977.52}]
[null,"Bienes no transables",{"$f":"+$C$87*D89","v":443820},0.6,0.84699999999999998,{"$f":"+($C$87*D89)*E89","v":375915.54}]
[null,"Mano de obra calificada",73970,0.1,0.8,59176]
[null,"Mano de obra no calificada",133146,0.18,0.62,82550.52]
[null,"Mano de obra semicalificada",36985,0.05,0.65,24040.25]
[null,"Combustibles (Diesel)",36985,0.05,7.0000000000000007E-2,2588.9500000000003]
[null,"Construcción de Sala de Usos Múltiples",{"$f":"+'Costos de Inversión'!O23","v":341400},null,null,{"$f":"SUM(F95:F100)","v":258576.35999999996}]
[null,"Bienes Transables",{"$f":"+$C$94*D95","v":6828},0.02,1.08,{"$f":"+($C$94*D95)*E95","v":7374.2400000000007}]
[null,"Bienes no transables",{"$f":"+$C$94*D96","v":204840},0.6,0.84699999999999998,{"$f":"+($C$94*D96)*E96","v":173499.47999999998}]
[null,"Mano de obra calificada",34140,0.1,0.8,27312]
[null,"Mano de obra no calificada",61452,0.18,0.62,38100.239999999998]
[null,"Mano de obra semicalificada",17070,0.05,0.65,11095.5]
[null,"Combustibles (Diesel)",17070,0.05,7.0000000000000007E-2,1194.9000000000001]
[null,"Construcción de Recepción ",{"$f":"+'Costos de Inversión'!O24","v":284500},null,null,{"$f":"SUM(F102:F107)","v":215480.30000000002}]
[null,"Bienes Transables",{"$f":"+$C$101*D102","v":5690},0.02,1.08,{"$f":"+($C$101*D102)*E102","v":6145.2000000000007}]
[null,"Bienes no transables",{"$f":"+$C$101*D103","v":170700},0.6,0.84699999999999998,{"$f":"+($C$101*D103)*E103","v":144582.9}]
[null,"Mano de obra calificada",28450,0.1,0.8,22760]
[null,"Mano de obra no calificada",51210,0.18,0.62,31750.2]
[null,"Mano de obra semicalificada",14225,0.05,0.65,9246.25]
[null,"Combustibles (Diesel)",14225,0.05,7.0000000000000007E-2,995.75000000000011]
[null,"Construcción de Sala de Talleres",{"$f":"+'Costos de Inversión'!O25","v":227600},null,null,{"$f":"SUM(F109:F114)","v":172384.24}]
[null,"Bienes Transables",{"$f":"+$C$108*D109","v":4552},0.02,1.08,{"$f":"+($C$108*D109)*E109","v":4916.1600000000008}]
[null,"Bienes no transables",{"$f":"+$C$108*D110","v":136560},0.6,0.84699999999999998,{"$f":"+($C$108*D110)*E110","v":115666.31999999999}]
[null,"Mano de obra calificada",22760,0.1,0.8,18208]
[null,"Mano de obra no calificada",40968,0.18,0.62,25400.16]
[null,"Mano de obra semicalificada",11380,0.05,0.65,7397]
[null,"Combustibles (Diesel)",11380,0.05,7.0000000000000007E-2,796.6]
[null,"Construcción de Servicios Higiénicos",{"$f":"+'Costos de Inversión'!O26","v":199150},null,null,{"$f":"SUM(F116:F121)","v":150836.21}]
[null,"Bienes Transables",{"$f":"+$C$115*D116","v":3983},0.02,1.08,{"$f":"+($C$115*D116)*E116","v":4301.6400000000003}]
[null,"Bienes no transables",{"$f":"+$C$115*D117","v":119490},0.6,0.84699999999999998,{"$f":"+($C$115*D117)*E117","v":101208.03}]
[null,"Mano de obra calificada",19915,0.1,0.8,15932]
[null,"Mano de obra no calificada",35847,0.18,0.62,22225.14]
[null,"Mano de obra semicalificada",9957.5,0.05,0.65,6472.375]
[null,"Combustibles (Diesel)",9957.5,0.05,7.0000000000000007E-2,697.02500000000009]
[null,"Adquisición de Equipo para centro cultural",{"$f":"+'Costos de Inversión'!O27","v":0},null,null,{"$f":"SUM(F123:F128)","v":0}]
[null,"Bienes Transables",{"$f":"+$C$122*D123","v":0},0,1.08,{"$f":"+($C$122*D123)*E123","v":0}]
[null,"Bienes no transables",{"$f":"+$C$122*D124","v":0},0.9,0.84699999999999998,{"$f":"+($C$122*D124)*E124","v":0}]
[null,"Mano de obra calificada",0,0.05,0.8,0]
[null,"Mano de obra no calificada",0,0,0.62,0]
[null,"Mano de obra semicalificada",0,0.05,0.65,0]
[null,"Combustibles (Diesel)",0,0,7.0000000000000007E-2,0]
[null,"Adquisición de Mobiliario para centro cultural",{"$f":"+'Costos de Inversión'!O28","v":0},null,null,{"$f":"SUM(F130:F135)","v":0}]
[null,"Bienes Transables",{"$f":"+$C$129*D130","v":0},0,1.08,{"$f":"+($C$129*D130)*E130","v":0}]
[null,"Bienes no transables",{"$f":"+$C$129*D131","v":0},0.8,0.84699999999999998,{"$f":"+($C$129*D131)*E131","v":0}]
[null,"Mano de obra calificada",0,0.15,0.8,0]
[null,"Mano de obra no calificada",0,0,0.62,0]
[null,"Mano de obra semicalificada",0,0.05,0.65,0]
[null,"Combustibles (Diesel)",0,0,7.0000000000000007E-2,0]
[null,"Componente 3: Adecuada oferta infraestructura y equipamiento para el fomento de lectura.",{"$f":"+C137+C144+C151+C158+C165+C172+C179+C186+C193","v":1081100},null,null,{"$f":"+F137+F144+F151+F158+F165+F172+F179+F186+F193","v":818825.1399999999}]
[null,"Construcción de Sala de Lectura ",{"$f":"+'Costos de Inversión'!O31","v":455200},null,null,{"$f":"SUM(F138:F143)","v":344768.48}]
[null,"Bienes Transables",{"$f":"+$C$137*D138","v":9104},0.02,1.08,{"$f":"+($C$137*D138)*E138","v":9832.3200000000015}]
[null,"Bienes no transables",{"$f":"+$C$137*D139","v":273120},0.6,0.84699999999999998,{"$f":"+($C$137*D139)*E139","v":231332.63999999998}]
[null,"Mano de obra calificada",45520,0.1,0.8,36416]
[null,"Mano de obra no calificada",81936,0.18,0.62,50800.32]
[null,"Mano de obra semicalificada",22760,0.05,0.65,14794]
[null,"Combustibles (Diesel)",22760,0.05,7.0000000000000007E-2,1593.2]
[null,"Construcción de Ludoteca",{"$f":"+'Costos de Inversión'!O32","v":284500},null,null,{"$f":"SUM(F145:F150)","v":215480.30000000002}]
[null,"Bienes Transables",{"$f":"+$C$144*D145","v":5690},0.02,1.08,{"$f":"+($C$144*D145)*E145","v":6145.2000000000007}]
[null,"Bienes no transables",{"$f":"+$C$144*D146","v":170700},0.6,0.84699999999999998,{"$f":"+($C$144*D146)*E146","v":144582.9}]
[null,"Mano de obra calificada",28450,0.1,0.8,22760]
[null,"Mano de obra no calificada",51210,0.18,0.62,31750.2]
[null,"Mano de obra semicalificada",14225,0.05,0.65,9246.25]
[null,"Combustibles (Diesel)",14225,0.05,7.0000000000000007E-2,995.75000000000011]
[null,"Construcción de Sala Audivisual",{"$f":"+'Costos de Inversión'!O33","v":113800},null,null,{"$f":"SUM(F152:F157)","v":86192.12}]
[null,"Bienes Transables",{"$f":"+$C$151*D152","v":2276},0.02,1.08,{"$f":"+($C$151*D152)*E152","v":2458.0800000000004}]
[null,"Bienes no transables",{"$f":"+$C$151*D153","v":68280},0.6,0.84699999999999998,{"$f":"+($C$151*D153)*E153","v":57833.159999999996}]
[null,"Mano de obra calificada",11380,0.1,0.8,9104]
[null,"Mano de obra no calificada",20484,0.18,0.62,12700.08]
[null,"Mano de obra semicalificada",5690,0.05,0.65,3698.5]
[null,"Combustibles (Diesel)",5690,0.05,7.0000000000000007E-2,398.3]
[null,"Construcción de Oficina de bibliotecólogo ",{"$f":"+'Costos de Inversión'!O34","v":56900},null,null,{"$f":"SUM(F159:F164)","v":43096.06}]
[null,"Bienes Transables",{"$f":"+$C$158*D159","v":1138},0.02,1.08,{"$f":"+($C$158*D159)*E159","v":1229.0400000000002}]
[null,"Bienes no transables",{"$f":"+$C$158*D160","v":34140},0.6,0.84699999999999998,{"$f":"+($C$158*D160)*E160","v":28916.579999999998}]
[null,"Mano de obra calificada",5690,0.1,0.8,4552]
[null,"Mano de obra no calificada",10242,0.18,0.62,6350.04]
[null,"Mano de obra semicalificada",2845,0.05,0.65,1849.25]
[null,"Combustibles (Diesel)",2845,0.05,7.0000000000000007E-2,199.15]
[null,"Construcción de Depósito",{"$f":"+'Costos de Inversión'!O35","v":42675},null,null,{"$f":"SUM(F166:F171)","v":32322.044999999995}]
[null,"Bienes Transables",{"$f":"+$C$165*D166","v":853.5},0.02,1.08,{"$f":"+($C$165*D166)*E166","v":921.78000000000009}]
[null,"Bienes no transables",{"$f":"+$C$165*D167","v":25605},0.6,0.84699999999999998,{"$f":"+($C$165*D167)*E167","v":21687.434999999998}]
[null,"Mano de obra calificada",4267.5,0.1,0.8,3414]
[null,"Mano de obra no calificada",7681.5,0.18,0.62,4762.53]
[null,"Mano de obra semicalificada",2133.75,0.05,0.65,1386.9375]
[null,"Combustibles (Diesel)",2133.75,0.05,7.0000000000000007E-2,149.36250000000001]
[null,"Construcción de Recepción ",{"$f":"+'Costos de Inversión'!O36","v":56900},null,null,{"$f":"SUM(F173:F178)","v":43096.06}]
[null,"Bienes Transables",{"$f":"+$C$172*D173","v":1138},0.02,1.08,{"$f":"+($C$172*D173)*E173","v":1229.0400000000002}]
[null,"Bienes no transables",{"$f":"+$C$172*D174","v":34140},0.6,0.84699999999999998,{"$f":"+($C$172*D174)*E174","v":28916.579999999998}]
[null,"Mano de obra calificada",5690,0.1,0.8,4552]
[null,"Mano de obra no calificada",10242,0.18,0.62,6350.04]
[null,"Mano de obra semicalificada",2845,0.05,0.65,1849.25]
[null,"Combustibles (Diesel)",2845,0.05,7.0000000000000007E-2,199.15]
[null,"Construcción de Servicios Higiénico",{"$f":"+'Costos de Inversión'!O37","v":71125},null,null,{"$f":"SUM(F180:F185)","v":53870.075000000004}]
[null,"Bienes Transables",{"$f":"+$C$179*D180","v":1422.5},0.02,1.08,{"$f":"+($C$179*D180)*E180","v":1536.3000000000002}]
[null,"Bienes no transables",{"$f":"+$C$179*D181","v":42675},0.6,0.84699999999999998,{"$f":"+($C$179*D181)*E181","v":36145.724999999999}]
[null,"Mano de obra calificada",7112.5,0.1,0.8,5690]
[null,"Mano de obra no calificada",12802.5,0.18,0.62,7937.55]
[null,"Mano de obra semicalificada",3556.25,0.05,0.65,2311.5625]
[null,"Combustibles (Diesel)",3556.25,0.05,7.0000000000000007E-2,248.93750000000003]
[null,"Adquisición de Equipo para la Biblioteca ",{"$f":"+'Costos de Inversión'!O38","v":0},null,null,{"$f":"SUM(F187:F192)","v":0}]
[null,"Bienes Transables",{"$f":"+$C$186*D187","v":0},0,1.08,{"$f":"+($C$186*D187)*E187","v":0}]
[null,"Bienes no transables",{"$f":"+$C$186*D188","v":0},0.9,0.84699999999999998,{"$f":"+($C$186*D188)*E188","v":0}]
[null,"Mano de obra calificada",0,0.05,0.8,0]
[null,"Mano de obra no calificada",0,0,0.62,0]
[null,"Mano de obra semicalificada",0,0.05,0.65,0]
[null,"Combustibles (Diesel)",0,0,7.0000000000000007E-2,0]
[null,"Adquisición de Mobiliario para la Biblioteca ",{"$f":"+'Costos de Inversión'!O39","v":0},null,null,{"$f":"SUM(F194:F199)","v":0}]
[null,"Bienes Transables",{"$f":"+$C$193*D194","v":0},0,1.08,{"$f":"+($C$193*D194)*E194","v":0}]
[null,"Bienes no transables",{"$f":"+$C$193*D195","v":0},0.8,0.84699999999999998,{"$f":"+($C$193*D195)*E195","v":0}]
[null,"Mano de obra calificada",0,0.15,0.8,0]
[null,"Mano de obra no calificada",0,0,0.62,0]
[null,"Mano de obra semicalificada",0,0.05,0.65,0]
[null,"Combustibles (Diesel)",0,0,7.0000000000000007E-2,0]
[null,"Componente 4: Adecuadas salas de exhibición para promocionar la identidad y valores",{"$f":"+C201+C208+C215+C222+C229+C236+C243+C250+C257+C264","v":1646650},null,null,{"$f":"+F201+F208+F215+F222+F229+F236+F243+F250+F257+F264","v":1247172.7100000002}]
[null,"Construcción de Sala de exposición permanente ",{"$f":"+'Costos de Inversión'!O42","v":256050},null,null,{"$f":"SUM(F202:F207)","v":193932.27}]
[null,"Bienes Transables",{"$f":"+$C$201*D202","v":5121},0.02,1.08,{"$f":"+($C$201*D202)*E202","v":5530.68}]
[null,"Bienes no transables",{"$f":"+$C$201*D203","v":153630},0.6,0.84699999999999998,{"$f":"+($C$201*D203)*E203","v":130124.61}]
[null,"Mano de obra calificada",25605,0.1,0.8,20484]
[null,"Mano de obra no calificada",46089,0.18,0.62,{"$f":"+($C$201*D205)*E205","v":28575.18}]
[null,"Mano de obra semicalificada",12802.5,0.05,0.65,8321.625]
[null,"Combustibles (Diesel)",12802.5,0.05,7.0000000000000007E-2,896.17500000000007]
[null,"Construcción de Sala de exposición temporal ",{"$f":"+'Costos de Inversión'!O43","v":256050},null,null,{"$f":"SUM(F209:F214)","v":193932.27}]
[null,"Bienes Transables",{"$f":"+$C$208*D209","v":5121},0.02,1.08,{"$f":"+($C$208*D209)*E209","v":5530.68}]
[null,"Bienes no transables",{"$f":"+$C$208*D210","v":153630},0.6,0.84699999999999998,{"$f":"+($C$208*D210)*E210","v":130124.61}]
[null,"Mano de obra calificada",25605,0.1,0.8,20484]
[null,"Mano de obra no calificada",46089,0.18,0.62,28575.18]
[null,"Mano de obra semicalificada",12802.5,0.05,0.65,8321.625]
[null,"Combustibles (Diesel)",12802.5,0.05,7.0000000000000007E-2,896.17500000000007]
[null,"Construcción de Laboratorio creativo ",{"$f":"+'Costos de Inversión'!O44","v":142250},null,null,{"$f":"SUM(F216:F221)","v":107740.15000000001}]
[null,"Bienes Transables",{"$f":"+$C$215*D216","v":2845},0.02,1.08,{"$f":"+($C$215*D216)*E216","v":3072.6000000000004}]
[null,"Bienes no transables",{"$f":"+$C$215*D217","v":85350},0.6,0.84699999999999998,{"$f":"+($C$215*D217)*E217","v":72291.45}]
[null,"Mano de obra calificada",14225,0.1,0.8,11380]
[null,"Mano de obra no calificada",25605,0.18,0.62,15875.1]
[null,"Mano de obra semicalificada",7112.5,0.05,0.65,4623.125]
[null,"Combustibles (Diesel)",7112.5,0.05,7.0000000000000007E-2,497.87500000000006]
[null,"Construcción de Huerto comunitario",{"$f":"+'Costos de Inversión'!O45","v":25000},null,null,{"$f":"SUM(F223:F228)","v":18935}]
[null,"Bienes Transables",{"$f":"+$C$222*D223","v":500},0.02,1.08,{"$f":"+($C$222*D223)*E223","v":540}]
[null,"Bienes no transables",{"$f":"+$C$222*D224","v":15000},0.6,0.84699999999999998,{"$f":"+($C$222*D224)*E224","v":12705}]
[null,"Mano de obra calificada",2500,0.1,0.8,2000]
[null,"Mano de obra no calificada",4500,0.18,0.62,2790]
[null,"Mano de obra semicalificada",1250,0.05,0.65,812.5]
[null,"Combustibles (Diesel)",1250,0.05,7.0000000000000007E-2,87.500000000000014]
[null,"Construcción de Ambiente de preparación y expendio de alimentos",{"$f":"+'Costos de Inversión'!O46","v":739700},null,null,{"$f":"SUM(F230:F235)","v":560248.77999999991}]
[null,"Bienes Transables",{"$f":"+$C$229*D230","v":14794},0.02,1.08,{"$f":"+($C$229*D230)*E230","v":15977.52}]
[null,"Bienes no transables",{"$f":"+$C$229*D231","v":443820},0.6,0.84699999999999998,{"$f":"+($C$229*D231)*E231","v":375915.54}]
[null,"Mano de obra calificada",73970,0.1,0.8,59176]
[null,"Mano de obra no calificada",133146,0.18,0.62,82550.52]
[null,"Mano de obra semicalificada",36985,0.05,0.65,24040.25]
[null,"Combustibles (Diesel)",36985,0.05,7.0000000000000007E-2,2588.9500000000003]
[null,"Construcción de Depósito",{"$f":"+'Costos de Inversión'!O47","v":56900},null,null,{"$f":"SUM(F237:F242)","v":43096.06}]
[null,"Bienes Transables",{"$f":"+$C$236*D237","v":1138},0.02,1.08,{"$f":"+($C$236*D237)*E237","v":1229.0400000000002}]
[null,"Bienes no transables",{"$f":"+$C$236*D238","v":34140},0.6,0.84699999999999998,{"$f":"+($C$236*D238)*E238","v":28916.579999999998}]
[null,"Mano de obra calificada",5690,0.1,0.8,4552]
[null,"Mano de obra no calificada",10242,0.18,0.62,6350.04]
[null,"Mano de obra semicalificada",2845,0.05,0.65,1849.25]
[null,"Combustibles (Diesel)",2845,0.05,7.0000000000000007E-2,199.15]
[null,"Construcción de Área Administrativa",{"$f":"+'Costos de Inversión'!O48","v":85350},null,null,{"$f":"SUM(F244:F249)","v":64644.089999999989}]
[null,"Bienes Transables",{"$f":"+$C$243*D244","v":1707},0.02,1.08,{"$f":"+($C$243*D244)*E244","v":1843.5600000000002}]
[null,"Bienes no transables",{"$f":"+$C$243*D245","v":51210},0.6,0.84699999999999998,{"$f":"+($C$243*D245)*E245","v":43374.869999999995}]
[null,"Mano de obra calificada",8535,0.1,0.8,6828]
[null,"Mano de obra no calificada",15363,0.18,0.62,9525.06]
[null,"Mano de obra semicalificada",4267.5,0.05,0.65,2773.875]
[null,"Combustibles (Diesel)",4267.5,0.05,7.0000000000000007E-2,298.72500000000002]
[null,"Construcción de Servicios higiénicos",{"$f":"+'Costos de Inversión'!O49","v":85350},null,null,{"$f":"SUM(F251:F256)","v":64644.089999999989}]
[null,"Bienes Transables",{"$f":"+$C$250*D251","v":1707},0.02,1.08,{"$f":"+($C$250*D251)*E251","v":1843.5600000000002}]
[null,"Bienes no transables",{"$f":"+$C$250*D252","v":51210},0.6,0.84699999999999998,{"$f":"+($C$250*D252)*E252","v":43374.869999999995}]
[null,"Mano de obra calificada",8535,0.1,0.8,6828]
[null,"Mano de obra no calificada",15363,0.18,0.62,9525.06]
[null,"Mano de obra semicalificada",4267.5,0.05,0.65,2773.875]
[null,"Combustibles (Diesel)",4267.5,0.05,7.0000000000000007E-2,298.72500000000002]
[null,"Adquisición de Equipo para CREC",{"$f":"+'Costos de Inversión'!O50","v":0},null,null,{"$f":"SUM(F258:F263)","v":0}]
[null,"Bienes Transables",{"$f":"+$C$257*D258","v":0},0,1.08,{"$f":"+($C$257*D258)*E258","v":0}]
[null,"Bienes no transables",{"$f":"+$C$257*D259","v":0},0.9,0.84699999999999998,{"$f":"+($C$257*D259)*E259","v":0}]
[null,"Mano de obra calificada",0,0.05,0.8,0]
[null,"Mano de obra no calificada",0,0,0.62,0]
[null,"Mano de obra semicalificada",0,0.05,0.65,0]
[null,"Combustibles (Diesel)",0,0,7.0000000000000007E-2,0]
[null,"Adquisición de Mobiliario para CREC",{"$f":"+'Costos de Inversión'!O51","v":0},null,null,{"$f":"SUM(F265:F270)","v":0}]
[null,"Bienes Transables",{"$f":"+$C$264*D265","v":0},0,1.08,{"$f":"+($C$264*D265)*E265","v":0}]
[null,"Bienes no transables",{"$f":"+$C$264*D266","v":0},0.8,0.84699999999999998,{"$f":"+($C$264*D266)*E266","v":0}]
[null,"Mano de obra calificada",0,0.15,0.8,0]
[null,"Mano de obra no calificada",0,0,0.62,0]
[null,"Mano de obra semicalificada",0,0.05,0.65,0]
[null,"Combustibles (Diesel)",0,0,7.0000000000000007E-2,0]
[null,"Componente 5: Adecuada capacidad de gestión de servicios culturales",{"$f":"+C272","v":140000},null,null,{"$f":"+F272","v":112000}]
[null,"Implementación de Capacidad Organizacional",{"$f":"+'Costos de Inversión'!O54","v":140000},null,null,{"$f":"SUM(F273:F278)","v":112000}]
[null,"Bienes Transables",{"$f":"+$C$272*D273","v":0},0,1.08,{"$f":"+($C$272*D273)*E273","v":0}]
[null,"Bienes no transables",{"$f":"+$C$272*D274","v":0},0,0.84699999999999998,{"$f":"+($C$272*D274)*E274","v":0}]
[null,"Mano de obra calificada",140000,1,0.8,112000]
[null,"Mano de obra no calificada",0,0,0.62,0]
[null,"Mano de obra semicalificada",0,0,0.65,0]
[null,"Combustibles (Diesel)",0,0,7.0000000000000007E-2,0]
[null,"Componente 6: Adecuadas acciones de sensibilización para la promoción de identidad y valores con participación de la población",{"$f":"+C280","v":45000},null,null,{"$f":"+F280","v":36000}]
[null,"Implementación de Capacidad Humana",{"$f":"+'Costos de Inversión'!O57","v":45000},null,null,{"$f":"SUM(F281:F286)","v":36000}]
[null,"Bienes Transables",{"$f":"+$C$279*D281","v":0},0,1.08,{"$f":"+($C$280*D281)*E281","v":0}]
[null,"Bienes no transables",{"$f":"+$C$279*D282","v":0},0,0.84699999999999998,{"$f":"+($C$280*D282)*E282","v":0}]
[null,"Mano de obra calificada",45000,1,0.8,36000]
[null,"Mano de obra no calificada",0,0,0.62,0]
[null,"Mano de obra semicalificada",0,0,0.65,0]
[null,"Combustibles (Diesel)",0,0,7.0000000000000007E-2,0]

{"sheet":"Plan Implementación","index":5,"n_rows":33,"n_cols":29,"rows_kept":33,"cut":false,"hidden":false,"merged":[[24,1,24,4],[8,1,8,4],[3,1,4,4],[3,5,3,16],[3,17,3,28],[5,1,5,4],[7,1,7,4],[6,1,6,4],[21,1,21,4],[9,1,9,4],[10,1,10,4],[11,1,11,4],[12,1,12,4],[13,1,13,4],[14,1,14,4],[15,1,15,4],[1,3,1,26],[29,1,29,4],[30,1,30,4],[31,1,31,4],[32,1,32,4],[22,1,22,4],[23,1,23,4],[25,1,25,4],[26,1,26,4],[27,1,27,4],[28,1,28,4],[16,1,16,4],[17,1,17,4],[18,1,18,4],[19,1,19,4],[20,1,20,4]]}
[]
[null,null,null,"PLAN DE IMPLEMENTACIÓN"]
[]
[null,"Actividades del Plan de Implementación",null,null,null,"Año 1",null,null,null,null,null,null,null,null,null,null,null,"Año 2"]
[null,null,null,null,null,"Mes 1","Mes 2","Mes 3","Mes 4","Mes 5","Mes 6","Mes 7","Mes 8","Mes 9","Mes 10","Mes 11","Mes 12","Mes 1","Mes 2","Mes 3","Mes 4","Mes 5","Mes 6","Mes 7","Mes 8","Mes 9","Mes 10","Mes 11","Mes 12"]
[]
[null,"A) Ficha Técnica Estándar",null,null,null,"x","x","x","x"]
[null,"Elaboración de TDR",null,null,null,"x"]
[null,"Expediente de  Contratación",null,null,null,"x"]
[null,"Procesos de selección",null,null,null,"x"]
[null,"Adjudicación",null,null,null,"x"]
[null,"Firma de Contrato",null,null,null,"x"]
[null,"Elaboración de la Ficha Técnica Estándar",null,null,null,null,"x","x"]
[null,"Declaración de viabilidad de la Ficha Técnica Estándar",null,null,null,null,null,null,"x"]
[]
[null,"B) Expediente técnico",null,null,null,null,null,null,null,"x","x","x","x","x","x"]
[null,"Elaboración de TDR",null,null,null,null,null,null,null,"x"]
[null,"Expediente de  Contratación",null,null,null,null,null,null,null,"x","x"]
[null,"Procesos de selección",null,null,null,null,null,null,null,"x","x"]
[null,"Adjudicación",null,null,null,null,null,null,null,null,"x"]
[null,"Firma de Contrato",null,null,null,null,null,null,null,null,"x"]
[null,"Desarrollo del estudio",null,null,null,null,null,null,null,null,null,"x","x","x"]
[null,"Aprobación de ET",null,null,null,null,null,null,null,null,null,null,null,null,"x"]
[]
[null,"C) Ejecución de Obra y Supervisión",null,null,null,null,null,null,null,null,null,null,null,null,null,"x","x","x","x","x","x","x","x","x","x","x","x"]
[null,"Elaboración de TDR",null,null,null,null,null,null,null,null,null,null,null,null,null,"x"]
[null,"Expediente de  Contratación",null,null,null,null,null,null,null,null,null,null,null,null,null,"x"]
[null,"Procesos de selección",null,null,null,null,null,null,null,null,null,null,null,null,null,"x","x"]
[null,"Adjudicación",null,null,null,null,null,null,null,null,null,null,null,null,null,null,null,"x"]
[null,"Firma de Contrato",null,null,null,null,null,null,null,null,null,null,null,null,null,null,null,"x"]
[null,"Desarrollo de la Obra",null,null,null,null,null,null,null,null,null,null,null,null,null,null,null,null,"x","x","x","x","x","x","x","x"]
[null,"Liquidación",null,null,null,null,null,null,null,null,null,null,null,null,null,null,null,null,null,null,null,null,null,null,null,null,"x"]
[null,"Entrega de Obra",null,null,null,null,null,null,null,null,null,null,null,null,null,null,null,null,null,null,null,null,null,null,null,null,null,"x"]

{"sheet":"INDICADORES DE BRECHA","index":6,"n_rows":311,"n_cols":37,"rows_kept":311,"cut":false,"hidden":true,"merged":[[7,0,7,8],[8,0,8,8],[9,0,9,8],[10,0,10,2],[10,3,10,8],[11,0,11,2],[11,3,11,8],[15,0,15,2],[15,3,15,8],[16,0,16,2],[16,3,16,8],[12,0,12,2],[12,3,12,8],[13,0,13,2],[13,3,13,8],[14,0,14,2],[14,3,14,8],[32,1,34,3],[35,1,37,3],[38,1,40,3],[41,1,43,3],[19,0,19,8],[20,0,20,8],[21,0,21,8],[23,0,24,3],[23,4,25,4],[23,5,23,8],[24,5,25,5],[24,6,25,6],[24,7,25,7],[24,8,25,8],[98,1,100,3],[101,1,103,3],[18,0,18,8],[17,0,17,8],[80,1,82,3],[83,1,85,3],[86,1,88,3],[89,1,91,3],[92,1,94,3],[95,1,97,3],[62,1,64,3],[65,1,67,3],[68,1,70,3],[71,1,73,3],[74,1,76,3],[77,1,79,3],[44,1,46,3],[47,1,49,3],[50,1,52,3],[53,1,55,3],[56,1,58,3],[59,1,61,3],[26,0,28,3],[29,1,31,3],[112,0,112,8],[113,0,113,2],[113,3,113,8],[114,0,114,2],[114,3,114,8],[115,0,115,2],[115,3,115,8],[110,0,110,8],[111,0,111,8],[119,0,119,2],[119,3,119,8],[120,0,120,8],[121,0,121,8],[122,0,122,8],[123,0,123,8],[116,0,116,2],[116,3,116,8],[117,0,117,2],[117,3,117,8],[118,0,118,2],[118,3,118,8],[129,0,131,3],[132,1,134,3],[135,1,137,3],[138,1,140,3],[141,1,143,3],[144,1,146,3],[124,0,124,8],[126,0,127,3],[126,4,128,4],[126,5,126,8],[127,5,128,5],[127,6,128,6],[127,7,128,7],[127,8,128,8],[165,1,167,3],[168,1,170,3],[171,1,173,3],[174,1,176,3],[177,1,179,3],[180,1,182,3],[147,1,149,3],[150,1,152,3],[153,1,155,3],[156,1,158,3],[159,1,161,3],[162,1,164,3],[201,1,203,3],[204,1,206,3],[213,0,213,8],[214,0,214,8],[215,0,215,8],[216,0,216,2],[216,3,216,8],[183,1,185,3],[186,1,188,3],[189,1,191,3],[192,1,194,3],[195,1,197,3],[198,1,200,3],[220,0,220,2],[220,3,220,8],[221,0,221,2],[221,3,221,8],[222,0,222,2],[222,3,222,8],[217,0,217,2],[217,3,217,8],[218,0,218,2],[218,3,218,8],[219,0,219,2],[219,3,219,8],[259,1,261,3],[230,7,231,7],[230,8,231,8],[232,0,234,3],[235,1,237,3],[238,1,240,3],[241,1,243,3],[223,0,223,8],[224,0,224,8],[225,0,225,8],[226,0,226,8],[227,0,227,8],[229,0,230,3],[229,4,231,4],[229,5,229,8],[230,5,231,5],[230,6,231,6],[3,16,5,16],[6,16,7,16],[2,15,7,15],[298,1,300,3],[301,1,303,3],[304,1,306,3],[307,1,309,3],[280,1,282,3],[283,1,285,3],[286,1,288,3],[289,1,291,3],[292,1,294,3],[295,1,297,3],[262,1,264,3],[265,1,267,3],[268,1,270,3],[271,1,273,3],[274,1,276,3],[277,1,279,3],[244,1,246,3],[247,1,249,3],[250,1,252,3],[253,1,255,3],[256,1,258,3]]}
[]
[null,"Departamento","Creación","Nombre del Indicador",null,"Unidad de Medida",null,"Servicio","Brecha","Función","División Funcional","Grupo Funcional","Tipología",null,null,"Problema Central","CAUSAS DIRECTAS","Indicador","UM","Valor","Fuente de Información",null,"CAUSAS INDIRECTAS","Indicador","UM","Valor","Fuente de Información",null,"Alternativas de solucion",null,"MEDIOS FUNDAMENTALES",null,null,null,null,null,"TIPOS DE USOS DE SUELO"]
[null,"Provincia","Mejoramiento","Porcentaje de la población sin acceso al servicio de interpretación cultural del Patrimonio Cultural de la Nación a través de Instituciones Museales (% PSICIM).",null,"Usuario/año",null,"Servicio de Interpretación cultural","Cobertura","Cultura y Deporte","Cultura","Patrimonio Histórico y Cultural","Instituciones Museales Públicas ",null,"Insuficiente dotación de espacios públicos culturales.","Población del distrito de XXXX sin acceso a espacios públicos con servicios culturales para  su participación en las industrias culturales y las artes.","Insuficiente dotación de espacios públicos culturales",null,null,null,null,null,"Insuficiente oferta de espacios públicos culturales con equipamiento para el intercambio y encuentro de la ciudadanía.",null,null,null,null,null,"Área Ecológica",null,"Adecuada oferta de espacios públicos culturales con equipamiento para el intercambio y encuentro de la ciudadanía.",null,null,null,null,null,"Zona de Recreación Pública"]
[null,"Disrito","Recuperación","Porcentaje de bibliotecas públicas que no prestan adecuados servicios bibliotecarios (% BPNI).",null,"Bibliotecas Públicas",null,"Servicios bibliotecarios","Calidad","Cultura y Deporte","Cultura","Patrimonio Histórico y Cultural","Bibliotecas Públicas",null,"Insuficiente dotación de infraestructura y equipamiento de servicios culturales.",null,"Insuficiente dotación de infraestructura y equipamiento de servicios culturales.",null,null,null,null,null,"Insuficiente oferta de infraestructura para el desarrollo de actividades culturales.",null,null,null,null,null,"Explanada Cultural",null,"Adecuada oferta de infraestructura para el desarrollo de actividades culturales.",null,null,null,null,null,"Usos Especiales"]
[null,null,"Creación","Porcentaje de distritos con más de 20,000 habitantes que no cuentan con infraestructura cultural pública para la participación de la población en las industrias culturales y las artes (% Distritos sin IPASC).",null,"Usuario/año",null,"Servicios culturales para la participación de la población en las industrias culturales y las artes","cobertura","Cultura y Deporte","Cultura","Promoción y desarrollo cultural","Infraestructura Cultural Pública para la participación de la población en las industrias culturales y las artes",null,"Ineficiente gestión de servicios culturales para la promoción de identidad y valores.",null,null,null,null,null,null,null,"Insuficiente oferta de infraestructura y equipamiento para el fomento de la lectura.",null,null,null,null,null,"Centro de Recursos para la  Ciudadanía (CREC) ",null,"Adecuada oferta infraestructura y equipamiento para el fomento de lectura.",null,null,null,null,null,"Otros compatibles con el proyecto"]
[null,null,null,null,null,null,null,null,null,null,null,null,null,null,null,null,null,null,null,null,null,null,"Insuficientes salas de exhibición para promocionar la identidad y valores.",null,null,null,null,null,"Centro Cultural ",null,"Adecuadas salas de exhibición para promocionar la identidad y valores"]
[null,null,null,null,null,null,null,null,null,null,null,null,null,null,null,null,"Ineficiente gestión de servicios culturales para la promoción de identidad y valores.",null,null,null,null,null,"Limitado capacidad de gestión de servicios culturales.",null,null,null,null,null,"Biblioteca  Comunitaria ",null,"Adecuada capacidad de gestión de servicios culturales"]
["SECTOR CULTURA",null,null,null,null,null,null,null,null,null,null,null,null,null,null,null,null,null,null,null,null,null,"Limitadas acciones de sensibilización para la promoción de identidad y valores con participación de la población.",null,null,null,null,null,"Gestión de servicios culturales",null,"Adecuadas acciones de sensibilización para la promoción de identidad y valores con participación de la población."]
["REPORTE DE VALORES DE INDICADORES DE BRECHAS",null,null,null,null,null,null,null,null,null,null,null,null,null,null,null,null,null,null,null,null,null,null,null,null,null,null,null,"Programa de sensibilización"]
[]
["Nombre del Indicador",null,null,"Porcentaje de la población sin acceso al servicio de interpretación cultural del Patrimonio Cultural de la Nación a través de Instituciones Museales (% PSICIM)."]
["Unidad de Medida (Variables)",null,null,"Instituciones Museales Públicas (IMP)."]
["Variable 1 (V1)",null,null,"TPN: Total Población Nacional"]
["Variable 2 (V2)",null,null,"PCICIM: Población con acceso al servicio de interpretación cultural a través de IMP"]
[]
["Fórmula",null,null,"Nota:\nLa población con acceso al servicio de interpretación cultural a través de IM es igual a la población que potencialmente puede acceder al servicio, por lo que esta se calcula como el producto de la cantidad de IM existentes por la media iberoamericana de habitantes por museo (62,999 habitantes por museo).\n\n"]
[]
["Instrucciones: "]
["a) En caso el Sector determine valores a nivel de distrito, debe incorporar las filas correspondientes."]
["b) Si la fórmula del indicador de brechas tiene más de dos variables, incorporar las filas correspondientes."]
["c) Si el Sector no cuenta con valores del indicador a nivel de región, provincia o distrito, en el casillero correspondiente consignar: S/I"]
["d) Si algún indicador no aplica a nivel de región, provincia o distrito, en el casillero correspondiente consignar: N/A"]
[]
["Nivel de Desagregación del Indicador de Brecha",null,null,null,"Variables","Valores de los Indicadores de Brechas"]
[null,null,null,null,null,"Línea Base (Año 2017)","Año 2020","Año 2021","Año 2022"]
["Nacional","Región","Provincia","Distrito"]
["PERÚ",null,null,null,"Indicador",{"$f":"+((F28-F29)/F28)*100","v":15.306298942572912},{"$f":"+((G28-G29)/G28)*100","v":15.161212632406359},{"$f":"+((H28-H29)/H28)*100","v":15.122250960613453},{"$f":"+((I28-I29)/I28)*100","v":15.087885070362123}]
[null,null,null,null,"V1",29381884,29999952.603898123,30208851.306956522,30419204.634584356]
[null,null,null,null,"V2",24884605,25451596,25640593,25829590]
[null,"AMAZONAS",null,null,"Indicador","S/I","S/I","S/I","S/I"]
[null,null,null,null,"V1","S/I","S/I","S/I","S/I"]
[null,null,null,null,"V2","S/I","S/I","S/I","S/I"]
[null,"ANCASH",null,null,"Indicador","S/I","S/I","S/I","S/I"]
[null,null,null,null,"V1","S/I","S/I","S/I","S/I"]
[null,null,null,null,"V2","S/I","S/I","S/I","S/I"]
[null,"APURÍMAC",null,null,"Indicador","S/I","S/I","S/I","S/I"]
[null,null,null,null,"V1","S/I","S/I","S/I","S/I"]
[null,null,null,null,"V2","S/I","S/I","S/I","S/I"]
[null,"AREQUIPA",null,null,"Indicador","S/I","S/I","S/I","S/I"]
[null,null,null,null,"V1","S/I","S/I","S/I","S/I"]
[null,null,null,null,"V2","S/I","S/I","S/I","S/I"]
[null,"AYACUCHO",null,null,"Indicador","S/I","S/I","S/I","S/I"]
[null,null,null,null,"V1","S/I","S/I","S/I","S/I"]
[null,null,null,null,"V2","S/I","S/I","S/I","S/I"]
[null,"CAJAMARCA",null,null,"Indicador","S/I","S/I","S/I","S/I"]
[null,null,null,null,"V1","S/I","S/I","S/I","S/I"]
[null,null,null,null,"V2","S/I","S/I","S/I","S/I"]
[null,"CALLAO",null,null,"Indicador","S/I","S/I","S/I","S/I"]
[null,null,null,null,"V1","S/I","S/I","S/I","S/I"]
[null,null,null,null,"V2","S/I","S/I","S/I","S/I"]
[null,"CUSCO",null,null,"Indicador","S/I","S/I","S/I","S/I"]
[null,null,null,null,"V1","S/I","S/I","S/I","S/I"]
[null,null,null,null,"V2","S/I","S/I","S/I","S/I"]
[null,"HUANCAVELICA",null,null,"Indicador","S/I","S/I","S/I","S/I"]
[null,null,null,null,"V1","S/I","S/I","S/I","S/I"]
[null,null,null,null,"V2","S/I","S/I","S/I","S/I"]
[null,"HUANUCO",null,null,"Indicador","S/I","S/I","S/I","S/I"]
[null,null,null,null,"V1","S/I","S/I","S/I","S/I"]
[null,null,null,null,"V2","S/I","S/I","S/I","S/I"]
[null,"ICA",null,null,"Indicador","S/I","S/I","S/I","S/I"]
[null,null,null,null,"V1","S/I","S/I","S/I","S/I"]
[null,null,null,null,"V2","S/I","S/I","S/I","S/I"]
[null,"JUNÍN",null,null,"Indicador","S/I","S/I","S/I","S/I"]
[null,null,null,null,"V1","S/I","S/I","S/I","S/I"]
[null,null,null,null,"V2","S/I","S/I","S/I","S/I"]
[null,"LA LIBERTAD",null,null,"Indicador","S/I","S/I","S/I","S/I"]
[null,null,null,null,"V1","S/I","S/I","S/I","S/I"]
[null,null,null,null,"V2","S/I","S/I","S/I","S/I"]
[null,"LAMBAYEQUE",null,null,"Indicador","S/I","S/I","S/I","S/I"]
[null,null,null,null,"V1","S/I","S/I","S/I","S/I"]
[null,null,null,null,"V2","S/I","S/I","S/I","S/I"]
[null,"LIMA",null,null,"Indicador","S/I","S/I","S/I","S/I"]
[null,null,null,null,"V1","S/I","S/I","S/I","S/I"]
[null,null,null,null,"V2","S/I","S/I","S/I","S/I"]
[null,"LORETO",null,null,"Indicador","S/I","S/I","S/I","S/I"]
[null,null,null,null,"V1","S/I","S/I","S/I","S/I"]
[null,null,null,null,"V2","S/I","S/I","S/I","S/I"]
[null,"MADRE DE DIOS",null,null,"Indicador","S/I","S/I","S/I","S/I"]
[null,null,null,null,"V1","S/I","S/I","S/I","S/I"]
[null,null,null,null,"V2","S/I","S/I","S/I","S/I"]
[null,"MOQUEGUA",null,null,"Indicador","S/I","S/I","S/I","S/I"]
[null,null,null,null,"V1","S/I","S/I","S/I","S/I"]
[null,null,null,null,"V2","S/I","S/I","S/I","S/I"]
[null,"PASCO",null,null,"Indicador","S/I","S/I","S/I","S/I"]
[null,null,null,null,"V1","S/I","S/I","S/I","S/I"]
[null,null,null,null,"V2","S/I","S/I","S/I","S/I"]
[null,"PIURA",null,null,"Indicador","S/I","S/I","S/I","S/I"]
[null,null,null,null,"V1","S/I","S/I","S/I","S/I"]
[null,null,null,null,"V2","S/I","S/I","S/I","S/I"]
[null,"PUNO",null,null,"Indicador","S/I","S/I","S/I","S/I"]
[null,null,null,null,"V1","S/I","S/I","S/I","S/I"]
[null,null,null,null,"V2","S/I","S/I","S/I","S/I"]
[null,"SAN MARTÍN",null,null,"Indicador","S/I","S/I","S/I","S/I"]
[null,null,null,null,"V1","S/I","S/I","S/I","S/I"]
[null,null,null,null,"V2","S/I","S/I","S/I","S/I"]
[null,"TACNA",null,null,"Indicador","S/I","S/I","S/I","S/I"]
[null,null,null,null,"V1","S/I","S/I","S/I","S/I"]
[null,null,null,null,"V2","S/I","S/I","S/I","S/I"]
[null,"TUMBES",null,null,"Indicador","S/I","S/I","S/I","S/I"]
[null,null,null,null,"V1","S/I","S/I","S/I","S/I"]
[null,null,null,null,"V2","S/I","S/I","S/I","S/I"]
[null,"UCAYALI",null,null,"Indicador","S/I","S/I","S/I","S/I"]
[null,null,null,null,"V1","S/I","S/I","S/I","S/I"]
[null,null,null,null,"V2","S/I","S/I","S/I","S/I"]
["Nota: No se cuenta con información a nivel regional, provincial ni distrital."]
[]
[]
[]
[]
[]
["SECTOR CULTURA"]
["REPORTE DE VALORES DE INDICADORES DE BRECHAS"]
[]
["Nombre del Indicador",null,null,"Porcentaje de bibliotecas públicas que no prestan adecuados servicios bibliotecarios (% BPNI)."]
["Unidad de Medida (Variables)",null,null,"Bibliotecas Públicas."]
["Variable 1 (V1)",null,null,"TBP: Total de bibliotecas públicas"]
["Variable 2 (V2)",null,null,"BPI: Bibliotecas públicas intervenidas"]
[]
["Fórmula"]
[]
["Instrucciones: "]
["a) En caso el Sector determine valores a nivel de distrito, debe incorporar las filas correspondientes."]
["b) Si la fórmula del indicador de brechas tiene más de dos variables, incorporar las filas correspondientes."]
["c) Si el Sector no cuenta con valores del indicador a nivel de región, provincia o distrito, en el casillero correspondiente consignar: S/I"]
["d) Si algún indicador no aplica a nivel de región, provincia o distrito, en el casillero correspondiente consignar: N/A"]
[]
["Nivel de Desagregación del Indicador de Brecha",null,null,null,"Variables","Valores de los Indicadores de Brechas"]
[null,null,null,null,null,"Línea Base (Año 2018)","Año 2020","Año 2021","Año 2022"]
["Nacional","Región","Provincia","Distrito"]
["PERÚ",null,null,null,"Indicador",{"$f":"+((F131-F132)/F131)*100","v":90.586145648312609},{"$f":"+((G131-G132)/G131)*100","v":89.87566607460036},{"$f":"+((H131-H132)/H131)*100","v":89.520426287744229},{"$f":"+((I131-I132)/I131)*100","v":89.165186500888097}]
[null,null,null,null,"V1",563,563,563,563]
[null,null,null,null,"V2",53,57,59,61]
[null,"AMAZONAS",null,null,"Indicador","S/I","S/I","S/I","S/I"]
[null,null,null,null,"V1","S/I","S/I","S/I","S/I"]
[null,null,null,null,"V2","S/I","S/I","S/I","S/I"]
[null,"ANCASH",null,null,"Indicador","S/I","S/I","S/I","S/I"]
[null,null,null,null,"V1","S/I","S/I","S/I","S/I"]
[null,null,null,null,"V2","S/I","S/I","S/I","S/I"]
[null,"APURÍMAC",null,null,"Indicador","S/I","S/I","S/I","S/I"]
[null,null,null,null,"V1","S/I","S/I","S/I","S/I"]
[null,null,null,null,"V2","S/I","S/I","S/I","S/I"]
[null,"AREQUIPA",null,null,"Indicador","S/I","S/I","S/I","S/I"]
[null,null,null,null,"V1","S/I","S/I","S/I","S/I"]
[null,null,null,null,"V2","S/I","S/I","S/I","S/I"]
[null,"AYACUCHO",null,null,"Indicador","S/I","S/I","S/I","S/I"]
[null,null,null,null,"V1","S/I","S/I","S/I","S/I"]
[null,null,null,null,"V2","S/I","S/I","S/I","S/I"]
[null,"CAJAMARCA",null,null,"Indicador","S/I","S/I","S/I","S/I"]
[null,null,null,null,"V1","S/I","S/I","S/I","S/I"]
[null,null,null,null,"V2","S/I","S/I","S/I","S/I"]
[null,"CALLAO",null,null,"Indicador","S/I","S/I","S/I","S/I"]
[null,null,null,null,"V1","S/I","S/I","S/I","S/I"]
[null,null,null,null,"V2","S/I","S/I","S/I","S/I"]
[null,"CUSCO",null,null,"Indicador","S/I","S/I","S/I","S/I"]
[null,null,null,null,"V1","S/I","S/I","S/I","S/I"]
[null,null,null,null,"V2","S/I","S/I","S/I","S/I"]
[null,"HUANCAVELICA",null,null,"Indicador","S/I","S/I","S/I","S/I"]
[null,null,null,null,"V1","S/I","S/I","S/I","S/I"]
[null,null,null,null,"V2","S/I","S/I","S/I","S/I"]
[null,"HUANUCO",null,null,"Indicador","S/I","S/I","S/I","S/I"]
[null,null,null,null,"V1","S/I","S/I","S/I","S/I"]
[null,null,null,null,"V2","S/I","S/I","S/I","S/I"]
[null,"ICA",null,null,"Indicador","S/I","S/I","S/I","S/I"]
[null,null,null,null,"V1","S/I","S/I","S/I","S/I"]
[null,null,null,null,"V2","S/I","S/I","S/I","S/I"]
[null,"JUNÍN",null,null,"Indicador","S/I","S/I","S/I","S/I"]
[null,null,null,null,"V1","S/I","S/I","S/I","S/I"]
[null,null,null,null,"V2","S/I","S/I","S/I","S/I"]
[null,"LA LIBERTAD",null,null,"Indicador","S/I","S/I","S/I","S/I"]
[null,null,null,null,"V1","S/I","S/I","S/I","S/I"]
[null,null,null,null,"V2","S/I","S/I","S/I","S/I"]
[null,"LAMBAYEQUE",null,null,"Indicador","S/I","S/I","S/I","S/I"]
[null,null,null,null,"V1","S/I","S/I","S/I","S/I"]
[null,null,null,null,"V2","S/I","S/I","S/I","S/I"]
[null,"LIMA",null,null,"Indicador","S/I","S/I","S/I","S/I"]
[null,null,null,null,"V1","S/I","S/I","S/I","S/I"]
[null,null,null,null,"V2","S/I","S/I","S/I","S/I"]
[null,"LORETO",null,null,"Indicador","S/I","S/I","S/I","S/I"]
[null,null,null,null,"V1","S/I","S/I","S/I","S/I"]
[null,null,null,null,"V2","S/I","S/I","S/I","S/I"]
[null,"MADRE DE DIOS",null,null,"Indicador","S/I","S/I","S/I","S/I"]
[null,null,null,null,"V1","S/I","S/I","S/I","S/I"]
[null,null,null,null,"V2","S/I","S/I","S/I","S/I"]
[null,"MOQUEGUA",null,null,"Indicador","S/I","S/I","S/I","S/I"]
[null,null,null,null,"V1","S/I","S/I","S/I","S/I"]
[null,null,null,null,"V2","S/I","S/I","S/I","S/I"]
[null,"PASCO",null,null,"Indicador","S/I","S/I","S/I","S/I"]
[null,null,null,null,"V1","S/I","S/I","S/I","S/I"]
[null,null,null,null,"V2","S/I","S/I","S/I","S/I"]
[null,"PIURA",null,null,"Indicador","S/I","S/I","S/I","S/I"]
[null,null,null,null,"V1","S/I","S/I","S/I","S/I"]
[null,null,null,null,"V2","S/I","S/I","S/I","S/I"]
[null,"PUNO",null,null,"Indicador","S/I","S/I","S/I","S/I"]
[null,null,null,null,"V1","S/I","S/I","S/I","S/I"]
[null,null,null,null,"V2","S/I","S/I","S/I","S/I"]
[null,"SAN MARTÍN",null,null,"Indicador","S/I","S/I","S/I","S/I"]
[null,null,null,null,"V1","S/I","S/I","S/I","S/I"]
[null,null,null,null,"V2","S/I","S/I","S/I","S/I"]
[null,"TACNA",null,null,"Indicador","S/I","S/I","S/I","S/I"]
[null,null,null,null,"V1","S/I","S/I","S/I","S/I"]
[null,null,null,null,"V2","S/I","S/I","S/I","S/I"]
[null,"TUMBES",null,null,"Indicador","S/I","S/I","S/I","S/I"]
[null,null,null,null,"V1","S/I","S/I","S/I","S/I"]
[null,null,null,null,"V2","S/I","S/I","S/I","S/I"]
[null,"UCAYALI",null,null,"Indicador","S/I","S/I","S/I","S/I"]
[null,null,null,null,"V1","S/I","S/I","S/I","S/I"]
[null,null,null,null,"V2","S/I","S/I","S/I","S/I"]
["Nota: No se cuenta con información a nivel regional, provincial ni distrital."]
[]
[]
[]
[]
[]
["SECTOR CULTURA"]
["REPORTE DE VALORES DE INDICADORES DE BRECHAS"]
[]
["Nombre del Indicador",null,null,"Porcentaje de distritos con más de 20,000 habitantes que no cuentan con infraestructura cultural pública para la participación de la población en las industrias culturales y las artes (% Distritos sin IPASC)."]
["Unidad de Medida (Variables)",null,null,"Usuario/año."]
["Variable 1 (V1)",null,null,"Distritos: Número de distritos con más de 20,000 habitantes."]
["Variable 2 (V2)",null,null,"Distritos con IPASC: Distritos con más de 20,000 habitantes que cuentan con al menos una infraestructura pública para servicios culturales."]
[]
["Fórmula"]
[]
["Instrucciones: "]
["a) En caso el Sector determine valores a nivel de distrito, debe incorporar las filas correspondientes."]
["b) Si la fórmula del indicador de brechas tiene más de dos variables, incorporar las filas correspondientes."]
["c) Si el Sector no cuenta con valores del indicador a nivel de región, provincia o distrito, en el casillero correspondiente consignar: S/I"]
["d) Si algún indicador no aplica a nivel de región, provincia o distrito, en el casillero correspondiente consignar: N/A"]
[]
["Nivel de Desagregación del Indicador de Brecha",null,null,null,"Variables","Valores de los Indicadores de Brechas"]
[null,null,null,null,null,"Línea Base (Año 2017)","Año 2020","Año 2021","Año 2022"]
["Nacional","Región","Provincia","Distrito"]
["PERÚ",null,null,null,"Indicador",{"$f":"+((F234-F235)/F234)*100","v":69.85294117647058},{"$f":"+((G234-G235)/G234)*100","v":66.544117647058826},{"$f":"+((H234-H235)/H234)*100","v":65.441176470588232},{"$f":"+((I234-I235)/I234)*100","v":64.338235294117652}]
[null,null,null,null,"V1",272,272,272,272]
[null,null,null,null,"V2",82,91,94,97]
[null,"AMAZONAS",null,null,"Indicador","S/I","S/I","S/I","S/I"]
[null,null,null,null,"V1","S/I","S/I","S/I","S/I"]
[null,null,null,null,"V2","S/I","S/I","S/I","S/I"]
[null,"ANCASH",null,null,"Indicador","S/I","S/I","S/I","S/I"]
[null,null,null,null,"V1","S/I","S/I","S/I","S/I"]
[null,null,null,null,"V2","S/I","S/I","S/I","S/I"]
[null,"APURÍMAC",null,null,"Indicador","S/I","S/I","S/I","S/I"]
[null,null,null,null,"V1","S/I","S/I","S/I","S/I"]
[null,null,null,null,"V2","S/I","S/I","S/I","S/I"]
[null,"AREQUIPA",null,null,"Indicador","S/I","S/I","S/I","S/I"]
[null,null,null,null,"V1","S/I","S/I","S/I","S/I"]
[null,null,null,null,"V2","S/I","S/I","S/I","S/I"]
[null,"AYACUCHO",null,null,"Indicador","S/I","S/I","S/I","S/I"]
[null,null,null,null,"V1","S/I","S/I","S/I","S/I"]
[null,null,null,null,"V2","S/I","S/I","S/I","S/I"]
[null,"CAJAMARCA",null,null,"Indicador","S/I","S/I","S/I","S/I"]
[null,null,null,null,"V1","S/I","S/I","S/I","S/I"]
[null,null,null,null,"V2","S/I","S/I","S/I","S/I"]
[null,"CALLAO",null,null,"Indicador","S/I","S/I","S/I","S/I"]
[null,null,null,null,"V1","S/I","S/I","S/I","S/I"]
[null,null,null,null,"V2","S/I","S/I","S/I","S/I"]
[null,"CUSCO",null,null,"Indicador","S/I","S/I","S/I","S/I"]
[null,null,null,null,"V1","S/I","S/I","S/I","S/I"]
[null,null,null,null,"V2","S/I","S/I","S/I","S/I"]
[null,"HUANCAVELICA",null,null,"Indicador","S/I","S/I","S/I","S/I"]
[null,null,null,null,"V1","S/I","S/I","S/I","S/I"]
[null,null,null,null,"V2","S/I","S/I","S/I","S/I"]
[null,"HUANUCO",null,null,"Indicador","S/I","S/I","S/I","S/I"]
[null,null,null,null,"V1","S/I","S/I","S/I","S/I"]
[null,null,null,null,"V2","S/I","S/I","S/I","S/I"]
[null,"ICA",null,null,"Indicador","S/I","S/I","S/I","S/I"]
[null,null,null,null,"V1","S/I","S/I","S/I","S/I"]
[null,null,null,null,"V2","S/I","S/I","S/I","S/I"]
[null,"JUNÍN",null,null,"Indicador","S/I","S/I","S/I","S/I"]
[null,null,null,null,"V1","S/I","S/I","S/I","S/I"]
[null,null,null,null,"V2","S/I","S/I","S/I","S/I"]
[null,"LA LIBERTAD",null,null,"Indicador","S/I","S/I","S/I","S/I"]
[null,null,null,null,"V1","S/I","S/I","S/I","S/I"]
[null,null,null,null,"V2","S/I","S/I","S/I","S/I"]
[null,"LAMBAYEQUE",null,null,"Indicador","S/I","S/I","S/I","S/I"]
[null,null,null,null,"V1","S/I","S/I","S/I","S/I"]
[null,null,null,null,"V2","S/I","S/I","S/I","S/I"]
[null,"LIMA",null,null,"Indicador","S/I","S/I","S/I","S/I"]
[null,null,null,null,"V1","S/I","S/I","S/I","S/I"]
[null,null,null,null,"V2","S/I","S/I","S/I","S/I"]
[null,"LORETO",null,null,"Indicador","S/I","S/I","S/I","S/I"]
[null,null,null,null,"V1","S/I","S/I","S/I","S/I"]
[null,null,null,null,"V2","S/I","S/I","S/I","S/I"]
[null,"MADRE DE DIOS",null,null,"Indicador","S/I","S/I","S/I","S/I"]
[null,null,null,null,"V1","S/I","S/I","S/I","S/I"]
[null,null,null,null,"V2","S/I","S/I","S/I","S/I"]
[null,"MOQUEGUA",null,null,"Indicador","S/I","S/I","S/I","S/I"]
[null,null,null,null,"V1","S/I","S/I","S/I","S/I"]
[null,null,null,null,"V2","S/I","S/I","S/I","S/I"]
[null,"PASCO",null,null,"Indicador","S/I","S/I","S/I","S/I"]
[null,null,null,null,"V1","S/I","S/I","S/I","S/I"]
[null,null,null,null,"V2","S/I","S/I","S/I","S/I"]
[null,"PIURA",null,null,"Indicador","S/I","S/I","S/I","S/I"]
[null,null,null,null,"V1","S/I","S/I","S/I","S/I"]
[null,null,null,null,"V2","S/I","S/I","S/I","S/I"]
[null,"PUNO",null,null,"Indicador","S/I","S/I","S/I","S/I"]
[null,null,null,null,"V1","S/I","S/I","S/I","S/I"]
[null,null,null,null,"V2","S/I","S/I","S/I","S/I"]
[null,"SAN MARTÍN",null,null,"Indicador","S/I","S/I","S/I","S/I"]
[null,null,null,null,"V1","S/I","S/I","S/I","S/I"]
[null,null,null,null,"V2","S/I","S/I","S/I","S/I"]
[null,"TACNA",null,null,"Indicador","S/I","S/I","S/I","S/I"]
[null,null,null,null,"V1","S/I","S/I","S/I","S/I"]
[null,null,null,null,"V2","S/I","S/I","S/I","S/I"]
[null,"TUMBES",null,null,"Indicador","S/I","S/I","S/I","S/I"]
[null,null,null,null,"V1","S/I","S/I","S/I","S/I"]
[null,null,null,null,"V2","S/I","S/I","S/I","S/I"]
[null,"UCAYALI",null,null,"Indicador","S/I","S/I","S/I","S/I"]
[null,null,null,null,"V1","S/I","S/I","S/I","S/I"]
[null,null,null,null,"V2","S/I","S/I","S/I","S/I"]
["Nota: No se cuenta con información a nivel regional, provincial ni distrital."]

{"sheet":"OBJETIVOS","index":7,"n_rows":51,"n_cols":16,"rows_kept":51,"cut":false,"hidden":true,"merged":[[49,1,50,1],[49,2,49,6],[49,7,50,12],[50,2,50,6],[45,2,45,6],[45,7,45,8],[45,9,45,11],[47,9,47,11],[48,2,48,6],[48,7,48,12],[39,9,39,11],[40,9,40,11],[41,9,41,11],[42,9,42,11],[43,9,43,11],[44,2,44,6],[44,7,44,8],[44,9,44,11],[32,9,32,11],[33,1,43,1],[33,2,43,6],[33,7,43,8],[33,9,33,11],[34,9,34,11],[35,9,35,11],[36,9,36,11],[37,9,37,11],[38,9,38,11],[23,1,32,1],[23,2,32,6],[23,7,32,8],[31,9,31,11],[19,9,19,11],[20,9,20,11],[21,9,21,11],[22,9,22,11],[23,9,23,11],[24,9,24,11],[25,9,25,11],[26,9,26,11],[27,9,27,11],[28,9,28,11],[29,9,29,11],[30,9,30,11],[13,7,15,8],[13,9,13,11],[14,9,14,11],[15,9,15,11],[16,1,22,1],[16,2,22,6],[16,7,22,8],[16,9,16,11],[17,9,17,11],[18,9,18,11],[12,9,12,11],[2,1,2,3],[2,4,2,10],[4,2,4,6],[4,7,4,8],[4,9,4,11],[5,1,15,1],[5,2,15,6],[5,7,12,8],[5,9,5,11],[6,9,6,11],[7,9,7,11],[8,9,8,11],[9,9,9,11],[10,9,10,11],[11,9,11,11]]}
[]
[]
[null,"OBJETIVO CENTRAL",null,null,"Población con acceso a espacios públicos con servicios culturales para la promoción de la identidad y valores para la ciudadanía."]
[]
[null,"N°","MEDIOS FUNDAMENTALES",null,null,null,null,"ACTIVOS AGREGADOS",null,"ACCIONES",null,null,null,null,null,"TIPO DE FACTOR PRODUCTIVO"]
[null,1,"Adecuada oferta de espacios públicos culturales con equipamiento para el intercambio y encuentro de la ciudadanía.",null,null,null,null,"Área ecológica",null,"Construcción de Área verde",null,null,null,"Construcción de Área verde",null,"Infraestructura"]
[null,null,null,null,null,null,null,null,null,"Construcción de Sendero",null,null,null,"Construcción de Sendero",null,"Mobiliario"]
[null,null,null,null,null,null,null,null,null,"Adquisición de Baldosas podo táctiles",null,null,null,"Adquisición de Baldosas podo táctiles",null,"Equipo"]
[null,null,null,null,null,null,null,null,null,"Construcción de Sardineles",null,null,null,"Construcción de Sardineles",null,"Intangible"]
[null,null,null,null,null,null,null,null,null,"Construcción de Sistema de riego",null,null,null,"Construcción de Sistema de riego"]
[null,null,null,null,null,null,null,null,null,"Adquisición de Bancas",null,null,null,"Adquisición de Bancas"]
[null,null,null,null,null,null,null,null,null,"Adquisición de Juegos infantiles e inclusivos",null,null,null,"Adquisición de Juegos infantiles e inclusivos"]
[null,null,null,null,null,null,null,null,null,"Adquisición de Luminarias / faroles",null,null,null,"Adquisición de Luminarias / faroles"]
[null,null,null,null,null,null,null,"Explanada Cultural",null,"Construcción de Anfiteatro",null,null,null,"Construcción de Anfiteatro"]
[null,null,null,null,null,null,null,null,null,"Construcción de Plataforma",null,null,null,"Construcción de Plataforma"]
[null,null,null,null,null,null,null,null,null,"Construcción de Servicios higiénicos",null,null,null,"Construcción de Servicios higiénicos"]
[null,2,"Adecuada oferta de infraestructura para el desarrollo de actividades culturales.",null,null,null,null,"Centro Cultural",null,"Construcción de Auditórium",null,null,null,"Construcción de Auditórium"]
[null,null,null,null,null,null,null,null,null,"Construcción de Sala de Usos Múltiples",null,null,null,"Construcción de Sala de Usos Múltiples"]
[null,null,null,null,null,null,null,null,null,"Construcción de Recepción ",null,null,null,"Construcción de Recepción "]
[null,null,null,null,null,null,null,null,null,"Construcción de Talleres",null,null,null,"Construcción de Talleres"]
[null,null,null,null,null,null,null,null,null,"Construcción de Servicios higiénicos",null,null,null,"Construcción de Servicios higiénicos"]
[null,null,null,null,null,null,null,null,null,"Adquisición de equipo para centro cultural",null,null,null,"Adquisición de equipo para centro cultural"]
[null,null,null,null,null,null,null,null,null,"Adquisición de mobiliario para centro cultural",null,null,null,"Adquisición de mobiliario para centro cultural"]
[null,3,"Adecuada oferta infraestructura y equipamiento para el fomento de lectura.",null,null,null,null,"Biblioteca Comunitaria",null,"Construcción de Sala  de Lectura",null,null,null,"Construcción de Sala  de Lectura"]
[null,null,null,null,null,null,null,null,null,"Construcción de Ludoteca ",null,null,null,"Construcción de Ludoteca "]
[null,null,null,null,null,null,null,null,null,"Construcción de Sala Audiovisual",null,null,null,"Construcción de Sala Audiovisual"]
[null,null,null,null,null,null,null,null,null,"Adquisición de Estantería de Libros",null,null,null,"Construcción de Oficina de bibliotecólogo "]
[null,null,null,null,null,null,null,null,null,"Construcción de Oficina de bibliotecólogo ",null,null,null,"Construcción de Depósito "]
[null,null,null,null,null,null,null,null,null,"Construcción de Depósito ",null,null,null,"Construcción de Recepción "]
[null,null,null,null,null,null,null,null,null,"Construcción de Recepción ",null,null,null,"Construcción de Servicios higiénicos"]
[null,null,null,null,null,null,null,null,null,"Construcción de Servicios higiénicos",null,null,null,"Adquisición de equipo para Biblioteca "]
[null,null,null,null,null,null,null,null,null,"Adquisición de equipo para Biblioteca ",null,null,null,"Adquisición de mobiliario para Biblioteca "]
[null,null,null,null,null,null,null,null,null,"Adquisición de mobiliario para Biblioteca ",null,null,null,"Construcción de Sala de exposición permanente "]
[null,4,"Adecuadas salas de exhibición para promocionar la identidad y valores",null,null,null,null,"Centro de Recursos de la Ciudadania",null,"Construcción de Sala de exposición permanente ",null,null,null,"Construcción de Sala de exposición temporal "]
[null,null,null,null,null,null,null,null,null,"Construcción de Sala de exposición temporal ",null,null,null,"Construcción de Laboratorio creativo "]
[null,null,null,null,null,null,null,null,null,"Construcción de Laboratorio creativo ",null,null,null,"Construcción de Huerto comunitario"]
[null,null,null,null,null,null,null,null,null,"Construcción de Huerto comunitario",null,null,null,"Ambiente de preparación y expendio de alimentos"]
[null,null,null,null,null,null,null,null,null,"Construcción de Cafetería ",null,null,null,"Construcción de Depósito"]
[null,null,null,null,null,null,null,null,null,"Construcción de Cocina",null,null,null,"Construcción de Área Administrativa"]
[null,null,null,null,null,null,null,null,null,"Construcción de Depósito",null,null,null,"Construcción de Servicios higiénicos"]
[null,null,null,null,null,null,null,null,null,"Construcción de Área Administrativa",null,null,null,"Adquisición de equipo para CREC"]
[null,null,null,null,null,null,null,null,null,"Construcción de Servicios higiénicos",null,null,null,"Adquisición de mobiliario para CREC"]
[null,null,null,null,null,null,null,null,null,"Adquisición de equipo para CREC",null,null,null,"Implementación de capacidad organizacional"]
[null,null,null,null,null,null,null,null,null,"Adquisición de mobiliario para CREC",null,null,null,"Implementación de capacidad humana"]
[null,5,"Adecuada capacidad de gestión de servicios culturales",null,null,null,null,"Modelo de Gestión",null,"Implementación de capacidad organizacional"]
[null,6,"Adecuadas acciones de sensibilización para la promoción de identidad y valores con participación de la población.",null,null,null,null,"Programa de sensibilización a la ciudadanía",null,"Implementación de capacidad humana"]
[]
[]
[null,"N°","FINES DIRECTOS",null,null,null,null,"FIN ULTIMO"]
[null,1,"Incremento de la participación de la ciudadanía en actividades de interacción social y cultural",null,null,null,null,"Mejora de la identidad cultural y valores en la población"]
[null,null,"Incremento de hábito de lectura y del valor cultural de la ciudadanía"]